{"text_format":"1","workbook":"xlsx","n_sheets":5,"sheets":["Sammlungsverzeichnis","Etiketten - Farbig","Etiketten - Dunkel","Etiketten - Weiss","Etiketten - hellblau"],"not_rendered":{"charts":0,"images":1,"macros":1,"external_links":0,"defined_names":5,"comments":0,"pivot_tables":0},"unopened":[],"bounds":{"document_bytes":16777216,"sheet_cells":100000,"rows_first":2000,"rows_last":500,"rows_between":2000,"halvings":0,"cell_chars":16384,"cell_head_chars":4096},"cells_cut":0,"cells_raw":0,"read":"whole","date_system":"1900"}

{"sheet":"Sammlungsverzeichnis","index":0,"n_rows":62,"n_cols":31,"rows_kept":62,"cut":false,"hidden":false,"merged":[[6,21,6,22]]}
[null,"Sammlungsverzeichnis"]
[null,"Name der Sammlung: ","M. Mustermann","<< Anfangsbuchstabe des Vornamens, und Familiennname"]
[null,"Vorname des Sammlers: ","Max",null,"col. "]
[null,"Nachname des Sammlers: ","Mustermann"]
[]
[]
[null,"   Art",null,null,null,"   Taxonomie",null,null,null,null,null,null,"Fundort",null,null,null,null,null,"  Memo- Zucht/Fundort","Witterung/Klimadaten",null,"   Fundzeitpunkt",null,"   In Sammlung","Etikett Nr."]
[null,"Deutscher Name","Wissenschaftlicher Name","ssp./var./f.","♂/♀","Ordnung [DE]","Ordnung [LAT]","Gattung","Familie [DE]","Familie [LAT]","Unterfamilie [DE]","Unterfamilie [LAT]","Staat","Land/Region","Ort","Koordinaten","Seehöhe","Sammler","Raum für Zuchtnotizen oder andere Besonderheiten falls vorhanden","Witterung","Temp.","Datum","Uhrzeit","ja/nein","Et.Nr.","Manuelle Drucksortierung","K.Nr.","Etikett Nr.","Am Spannbrett seit:","Bereits Etikettiert (Ja/Nein/corr.)","Makro"]
[null,"Nierenfleck Zipfelfalter","Thecla betulae",null,"♀","Schmetterlinge","Lepidoptera","Thecla","Bläulinge","Lycaenidae","Zipfelfalter","Theclinae","Austria","NÖ","Musterstadt","48° 13' 17″ N, 14° 22' 41″ O","472 Meter","Max Mustermann leg.","an blühendem Efeustrauch","sonnig","ca. 24°C","2016-09-25","15:00 Uhr","Nein","ENr.: 0000006",null,null,null,"2016-10-04","Nein"]
[null,"Nördliches Abendpfauenauge","Smerinthus kindermanni","ssp. kindermanni ","♂","Schmetterlinge","Lepidoptera","Smerinthus","Schwärmer","Sphingidae","Keine deutsche Bezeichnung","Macroglossinae","Türkei","Anatolien","Musterstadt","48° 13' 17″ N, 14° 22' 41″ O","472 Meter","Max Mustermann leg.","Lichtfang","schwül","ca. 33°C","2015-06-14","22:58 Uhr","ja","ENr.: 0000005",null,null,null,"abgenommen","Ja"]
[null,"Postillion","Colias crocea",null,"♀","Schmetterlinge","Lepidoptera","Colias","Weißlinge","Pieridae","Gelblinge","Coliadinae","Austria","NÖ","Musterstadt","48° 13' 17″ N, 14° 22' 41″ O","472 Meter","Max Mustermann leg.","bei Blütenbesuch gefangen","sonnig, heiter","ca. 25°C","23. - 25.09.2016","Nachmittags","ja","ENr.: 0000004",null,null,null,"abgenommen","Ja"]
[null,"Tagpfauenauge","Inachis io",null,"♂","Schmetterlinge","Lepidoptera","Inachis","Edelfalter","Nymphalidae","Echte Edelfalter","Nymphalinae","Austria","NÖ","Musterstadt","48° 13' 17″ N, 14° 22' 41″ O","472 Meter","Max Mustermann leg.","bei Blütenbesuch gefangen","sonnig, heiter","ca. 25°C","23. - 25.09.2016","Nachmittags","Nein","ENr.: 0000003",null,null,null,"2016-10-01","Nein"]
[null,"Postillion","Colias crocea",null,"♀","Schmetterlinge","Lepidoptera","Colias","Weißlinge","Pieridae","Gelblinge","Coliadinae","Austria","NÖ","Musterstadt","48° 13' 17″ N, 14° 22' 41″ O","472 Meter","Max Mustermann leg.","bei Blütenbesuch gefangen","sonnig, heiter","ca. 25°C","23. - 25.09.2016","Nachmittags","ja","ENr.: 0000002",null,null,null,"abgenommen","Ja"]
[null,"Postillion","Colias crocea",null,"♀","Schmetterlinge","Lepidoptera","Colias","Weißlinge","Pieridae","Gelblinge","Coliadinae","Austria","Stmk","Musterdorf","48° 13' 17″ N, 14° 22' 41″ O","203 Meter","Max Mustermann leg.","Auf Wiese (Paarungsflug)","wechselhaft","ca. 16°C","2016-09-21","14:30 Uhr","ja","ENr.: 0000001",null,null,null,"abgenommen","Ja"]
[null,null,null,null,null,"Diese Zeile kann gelöscht werden, wenn …","\"ENr.: 00000063 erreicht ist! Zeile NICHT nutzen","Für neuen Eintrag, bitte Makros aktivieren …","…. dann die Schaltfläche \"Zeile einfügen\" klicken","Für neuen Eintrag, bitte Makros aktivieren …","…. dann die Schaltfläche \"Zeile einfügen\" klicken","Diese Zeilen nicht verwenden! "]
[null,null,null,null,null,"Diese Zeile kann gelöscht werden, wenn …","\"ENr.: 00000063 erreicht ist! Zeile NICHT nutzen","Für neuen Eintrag, bitte Makros aktivieren …","…. dann die Schaltfläche \"Zeile einfügen\" klicken","Für neuen Eintrag, bitte Makros aktivieren …","…. dann die Schaltfläche \"Zeile einfügen\" klicken","Diese Zeilen nicht verwenden! "]
[null,null,null,null,null,"Diese Zeile kann gelöscht werden, wenn …","\"ENr.: 00000063 erreicht ist! Zeile NICHT nutzen","Für neuen Eintrag, bitte Makros aktivieren …","…. dann die Schaltfläche \"Zeile einfügen\" klicken","Für neuen Eintrag, bitte Makros aktivieren …","…. dann die Schaltfläche \"Zeile einfügen\" klicken","Diese Zeilen nicht verwenden! "]
[null,null,null,null,null,"Diese Zeile kann gelöscht werden, wenn …","\"ENr.: 00000063 erreicht ist! Zeile NICHT nutzen","Für neuen Eintrag, bitte Makros aktivieren …","…. dann die Schaltfläche \"Zeile einfügen\" klicken","Für neuen Eintrag, bitte Makros aktivieren …","…. dann die Schaltfläche \"Zeile einfügen\" klicken","Diese Zeilen nicht verwenden! "]
[null,null,null,null,null,"Diese Zeile kann gelöscht werden, wenn …","\"ENr.: 00000063 erreicht ist! Zeile NICHT nutzen","Für neuen Eintrag, bitte Makros aktivieren …","…. dann die Schaltfläche \"Zeile einfügen\" klicken","Für neuen Eintrag, bitte Makros aktivieren …","…. dann die Schaltfläche \"Zeile einfügen\" klicken","Diese Zeilen nicht verwenden! "]
[null,null,null,null,null,"Diese Zeile kann gelöscht werden, wenn …","\"ENr.: 00000063 erreicht ist! Zeile NICHT nutzen","Für neuen Eintrag, bitte Makros aktivieren …","…. dann die Schaltfläche \"Zeile einfügen\" klicken","Für neuen Eintrag, bitte Makros aktivieren …","…. dann die Schaltfläche \"Zeile einfügen\" klicken","Diese Zeilen nicht verwenden! "]
[null,null,null,null,null,"Diese Zeile kann gelöscht werden, wenn …","\"ENr.: 00000063 erreicht ist! Zeile NICHT nutzen","Für neuen Eintrag, bitte Makros aktivieren …","…. dann die Schaltfläche \"Zeile einfügen\" klicken","Für neuen Eintrag, bitte Makros aktivieren …","…. dann die Schaltfläche \"Zeile einfügen\" klicken","Diese Zeilen nicht verwenden! "]
[null,null,null,null,null,"Diese Zeile kann gelöscht werden, wenn …","\"ENr.: 00000063 erreicht ist! Zeile NICHT nutzen","Für neuen Eintrag, bitte Makros aktivieren …","…. dann die Schaltfläche \"Zeile einfügen\" klicken","Für neuen Eintrag, bitte Makros aktivieren …","…. dann die Schaltfläche \"Zeile einfügen\" klicken","Diese Zeilen nicht verwenden! "]
[null,null,null,null,null,"Diese Zeile kann gelöscht werden, wenn …","\"ENr.: 00000063 erreicht ist! Zeile NICHT nutzen","Für neuen Eintrag, bitte Makros aktivieren …","…. dann die Schaltfläche \"Zeile einfügen\" klicken","Für neuen Eintrag, bitte Makros aktivieren …","…. dann die Schaltfläche \"Zeile einfügen\" klicken","Diese Zeilen nicht verwenden! "]
[null,null,null,null,null,"Diese Zeile kann gelöscht werden, wenn …","\"ENr.: 00000063 erreicht ist! Zeile NICHT nutzen","Für neuen Eintrag, bitte Makros aktivieren …","…. dann die Schaltfläche \"Zeile einfügen\" klicken","Für neuen Eintrag, bitte Makros aktivieren …","…. dann die Schaltfläche \"Zeile einfügen\" klicken","Diese Zeilen nicht verwenden! "]
[null,null,null,null,null,"Diese Zeile kann gelöscht werden, wenn …","\"ENr.: 00000063 erreicht ist! Zeile NICHT nutzen","Für neuen Eintrag, bitte Makros aktivieren …","…. dann die Schaltfläche \"Zeile einfügen\" klicken","Für neuen Eintrag, bitte Makros aktivieren …","…. dann die Schaltfläche \"Zeile einfügen\" klicken","Diese Zeilen nicht verwenden! "]
[null,null,null,null,null,"Diese Zeile kann gelöscht werden, wenn …","\"ENr.: 00000063 erreicht ist! Zeile NICHT nutzen","Für neuen Eintrag, bitte Makros aktivieren …","…. dann die Schaltfläche \"Zeile einfügen\" klicken","Für neuen Eintrag, bitte Makros aktivieren …","…. dann die Schaltfläche \"Zeile einfügen\" klicken","Diese Zeilen nicht verwenden! "]
[null,null,null,null,null,"Diese Zeile kann gelöscht werden, wenn …","\"ENr.: 00000063 erreicht ist! Zeile NICHT nutzen","Für neuen Eintrag, bitte Makros aktivieren …","…. dann die Schaltfläche \"Zeile einfügen\" klicken","Für neuen Eintrag, bitte Makros aktivieren …","…. dann die Schaltfläche \"Zeile einfügen\" klicken","Diese Zeilen nicht verwenden! "]
[null,null,null,null,null,"Diese Zeile kann gelöscht werden, wenn …","\"ENr.: 00000063 erreicht ist! Zeile NICHT nutzen","Für neuen Eintrag, bitte Makros aktivieren …","…. dann die Schaltfläche \"Zeile einfügen\" klicken","Für neuen Eintrag, bitte Makros aktivieren …","…. dann die Schaltfläche \"Zeile einfügen\" klicken","Diese Zeilen nicht verwenden! "]
[null,null,null,null,null,"Diese Zeile kann gelöscht werden, wenn …","\"ENr.: 00000063 erreicht ist! Zeile NICHT nutzen","Für neuen Eintrag, bitte Makros aktivieren …","…. dann die Schaltfläche \"Zeile einfügen\" klicken","Für neuen Eintrag, bitte Makros aktivieren …","…. dann die Schaltfläche \"Zeile einfügen\" klicken","Diese Zeilen nicht verwenden! "]
[null,null,null,null,null,"Diese Zeile kann gelöscht werden, wenn …","\"ENr.: 00000063 erreicht ist! Zeile NICHT nutzen","Für neuen Eintrag, bitte Makros aktivieren …","…. dann die Schaltfläche \"Zeile einfügen\" klicken","Für neuen Eintrag, bitte Makros aktivieren …","…. dann die Schaltfläche \"Zeile einfügen\" klicken","Diese Zeilen nicht verwenden! "]
[null,null,null,null,null,"Diese Zeile kann gelöscht werden, wenn …","\"ENr.: 00000063 erreicht ist! Zeile NICHT nutzen","Für neuen Eintrag, bitte Makros aktivieren …","…. dann die Schaltfläche \"Zeile einfügen\" klicken","Für neuen Eintrag, bitte Makros aktivieren …","…. dann die Schaltfläche \"Zeile einfügen\" klicken","Diese Zeilen nicht verwenden! "]
[null,null,null,null,null,"Diese Zeile kann gelöscht werden, wenn …","\"ENr.: 00000063 erreicht ist! Zeile NICHT nutzen","Für neuen Eintrag, bitte Makros aktivieren …","…. dann die Schaltfläche \"Zeile einfügen\" klicken","Für neuen Eintrag, bitte Makros aktivieren …","…. dann die Schaltfläche \"Zeile einfügen\" klicken","Diese Zeilen nicht verwenden! "]
[null,null,null,null,null,"Diese Zeile kann gelöscht werden, wenn …","\"ENr.: 00000063 erreicht ist! Zeile NICHT nutzen","Für neuen Eintrag, bitte Makros aktivieren …","…. dann die Schaltfläche \"Zeile einfügen\" klicken","Für neuen Eintrag, bitte Makros aktivieren …","…. dann die Schaltfläche \"Zeile einfügen\" klicken","Diese Zeilen nicht verwenden! "]
[null,null,null,null,null,"Diese Zeile kann gelöscht werden, wenn …","\"ENr.: 00000063 erreicht ist! Zeile NICHT nutzen","Für neuen Eintrag, bitte Makros aktivieren …","…. dann die Schaltfläche \"Zeile einfügen\" klicken","Für neuen Eintrag, bitte Makros aktivieren …","…. dann die Schaltfläche \"Zeile einfügen\" klicken","Diese Zeilen nicht verwenden! "]
[null,null,null,null,null,"Diese Zeile kann gelöscht werden, wenn …","\"ENr.: 00000063 erreicht ist! Zeile NICHT nutzen","Für neuen Eintrag, bitte Makros aktivieren …","…. dann die Schaltfläche \"Zeile einfügen\" klicken","Für neuen Eintrag, bitte Makros aktivieren …","…. dann die Schaltfläche \"Zeile einfügen\" klicken","Diese Zeilen nicht verwenden! "]
[null,null,null,null,null,"Diese Zeile kann gelöscht werden, wenn …","\"ENr.: 00000063 erreicht ist! Zeile NICHT nutzen","Für neuen Eintrag, bitte Makros aktivieren …","…. dann die Schaltfläche \"Zeile einfügen\" klicken","Für neuen Eintrag, bitte Makros aktivieren …","…. dann die Schaltfläche \"Zeile einfügen\" klicken","Diese Zeilen nicht verwenden! "]
[null,null,null,null,null,"Diese Zeile kann gelöscht werden, wenn …","\"ENr.: 00000063 erreicht ist! Zeile NICHT nutzen","Für neuen Eintrag, bitte Makros aktivieren …","…. dann die Schaltfläche \"Zeile einfügen\" klicken","Für neuen Eintrag, bitte Makros aktivieren …","…. dann die Schaltfläche \"Zeile einfügen\" klicken","Diese Zeilen nicht verwenden! "]
[null,null,null,null,null,"Diese Zeile kann gelöscht werden, wenn …","\"ENr.: 00000063 erreicht ist! Zeile NICHT nutzen","Für neuen Eintrag, bitte Makros aktivieren …","…. dann die Schaltfläche \"Zeile einfügen\" klicken","Für neuen Eintrag, bitte Makros aktivieren …","…. dann die Schaltfläche \"Zeile einfügen\" klicken","Diese Zeilen nicht verwenden! "]
[null,null,null,null,null,"Diese Zeile kann gelöscht werden, wenn …","\"ENr.: 00000063 erreicht ist! Zeile NICHT nutzen","Für neuen Eintrag, bitte Makros aktivieren …","…. dann die Schaltfläche \"Zeile einfügen\" klicken","Für neuen Eintrag, bitte Makros aktivieren …","…. dann die Schaltfläche \"Zeile einfügen\" klicken","Diese Zeilen nicht verwenden! "]
[null,null,null,null,null,"Diese Zeile kann gelöscht werden, wenn …","\"ENr.: 00000063 erreicht ist! Zeile NICHT nutzen","Für neuen Eintrag, bitte Makros aktivieren …","…. dann die Schaltfläche \"Zeile einfügen\" klicken","Für neuen Eintrag, bitte Makros aktivieren …","…. dann die Schaltfläche \"Zeile einfügen\" klicken","Diese Zeilen nicht verwenden! "]
[null,null,null,null,null,"Diese Zeile kann gelöscht werden, wenn …","\"ENr.: 00000063 erreicht ist! Zeile NICHT nutzen","Für neuen Eintrag, bitte Makros aktivieren …","…. dann die Schaltfläche \"Zeile einfügen\" klicken","Für neuen Eintrag, bitte Makros aktivieren …","…. dann die Schaltfläche \"Zeile einfügen\" klicken","Diese Zeilen nicht verwenden! "]
[null,null,null,null,null,"Diese Zeile kann gelöscht werden, wenn …","\"ENr.: 00000063 erreicht ist! Zeile NICHT nutzen","Für neuen Eintrag, bitte Makros aktivieren …","…. dann die Schaltfläche \"Zeile einfügen\" klicken","Für neuen Eintrag, bitte Makros aktivieren …","…. dann die Schaltfläche \"Zeile einfügen\" klicken","Diese Zeilen nicht verwenden! "]
[null,null,null,null,null,"Diese Zeile kann gelöscht werden, wenn …","\"ENr.: 00000063 erreicht ist! Zeile NICHT nutzen","Für neuen Eintrag, bitte Makros aktivieren …","…. dann die Schaltfläche \"Zeile einfügen\" klicken","Für neuen Eintrag, bitte Makros aktivieren …","…. dann die Schaltfläche \"Zeile einfügen\" klicken","Diese Zeilen nicht verwenden! "]
[null,null,null,null,null,"Diese Zeile kann gelöscht werden, wenn …","\"ENr.: 00000063 erreicht ist! Zeile NICHT nutzen","Für neuen Eintrag, bitte Makros aktivieren …","…. dann die Schaltfläche \"Zeile einfügen\" klicken","Für neuen Eintrag, bitte Makros aktivieren …","…. dann die Schaltfläche \"Zeile einfügen\" klicken","Diese Zeilen nicht verwenden! "]
[null,null,null,null,null,"Diese Zeile kann gelöscht werden, wenn …","\"ENr.: 00000063 erreicht ist! Zeile NICHT nutzen","Für neuen Eintrag, bitte Makros aktivieren …","…. dann die Schaltfläche \"Zeile einfügen\" klicken","Für neuen Eintrag, bitte Makros aktivieren …","…. dann die Schaltfläche \"Zeile einfügen\" klicken","Diese Zeilen nicht verwenden! "]
[null,null,null,null,null,"Diese Zeile kann gelöscht werden, wenn …","\"ENr.: 00000063 erreicht ist! Zeile NICHT nutzen","Für neuen Eintrag, bitte Makros aktivieren …","…. dann die Schaltfläche \"Zeile einfügen\" klicken","Für neuen Eintrag, bitte Makros aktivieren …","…. dann die Schaltfläche \"Zeile einfügen\" klicken","Diese Zeilen nicht verwenden! "]
[null,null,null,null,null,"Diese Zeile kann gelöscht werden, wenn …","\"ENr.: 00000063 erreicht ist! Zeile NICHT nutzen","Für neuen Eintrag, bitte Makros aktivieren …","…. dann die Schaltfläche \"Zeile einfügen\" klicken","Für neuen Eintrag, bitte Makros aktivieren …","…. dann die Schaltfläche \"Zeile einfügen\" klicken","Diese Zeilen nicht verwenden! "]
[null,null,null,null,null,"Diese Zeile kann gelöscht werden, wenn …","\"ENr.: 00000063 erreicht ist! Zeile NICHT nutzen","Für neuen Eintrag, bitte Makros aktivieren …","…. dann die Schaltfläche \"Zeile einfügen\" klicken","Für neuen Eintrag, bitte Makros aktivieren …","…. dann die Schaltfläche \"Zeile einfügen\" klicken","Diese Zeilen nicht verwenden! "]
[null,null,null,null,null,"Diese Zeile kann gelöscht werden, wenn …","\"ENr.: 00000063 erreicht ist! Zeile NICHT nutzen","Für neuen Eintrag, bitte Makros aktivieren …","…. dann die Schaltfläche \"Zeile einfügen\" klicken","Für neuen Eintrag, bitte Makros aktivieren …","…. dann die Schaltfläche \"Zeile einfügen\" klicken","Diese Zeilen nicht verwenden! "]
[null,null,null,null,null,"Diese Zeile kann gelöscht werden, wenn …","\"ENr.: 00000063 erreicht ist! Zeile NICHT nutzen","Für neuen Eintrag, bitte Makros aktivieren …","…. dann die Schaltfläche \"Zeile einfügen\" klicken","Für neuen Eintrag, bitte Makros aktivieren …","…. dann die Schaltfläche \"Zeile einfügen\" klicken","Diese Zeilen nicht verwenden! "]
[null,null,null,null,null,"Diese Zeile kann gelöscht werden, wenn …","\"ENr.: 00000063 erreicht ist! Zeile NICHT nutzen","Für neuen Eintrag, bitte Makros aktivieren …","…. dann die Schaltfläche \"Zeile einfügen\" klicken","Für neuen Eintrag, bitte Makros aktivieren …","…. dann die Schaltfläche \"Zeile einfügen\" klicken","Diese Zeilen nicht verwenden! "]
[null,null,null,null,null,"Diese Zeile kann gelöscht werden, wenn …","\"ENr.: 00000063 erreicht ist! Zeile NICHT nutzen","Für neuen Eintrag, bitte Makros aktivieren …","…. dann die Schaltfläche \"Zeile einfügen\" klicken","Für neuen Eintrag, bitte Makros aktivieren …","…. dann die Schaltfläche \"Zeile einfügen\" klicken","Diese Zeilen nicht verwenden! "]
[null,null,null,null,null,"Diese Zeile kann gelöscht werden, wenn …","\"ENr.: 00000063 erreicht ist! Zeile NICHT nutzen","Für neuen Eintrag, bitte Makros aktivieren …","…. dann die Schaltfläche \"Zeile einfügen\" klicken","Für neuen Eintrag, bitte Makros aktivieren …","…. dann die Schaltfläche \"Zeile einfügen\" klicken","Diese Zeilen nicht verwenden! "]
[null,null,null,null,null,"Diese Zeile kann gelöscht werden, wenn …","\"ENr.: 00000063 erreicht ist! Zeile NICHT nutzen","Für neuen Eintrag, bitte Makros aktivieren …","…. dann die Schaltfläche \"Zeile einfügen\" klicken","Für neuen Eintrag, bitte Makros aktivieren …","…. dann die Schaltfläche \"Zeile einfügen\" klicken","Diese Zeilen nicht verwenden! "]
[null,null,null,null,null,"Diese Zeile kann gelöscht werden, wenn …","\"ENr.: 00000063 erreicht ist! Zeile NICHT nutzen","Für neuen Eintrag, bitte Makros aktivieren …","…. dann die Schaltfläche \"Zeile einfügen\" klicken","Für neuen Eintrag, bitte Makros aktivieren …","…. dann die Schaltfläche \"Zeile einfügen\" klicken","Diese Zeilen nicht verwenden! "]
[null,null,null,null,null,"Diese Zeile kann gelöscht werden, wenn …","\"ENr.: 00000063 erreicht ist! Zeile NICHT nutzen","Für neuen Eintrag, bitte Makros aktivieren …","…. dann die Schaltfläche \"Zeile einfügen\" klicken","Für neuen Eintrag, bitte Makros aktivieren …","…. dann die Schaltfläche \"Zeile einfügen\" klicken","Diese Zeilen nicht verwenden! "]
[null,null,null,null,null,"Diese Zeile kann gelöscht werden, wenn …","\"ENr.: 00000063 erreicht ist! Zeile NICHT nutzen","Für neuen Eintrag, bitte Makros aktivieren …","…. dann die Schaltfläche \"Zeile einfügen\" klicken","Für neuen Eintrag, bitte Makros aktivieren …","…. dann die Schaltfläche \"Zeile einfügen\" klicken","Diese Zeilen nicht verwenden! "]
[null,null,null,null,null,"Diese Zeile kann gelöscht werden, wenn …","\"ENr.: 00000063 erreicht ist! Zeile NICHT nutzen","Für neuen Eintrag, bitte Makros aktivieren …","…. dann die Schaltfläche \"Zeile einfügen\" klicken","Für neuen Eintrag, bitte Makros aktivieren …","…. dann die Schaltfläche \"Zeile einfügen\" klicken","Diese Zeilen nicht verwenden! "]
[null,null,null,null,null,"Diese Zeile kann gelöscht werden, wenn …","\"ENr.: 00000063 erreicht ist! Zeile NICHT nutzen","Für neuen Eintrag, bitte Makros aktivieren …","…. dann die Schaltfläche \"Zeile einfügen\" klicken","Für neuen Eintrag, bitte Makros aktivieren …","…. dann die Schaltfläche \"Zeile einfügen\" klicken","Diese Zeilen nicht verwenden! "]
[null,null,null,null,null,"Diese Zeile kann gelöscht werden, wenn …","\"ENr.: 00000063 erreicht ist! Zeile NICHT nutzen","Für neuen Eintrag, bitte Makros aktivieren …","…. dann die Schaltfläche \"Zeile einfügen\" klicken","Für neuen Eintrag, bitte Makros aktivieren …","…. dann die Schaltfläche \"Zeile einfügen\" klicken","Diese Zeilen nicht verwenden! "]
[null,null,null,null,null,"Diese Zeile kann gelöscht werden, wenn …","\"ENr.: 00000063 erreicht ist! Zeile NICHT nutzen","Für neuen Eintrag, bitte Makros aktivieren …","…. dann die Schaltfläche \"Zeile einfügen\" klicken","Für neuen Eintrag, bitte Makros aktivieren …","…. dann die Schaltfläche \"Zeile einfügen\" klicken","Diese Zeilen nicht verwenden! "]
[null,null,null,null,null,"Diese Zeile kann gelöscht werden, wenn …","\"ENr.: 00000063 erreicht ist! Zeile NICHT nutzen","Für neuen Eintrag, bitte Makros aktivieren …","…. dann die Schaltfläche \"Zeile einfügen\" klicken","Für neuen Eintrag, bitte Makros aktivieren …","…. dann die Schaltfläche \"Zeile einfügen\" klicken","Diese Zeilen nicht verwenden! "]

{"sheet":"Etiketten - Farbig","index":1,"n_rows":89,"n_cols":28,"rows_kept":89,"cut":false,"hidden":false,"merged":[[88,17,88,27],[88,1,88,15],[86,25,86,27],[86,1,86,3],[86,5,86,7],[86,9,86,11],[86,13,86,15],[86,17,86,19],[86,21,86,23],[83,1,83,2],[83,5,83,6],[83,9,83,10],[83,13,83,14],[83,17,83,18],[83,21,83,22],[83,25,83,26],[80,11,84,11],[82,5,82,6],[82,9,82,10],[80,25,80,26],[80,27,84,27],[81,1,81,2],[81,5,81,6],[81,9,81,10],[81,13,81,14],[81,17,81,18],[81,21,81,22],[81,25,81,26],[82,1,82,2],[80,13,80,14],[80,15,84,15],[80,17,80,18],[80,19,84,19],[80,21,80,22],[80,23,84,23],[82,13,82,14],[82,17,82,18],[82,21,82,22],[80,1,80,2],[80,3,84,3],[80,5,80,6],[80,7,84,7],[80,9,80,10],[82,25,82,26],[77,25,77,26],[78,1,78,2],[78,5,78,6],[78,9,78,10],[78,13,78,14],[78,17,78,18],[78,21,78,22],[78,25,78,26],[75,25,75,26],[77,5,77,6],[77,9,77,10],[75,27,77,27],[76,1,76,2],[76,5,76,6],[76,9,76,10],[76,13,76,14],[76,17,76,18],[76,21,76,22],[76,25,76,26],[77,1,77,2],[75,13,75,14],[75,15,77,15],[75,17,75,18],[75,19,77,19],[75,21,75,22],[75,23,77,23],[77,13,77,14],[77,17,77,18],[77,21,77,22],[75,1,75,2],[75,3,77,3],[75,5,75,6],[75,7,77,7],[75,9,75,10],[75,11,77,11],[72,25,72,27],[74,1,74,2],[74,5,74,6],[74,9,74,10],[74,13,74,14],[74,17,74,18],[74,21,74,22],[74,25,74,26],[72,1,72,3],[72,5,72,7],[72,9,72,11],[72,13,72,15],[72,17,72,19],[72,21,72,23],[68,25,68,26],[69,1,69,2],[69,5,69,6],[69,9,69,10],[69,13,69,14],[69,17,69,18],[69,21,69,22],[69,25,69,26],[66,25,66,26],[68,5,68,6],[68,9,68,10],[66,27,70,27],[67,1,67,2],[67,5,67,6],[67,9,67,10],[67,13,67,14],[67,17,67,18],[67,21,67,22],[67,25,67,26],[68,1,68,2],[66,13,66,14],[66,15,70,15],[66,17,66,18],[66,19,70,19],[66,21,66,22],[66,23,70,23],[68,13,68,14],[68,17,68,18],[68,21,68,22],[66,1,66,2],[66,3,70,3],[66,5,66,6],[66,7,70,7],[66,9,66,10],[66,11,70,11],[63,25,63,26],[64,1,64,2],[64,5,64,6],[64,9,64,10],[64,13,64,14],[64,17,64,18],[64,21,64,22],[64,25,64,26],[61,25,61,26],[63,5,63,6],[63,9,63,10],[61,27,63,27],[62,1,62,2],[62,5,62,6],[62,9,62,10],[62,13,62,14],[62,17,62,18],[62,21,62,22],[62,25,62,26],[63,1,63,2],[61,13,61,14],[61,15,63,15],[61,17,61,18],[61,19,63,19],[61,21,61,22],[61,23,63,23],[63,13,63,14],[63,17,63,18],[63,21,63,22],[61,1,61,2],[61,3,63,3],[61,5,61,6],[61,7,63,7],[61,9,61,10],[61,11,63,11],[58,25,58,27],[60,1,60,2],[60,5,60,6],[60,9,60,10],[60,13,60,14],[60,17,60,18],[60,21,60,22],[60,25,60,26],[58,1,58,3],[58,5,58,7],[58,9,58,11],[58,13,58,15],[58,17,58,19],[58,21,58,23],[54,25,54,26],[55,1,55,2],[55,5,55,6],[55,9,55,10],[55,13,55,14],[55,17,55,18],[55,21,55,22],[55,25,55,26],[52,25,52,26],[54,5,54,6],[54,9,54,10],[52,27,56,27],[53,1,53,2],[53,5,53,6],[53,9,53,10],[53,13,53,14],[53,17,53,18],[53,21,53,22],[53,25,53,26],[54,1,54,2],[52,13,52,14],[52,15,56,15],[52,17,52,18],[52,19,56,19],[52,21,52,22],[52,23,56,23],[54,13,54,14],[54,17,54,18],[54,21,54,22],[52,1,52,2],[52,3,56,3],[52,5,52,6],[52,7,56,7],[52,9,52,10],[52,11,56,11],[49,25,49,26],[50,1,50,2],[50,5,50,6],[50,9,50,10],[50,13,50,14],[50,17,50,18],[50,21,50,22],[50,25,50,26],[47,25,47,26],[49,5,49,6],[49,9,49,10],[47,27,49,27],[48,1,48,2],[48,5,48,6],[48,9,48,10],[48,13,48,14],[48,17,48,18],[48,21,48,22],[48,25,48,26],[49,1,49,2],[47,13,47,14],[47,15,49,15],[47,17,47,18],[47,19,49,19],[47,21,47,22],[47,23,49,23],[49,13,49,14],[49,17,49,18],[49,21,49,22],[47,1,47,2],[47,3,49,3],[47,5,47,6],[47,7,49,7],[47,9,47,10],[47,11,49,11],[44,25,44,27],[46,1,46,2],[46,5,46,6],[46,9,46,10],[46,13,46,14],[46,17,46,18],[46,21,46,22],[46,25,46,26],[44,1,44,3],[44,5,44,7],[44,9,44,11],[44,13,44,15],[44,17,44,19],[44,21,44,23],[40,25,40,26],[41,1,41,2],[41,5,41,6],[41,9,41,10],[41,13,41,14],[41,17,41,18],[41,21,41,22],[41,25,41,26],[38,25,38,26],[40,5,40,6],[40,9,40,10],[38,27,42,27],[39,1,39,2],[39,5,39,6],[39,9,39,10],[39,13,39,14],[39,17,39,18],[39,21,39,22],[39,25,39,26],[40,1,40,2],[38,13,38,14],[38,15,42,15],[38,17,38,18],[38,19,42,19],[38,21,38,22],[38,23,42,23],[40,13,40,14],[40,17,40,18],[40,21,40,22],[38,1,38,2],[38,3,42,3],[38,5,38,6],[38,7,42,7],[38,9,38,10],[38,11,42,11],[35,25,35,26],[36,1,36,2],[36,5,36,6],[36,9,36,10],[36,13,36,14],[36,17,36,18],[36,21,36,22],[36,25,36,26],[33,25,33,26],[35,5,35,6],[35,9,35,10],[33,27,35,27],[34,1,34,2],[34,5,34,6],[34,9,34,10],[34,13,34,14],[34,17,34,18],[34,21,34,22],[34,25,34,26],[35,1,35,2],[33,13,33,14],[33,15,35,15],[33,17,33,18],[33,19,35,19],[33,21,33,22],[33,23,35,23],[35,13,35,14],[35,17,35,18],[35,21,35,22],[33,1,33,2],[33,3,35,3],[33,5,33,6],[33,7,35,7],[33,9,33,10],[33,11,35,11],[30,25,30,27],[0,22,0,27],[32,1,32,2],[32,5,32,6],[32,9,32,10],[32,13,32,14],[32,17,32,18],[32,21,32,22],[32,25,32,26],[30,1,30,3],[30,5,30,7],[30,9,30,11],[30,13,30,15],[30,17,30,19],[30,21,30,23],[8,25,8,26],[22,1,22,2],[22,5,22,6],[22,9,22,10],[22,13,22,14],[22,17,22,18],[22,21,22,22],[22,25,22,26],[8,9,8,10],[8,13,8,14],[8,17,8,18],[8,21,8,22],[0,1,0,14],[16,1,16,3],[16,5,16,7],[16,13,16,15],[16,17,16,19],[16,21,16,23],[10,11,14,11],[11,9,11,10],[12,9,12,10],[13,9,13,10],[10,13,10,14],[4,5,4,6],[5,5,5,6],[5,7,7,7],[6,5,6,6],[7,5,7,6],[10,5,10,6],[10,7,14,7],[11,5,11,6],[12,5,12,6],[13,5,13,6],[16,25,16,27],[16,9,16,11],[24,23,28,23],[25,21,25,22],[26,21,26,22],[27,21,27,22],[24,25,24,26],[24,27,28,27],[25,25,25,26],[26,25,26,26],[27,25,27,26],[24,17,24,18],[24,19,28,19],[25,17,25,18],[26,17,26,18],[27,17,27,18],[24,21,24,22],[24,11,28,11],[25,9,25,10],[26,9,26,10],[27,9,27,10],[24,13,24,14],[24,15,28,15],[25,13,25,14],[26,13,26,14],[27,13,27,14],[24,5,24,6],[24,7,28,7],[25,5,25,6],[26,5,26,6],[27,5,27,6],[24,9,24,10],[19,23,21,23],[20,21,20,22],[21,21,21,22],[19,11,21,11],[20,9,20,10],[21,9,21,10],[18,25,18,26],[19,25,19,26],[19,27,21,27],[20,25,20,26],[21,25,21,26],[19,17,19,18],[19,19,21,19],[20,17,20,18],[21,17,21,18],[18,21,18,22],[19,21,19,22],[18,13,18,14],[19,13,19,14],[19,15,21,15],[20,13,20,14],[21,13,21,14],[19,5,19,6],[19,7,21,7],[20,5,20,6],[21,5,21,6],[18,9,18,10],[19,9,19,10],[19,1,19,2],[19,3,21,3],[20,1,20,2],[21,1,21,2],[24,1,24,2],[24,3,28,3],[25,1,25,2],[26,1,26,2],[27,1,27,2],[4,25,4,26],[5,25,5,26],[5,27,7,27],[6,25,6,26],[7,25,7,26],[18,1,18,2],[18,5,18,6],[18,17,18,18],[5,19,7,19],[6,17,6,18],[7,17,7,18],[4,21,4,22],[5,21,5,22],[5,23,7,23],[6,21,6,22],[7,21,7,22],[5,13,5,14],[5,15,7,15],[6,13,6,14],[7,13,7,14],[4,17,4,18],[5,17,5,18],[10,27,14,27],[11,25,11,26],[12,25,12,26],[13,25,13,26],[4,9,4,10],[5,9,5,10],[5,11,7,11],[6,9,6,10],[7,9,7,10],[4,13,4,14],[10,21,10,22],[10,23,14,23],[11,21,11,22],[12,21,12,22],[13,21,13,22],[10,25,10,26],[10,15,14,15],[11,13,11,14],[12,13,12,14],[13,13,13,14],[10,17,10,18],[10,19,14,19],[11,17,11,18],[12,17,12,18],[13,17,13,18],[10,9,10,10],[10,3,14,3],[10,1,10,2],[11,1,11,2],[12,1,12,2],[13,1,13,2],[8,5,8,6],[4,1,4,2],[5,1,5,2],[5,3,7,3],[6,1,6,2],[7,1,7,2],[8,1,8,2]]}
[null,"Sammlungs - Etiketten (farbig)",null,null,null,null,null,null,null,null,null,null,null,null,null,null,null,null,null,null,null,null,{"$f":"TODAY()","v":"2016-10-12"}]
[]
[]
[]
[null,{"$f":"(Sammlungsverzeichnis!C9)","v":"Thecla betulae"},null,{"$f":"(Sammlungsverzeichnis!E9)","v":"♀"},null,{"$f":"(Sammlungsverzeichnis!C10)","v":"Smerinthus kindermanni"},null,{"$f":"(Sammlungsverzeichnis!E10)","v":"♂"},null,{"$f":"(Sammlungsverzeichnis!C11)","v":"Colias crocea"},null,{"$f":"(Sammlungsverzeichnis!E11)","v":"♀"},null,{"$f":"(Sammlungsverzeichnis!C12)","v":"Inachis io"},null,{"$f":"(Sammlungsverzeichnis!E12)","v":"♂"},null,{"$f":"(Sammlungsverzeichnis!C13)","v":"Colias crocea"},null,{"$f":"(Sammlungsverzeichnis!E13)","v":"♀"},null,{"$f":"(Sammlungsverzeichnis!C14)","v":"Colias crocea"},null,{"$f":"(Sammlungsverzeichnis!E14)","v":"♀"},null,{"$f":"(Sammlungsverzeichnis!C15)","v":0},null,{"$f":"(Sammlungsverzeichnis!E15)","v":0}]
[null,{"$f":"IF(Sammlungsverzeichnis!D9=0, Sammlungsverzeichnis!T9, Sammlungsverzeichnis!D9)","v":"sonnig"},null,{"$f":"(Sammlungsverzeichnis!U9)","v":"ca. 24°C"},null,{"$f":"IF(Sammlungsverzeichnis!D10=0, Sammlungsverzeichnis!T10, Sammlungsverzeichnis!D10)","v":"ssp. kindermanni "},null,{"$f":"(Sammlungsverzeichnis!U10)","v":"ca. 33°C"},null,{"$f":"IF(Sammlungsverzeichnis!D11=0, Sammlungsverzeichnis!T11, Sammlungsverzeichnis!D11)","v":"sonnig, heiter"},null,{"$f":"(Sammlungsverzeichnis!U11)","v":"ca. 25°C"},null,{"$f":"IF(Sammlungsverzeichnis!D12=0, Sammlungsverzeichnis!T12, Sammlungsverzeichnis!D12)","v":"sonnig, heiter"},null,{"$f":"(Sammlungsverzeichnis!U12)","v":"ca. 25°C"},null,{"$f":"IF(Sammlungsverzeichnis!D13=0, Sammlungsverzeichnis!T13, Sammlungsverzeichnis!D13)","v":"sonnig, heiter"},null,{"$f":"(Sammlungsverzeichnis!U13)","v":"ca. 25°C"},null,{"$f":"IF(Sammlungsverzeichnis!D14=0, Sammlungsverzeichnis!T14, Sammlungsverzeichnis!D14)","v":"wechselhaft"},null,{"$f":"(Sammlungsverzeichnis!U14)","v":"ca. 16°C"},null,{"$f":"IF(Sammlungsverzeichnis!D15=0, Sammlungsverzeichnis!T15, Sammlungsverzeichnis!D15)","v":"00:00:00"},null,{"$f":"(Sammlungsverzeichnis!U15)","v":0}]
[null,{"$f":"(Sammlungsverzeichnis!V9)","v":"2016-09-25"},null,null,null,{"$f":"(Sammlungsverzeichnis!V10)","v":"2015-06-14"},null,null,null,{"$f":"(Sammlungsverzeichnis!V11)","v":"23. - 25.09.2016"},null,null,null,{"$f":"(Sammlungsverzeichnis!V12)","v":"23. - 25.09.2016"},null,null,null,{"$f":"(Sammlungsverzeichnis!V13)","v":"23. - 25.09.2016"},null,null,null,{"$f":"(Sammlungsverzeichnis!V14)","v":"2016-09-21"},null,null,null,{"$f":"(Sammlungsverzeichnis!V15)","v":"00:00:00"}]
[null,{"$f":"(Sammlungsverzeichnis!R9)","v":"Max Mustermann leg."},null,null,null,{"$f":"(Sammlungsverzeichnis!R10)","v":"Max Mustermann leg."},null,null,null,{"$f":"(Sammlungsverzeichnis!R11)","v":"Max Mustermann leg."},null,null,null,{"$f":"(Sammlungsverzeichnis!R12)","v":"Max Mustermann leg."},null,null,null,{"$f":"(Sammlungsverzeichnis!R13)","v":"Max Mustermann leg."},null,null,null,{"$f":"(Sammlungsverzeichnis!R14)","v":"Max Mustermann leg."},null,null,null,{"$f":"(Sammlungsverzeichnis!R15)","v":0}]
[null,{"$f":"(Sammlungsverzeichnis!E3&\" \"&Sammlungsverzeichnis!C3&\" \"&Sammlungsverzeichnis!C4)","v":"col.  Max Mustermann"},null,null,null,{"$f":"(Sammlungsverzeichnis!E3&\" \"&Sammlungsverzeichnis!C3&\" \"&Sammlungsverzeichnis!C4)","v":"col.  Max Mustermann"},null,null,null,{"$f":"(Sammlungsverzeichnis!E3&\" \"&Sammlungsverzeichnis!C3&\" \"&Sammlungsverzeichnis!C4)","v":"col.  Max Mustermann"},null,null,null,{"$f":"(Sammlungsverzeichnis!E3&\" \"&Sammlungsverzeichnis!C3&\" \"&Sammlungsverzeichnis!C4)","v":"col.  Max Mustermann"},null,null,null,{"$f":"(Sammlungsverzeichnis!E3&\" \"&Sammlungsverzeichnis!C3&\" \"&Sammlungsverzeichnis!C4)","v":"col.  Max Mustermann"},null,null,null,{"$f":"(Sammlungsverzeichnis!E3&\" \"&Sammlungsverzeichnis!C3&\" \"&Sammlungsverzeichnis!C4)","v":"col.  Max Mustermann"},null,null,null,{"$f":"(Sammlungsverzeichnis!E3&\" \"&Sammlungsverzeichnis!C3&\" \"&Sammlungsverzeichnis!C4)","v":"col.  Max Mustermann"}]
[]
[null,{"$f":"(Sammlungsverzeichnis!M9)","v":"Austria"},null,{"$f":"(Sammlungsverzeichnis!Y9)","v":"ENr.: 0000006"},null,{"$f":"(Sammlungsverzeichnis!M10)","v":"Türkei"},null,{"$f":"(Sammlungsverzeichnis!Y10)","v":"ENr.: 0000005"},null,{"$f":"(Sammlungsverzeichnis!M11)","v":"Austria"},null,{"$f":"(Sammlungsverzeichnis!Y11)","v":"ENr.: 0000004"},null,{"$f":"(Sammlungsverzeichnis!M12)","v":"Austria"},null,{"$f":"(Sammlungsverzeichnis!Y12)","v":"ENr.: 0000003"},null,{"$f":"(Sammlungsverzeichnis!M13)","v":"Austria"},null,{"$f":"(Sammlungsverzeichnis!Y13)","v":"ENr.: 0000002"},null,{"$f":"(Sammlungsverzeichnis!M14)","v":"Austria"},null,{"$f":"(Sammlungsverzeichnis!Y14)","v":"ENr.: 0000001"},null,{"$f":"(Sammlungsverzeichnis!M15)","v":0},null,{"$f":"(Sammlungsverzeichnis!Y15)","v":0}]
[null,{"$f":"(Sammlungsverzeichnis!N9)","v":"NÖ"},null,null,null,{"$f":"(Sammlungsverzeichnis!N10)","v":"Anatolien"},null,null,null,{"$f":"(Sammlungsverzeichnis!N11)","v":"NÖ"},null,null,null,{"$f":"(Sammlungsverzeichnis!N12)","v":"NÖ"},null,null,null,{"$f":"(Sammlungsverzeichnis!N13)","v":"NÖ"},null,null,null,{"$f":"(Sammlungsverzeichnis!N14)","v":"Stmk"},null,null,null,{"$f":"(Sammlungsverzeichnis!N15)","v":0}]
[null,{"$f":"(Sammlungsverzeichnis!O9)","v":"Musterstadt"},null,null,null,{"$f":"(Sammlungsverzeichnis!O10)","v":"Musterstadt"},null,null,null,{"$f":"(Sammlungsverzeichnis!O11)","v":"Musterstadt"},null,null,null,{"$f":"(Sammlungsverzeichnis!O12)","v":"Musterstadt"},null,null,null,{"$f":"(Sammlungsverzeichnis!O13)","v":"Musterstadt"},null,null,null,{"$f":"(Sammlungsverzeichnis!O14)","v":"Musterdorf"},null,null,null,{"$f":"(Sammlungsverzeichnis!O15)","v":0}]
[null,{"$f":"(Sammlungsverzeichnis!P9)","v":"48° 13' 17″ N, 14° 22' 41″ O"},null,null,null,{"$f":"(Sammlungsverzeichnis!P10)","v":"48° 13' 17″ N, 14° 22' 41″ O"},null,null,null,{"$f":"(Sammlungsverzeichnis!P11)","v":"48° 13' 17″ N, 14° 22' 41″ O"},null,null,null,{"$f":"(Sammlungsverzeichnis!P12)","v":"48° 13' 17″ N, 14° 22' 41″ O"},null,null,null,{"$f":"(Sammlungsverzeichnis!P13)","v":"48° 13' 17″ N, 14° 22' 41″ O"},null,null,null,{"$f":"(Sammlungsverzeichnis!P14)","v":"48° 13' 17″ N, 14° 22' 41″ O"},null,null,null,{"$f":"(Sammlungsverzeichnis!P15)","v":0}]
[null,{"$f":"(Sammlungsverzeichnis!Q9)","v":"472 Meter"},{"$f":"(Sammlungsverzeichnis!W9)","v":"15:00 Uhr"},null,null,{"$f":"(Sammlungsverzeichnis!Q10)","v":"472 Meter"},{"$f":"(Sammlungsverzeichnis!W10)","v":"22:58 Uhr"},null,null,{"$f":"(Sammlungsverzeichnis!Q11)","v":"472 Meter"},{"$f":"(Sammlungsverzeichnis!W11)","v":"Nachmittags"},null,null,{"$f":"(Sammlungsverzeichnis!Q12)","v":"472 Meter"},{"$f":"(Sammlungsverzeichnis!W12)","v":"Nachmittags"},null,null,{"$f":"(Sammlungsverzeichnis!Q13)","v":"472 Meter"},{"$f":"(Sammlungsverzeichnis!W13)","v":"Nachmittags"},null,null,{"$f":"(Sammlungsverzeichnis!Q14)","v":"203 Meter"},{"$f":"(Sammlungsverzeichnis!W14)","v":"14:30 Uhr"},null,null,{"$f":"(Sammlungsverzeichnis!Q15)","v":0},{"$f":"(Sammlungsverzeichnis!W15)","v":0}]
[]
[null,{"$f":"(Sammlungsverzeichnis!S9)","v":"an blühendem Efeustrauch"},null,null,null,{"$f":"(Sammlungsverzeichnis!S10)","v":"Lichtfang"},null,null,null,{"$f":"(Sammlungsverzeichnis!S11)","v":"bei Blütenbesuch gefangen"},null,null,null,{"$f":"(Sammlungsverzeichnis!S12)","v":"bei Blütenbesuch gefangen"},null,null,null,{"$f":"(Sammlungsverzeichnis!S13)","v":"bei Blütenbesuch gefangen"},null,null,null,{"$f":"(Sammlungsverzeichnis!S14)","v":"Auf Wiese (Paarungsflug)"},null,null,null,{"$f":"(Sammlungsverzeichnis!S15)","v":0}]
[]
[null,{"$f":"(Sammlungsverzeichnis!C16)","v":0},null,{"$f":"(Sammlungsverzeichnis!E16)","v":0},null,{"$f":"(Sammlungsverzeichnis!C17)","v":0},null,{"$f":"(Sammlungsverzeichnis!E17)","v":0},null,{"$f":"(Sammlungsverzeichnis!C18)","v":0},null,{"$f":"(Sammlungsverzeichnis!E18)","v":0},null,{"$f":"(Sammlungsverzeichnis!C19)","v":0},null,{"$f":"(Sammlungsverzeichnis!E19)","v":0},null,{"$f":"(Sammlungsverzeichnis!C20)","v":0},null,{"$f":"(Sammlungsverzeichnis!E20)","v":0},null,{"$f":"(Sammlungsverzeichnis!C21)","v":0},null,{"$f":"(Sammlungsverzeichnis!E21)","v":0},null,{"$f":"(Sammlungsverzeichnis!C22)","v":0},null,{"$f":"(Sammlungsverzeichnis!E22)","v":0}]
[null,{"$f":"IF(Sammlungsverzeichnis!D16=0, Sammlungsverzeichnis!T16, Sammlungsverzeichnis!D16)","v":"00:00:00"},null,{"$f":"(Sammlungsverzeichnis!U16)","v":0},null,{"$f":"IF(Sammlungsverzeichnis!D17=0, Sammlungsverzeichnis!T17, Sammlungsverzeichnis!D17)","v":"00:00:00"},null,{"$f":"(Sammlungsverzeichnis!U17)","v":0},null,{"$f":"IF(Sammlungsverzeichnis!D18=0, Sammlungsverzeichnis!T18, Sammlungsverzeichnis!D18)","v":"00:00:00"},null,{"$f":"(Sammlungsverzeichnis!U18)","v":0},null,{"$f":"IF(Sammlungsverzeichnis!D19=0, Sammlungsverzeichnis!T19, Sammlungsverzeichnis!D19)","v":"00:00:00"},null,{"$f":"(Sammlungsverzeichnis!U19)","v":0},null,{"$f":"IF(Sammlungsverzeichnis!D20=0, Sammlungsverzeichnis!T20, Sammlungsverzeichnis!D20)","v":"00:00:00"},null,{"$f":"(Sammlungsverzeichnis!U20)","v":0},null,{"$f":"IF(Sammlungsverzeichnis!D21=0, Sammlungsverzeichnis!T21, Sammlungsverzeichnis!D21)","v":"00:00:00"},null,{"$f":"(Sammlungsverzeichnis!U21)","v":0},null,{"$f":"IF(Sammlungsverzeichnis!D22=0, Sammlungsverzeichnis!T22, Sammlungsverzeichnis!D22)","v":"00:00:00"},null,{"$f":"(Sammlungsverzeichnis!U22)","v":0}]
[null,{"$f":"(Sammlungsverzeichnis!V16)","v":"00:00:00"},null,null,null,{"$f":"(Sammlungsverzeichnis!V17)","v":"00:00:00"},null,null,null,{"$f":"(Sammlungsverzeichnis!V18)","v":"00:00:00"},null,null,null,{"$f":"(Sammlungsverzeichnis!V19)","v":"00:00:00"},null,null,null,{"$f":"(Sammlungsverzeichnis!V20)","v":"00:00:00"},null,null,null,{"$f":"(Sammlungsverzeichnis!V21)","v":"00:00:00"},null,null,null,{"$f":"(Sammlungsverzeichnis!V22)","v":"00:00:00"}]
[null,{"$f":"(Sammlungsverzeichnis!R16)","v":0},null,null,null,{"$f":"(Sammlungsverzeichnis!R17)","v":0},null,null,null,{"$f":"(Sammlungsverzeichnis!R18)","v":0},null,null,null,{"$f":"(Sammlungsverzeichnis!R19)","v":0},null,null,null,{"$f":"(Sammlungsverzeichnis!R20)","v":0},null,null,null,{"$f":"(Sammlungsverzeichnis!R21)","v":0},null,null,null,{"$f":"(Sammlungsverzeichnis!R22)","v":0}]
[null,{"$f":"(Sammlungsverzeichnis!E3&\" \"&Sammlungsverzeichnis!C3&\" \"&Sammlungsverzeichnis!C4)","v":"col.  Max Mustermann"},null,null,null,{"$f":"(Sammlungsverzeichnis!E3&\" \"&Sammlungsverzeichnis!C3&\" \"&Sammlungsverzeichnis!C4)","v":"col.  Max Mustermann"},null,null,null,{"$f":"(Sammlungsverzeichnis!E3&\" \"&Sammlungsverzeichnis!C3&\" \"&Sammlungsverzeichnis!C4)","v":"col.  Max Mustermann"},null,null,null,{"$f":"(Sammlungsverzeichnis!E3&\" \"&Sammlungsverzeichnis!C3&\" \"&Sammlungsverzeichnis!C4)","v":"col.  Max Mustermann"},null,null,null,{"$f":"(Sammlungsverzeichnis!E3&\" \"&Sammlungsverzeichnis!C3&\" \"&Sammlungsverzeichnis!C4)","v":"col.  Max Mustermann"},null,null,null,{"$f":"(Sammlungsverzeichnis!E3&\" \"&Sammlungsverzeichnis!C3&\" \"&Sammlungsverzeichnis!C4)","v":"col.  Max Mustermann"},null,null,null,{"$f":"(Sammlungsverzeichnis!E3&\" \"&Sammlungsverzeichnis!C3&\" \"&Sammlungsverzeichnis!C4)","v":"col.  Max Mustermann"}]
[]
[null,{"$f":"(Sammlungsverzeichnis!M16)","v":0},null,{"$f":"(Sammlungsverzeichnis!Y16)","v":0},null,{"$f":"(Sammlungsverzeichnis!M17)","v":0},null,{"$f":"(Sammlungsverzeichnis!Y17)","v":0},null,{"$f":"(Sammlungsverzeichnis!M18)","v":0},null,{"$f":"(Sammlungsverzeichnis!Y18)","v":0},null,{"$f":"(Sammlungsverzeichnis!M19)","v":0},null,{"$f":"(Sammlungsverzeichnis!Y19)","v":0},null,{"$f":"(Sammlungsverzeichnis!M20)","v":0},null,{"$f":"(Sammlungsverzeichnis!Y20)","v":0},null,{"$f":"(Sammlungsverzeichnis!M21)","v":0},null,{"$f":"(Sammlungsverzeichnis!Y21)","v":0},null,{"$f":"(Sammlungsverzeichnis!M22)","v":0},null,{"$f":"(Sammlungsverzeichnis!Y22)","v":0}]
[null,{"$f":"(Sammlungsverzeichnis!N16)","v":0},null,null,null,{"$f":"(Sammlungsverzeichnis!N17)","v":0},null,null,null,{"$f":"(Sammlungsverzeichnis!N18)","v":0},null,null,null,{"$f":"(Sammlungsverzeichnis!N19)","v":0},null,null,null,{"$f":"(Sammlungsverzeichnis!N20)","v":0},null,null,null,{"$f":"(Sammlungsverzeichnis!N21)","v":0},null,null,null,{"$f":"(Sammlungsverzeichnis!N22)","v":0}]
[null,{"$f":"(Sammlungsverzeichnis!O16)","v":0},null,null,null,{"$f":"(Sammlungsverzeichnis!O17)","v":0},null,null,null,{"$f":"(Sammlungsverzeichnis!O18)","v":0},null,null,null,{"$f":"(Sammlungsverzeichnis!O19)","v":0},null,null,null,{"$f":"(Sammlungsverzeichnis!O20)","v":0},null,null,null,{"$f":"(Sammlungsverzeichnis!O21)","v":0},null,null,null,{"$f":"(Sammlungsverzeichnis!O22)","v":0}]
[null,{"$f":"(Sammlungsverzeichnis!P16)","v":0},null,null,null,{"$f":"(Sammlungsverzeichnis!P17)","v":0},null,null,null,{"$f":"(Sammlungsverzeichnis!P18)","v":0},null,null,null,{"$f":"(Sammlungsverzeichnis!P19)","v":0},null,null,null,{"$f":"(Sammlungsverzeichnis!P20)","v":0},null,null,null,{"$f":"(Sammlungsverzeichnis!P21)","v":0},null,null,null,{"$f":"(Sammlungsverzeichnis!P22)","v":0}]
[null,{"$f":"(Sammlungsverzeichnis!Q16)","v":0},{"$f":"(Sammlungsverzeichnis!W16)","v":0},null,null,{"$f":"(Sammlungsverzeichnis!Q17)","v":0},{"$f":"(Sammlungsverzeichnis!W17)","v":0},null,null,{"$f":"(Sammlungsverzeichnis!Q18)","v":0},{"$f":"(Sammlungsverzeichnis!W18)","v":0},null,null,{"$f":"(Sammlungsverzeichnis!Q19)","v":0},{"$f":"(Sammlungsverzeichnis!W19)","v":0},null,null,{"$f":"(Sammlungsverzeichnis!Q20)","v":0},{"$f":"(Sammlungsverzeichnis!W20)","v":0},null,null,{"$f":"(Sammlungsverzeichnis!Q21)","v":0},{"$f":"(Sammlungsverzeichnis!W21)","v":0},null,null,{"$f":"(Sammlungsverzeichnis!Q22)","v":0},{"$f":"(Sammlungsverzeichnis!W22)","v":0}]
[]
[null,{"$f":"(Sammlungsverzeichnis!S16)","v":0},null,null,null,{"$f":"(Sammlungsverzeichnis!S17)","v":0},null,null,null,{"$f":"(Sammlungsverzeichnis!S18)","v":0},null,null,null,{"$f":"(Sammlungsverzeichnis!S19)","v":0},null,null,null,{"$f":"(Sammlungsverzeichnis!S20)","v":0},null,null,null,{"$f":"(Sammlungsverzeichnis!S21)","v":0},null,null,null,{"$f":"(Sammlungsverzeichnis!S22)","v":0}]
[]
[null,{"$f":"(Sammlungsverzeichnis!C23)","v":0},null,{"$f":"(Sammlungsverzeichnis!E23)","v":0},null,{"$f":"(Sammlungsverzeichnis!C24)","v":0},null,{"$f":"(Sammlungsverzeichnis!E24)","v":0},null,{"$f":"(Sammlungsverzeichnis!C25)","v":0},null,{"$f":"(Sammlungsverzeichnis!E25)","v":0},null,{"$f":"(Sammlungsverzeichnis!C26)","v":0},null,{"$f":"(Sammlungsverzeichnis!E26)","v":0},null,{"$f":"(Sammlungsverzeichnis!C27)","v":0},null,{"$f":"(Sammlungsverzeichnis!E27)","v":0},null,{"$f":"(Sammlungsverzeichnis!C28)","v":0},null,{"$f":"(Sammlungsverzeichnis!E28)","v":0},null,{"$f":"(Sammlungsverzeichnis!C29)","v":0},null,{"$f":"(Sammlungsverzeichnis!E29)","v":0}]
[null,{"$f":"IF(Sammlungsverzeichnis!D23=0, Sammlungsverzeichnis!T23, Sammlungsverzeichnis!D23)","v":"00:00:00"},null,{"$f":"(Sammlungsverzeichnis!U23)","v":0},null,{"$f":"IF(Sammlungsverzeichnis!D24=0, Sammlungsverzeichnis!T24, Sammlungsverzeichnis!D24)","v":"00:00:00"},null,{"$f":"(Sammlungsverzeichnis!U24)","v":0},null,{"$f":"IF(Sammlungsverzeichnis!D25=0, Sammlungsverzeichnis!T25, Sammlungsverzeichnis!D25)","v":"00:00:00"},null,{"$f":"(Sammlungsverzeichnis!U25)","v":0},null,{"$f":"IF(Sammlungsverzeichnis!D26=0, Sammlungsverzeichnis!T26, Sammlungsverzeichnis!D26)","v":"00:00:00"},null,{"$f":"(Sammlungsverzeichnis!U26)","v":0},null,{"$f":"IF(Sammlungsverzeichnis!D27=0, Sammlungsverzeichnis!T27, Sammlungsverzeichnis!D27)","v":"00:00:00"},null,{"$f":"(Sammlungsverzeichnis!U27)","v":0},null,{"$f":"IF(Sammlungsverzeichnis!D28=0, Sammlungsverzeichnis!T28, Sammlungsverzeichnis!D28)","v":"00:00:00"},null,{"$f":"(Sammlungsverzeichnis!U28)","v":0},null,{"$f":"IF(Sammlungsverzeichnis!D29=0, Sammlungsverzeichnis!T29, Sammlungsverzeichnis!D29)","v":"00:00:00"},null,{"$f":"(Sammlungsverzeichnis!U29)","v":0}]
[null,{"$f":"(Sammlungsverzeichnis!V23)","v":"00:00:00"},null,null,null,{"$f":"(Sammlungsverzeichnis!V24)","v":"00:00:00"},null,null,null,{"$f":"(Sammlungsverzeichnis!V25)","v":"00:00:00"},null,null,null,{"$f":"(Sammlungsverzeichnis!V26)","v":"00:00:00"},null,null,null,{"$f":"(Sammlungsverzeichnis!V27)","v":"00:00:00"},null,null,null,{"$f":"(Sammlungsverzeichnis!V28)","v":"00:00:00"},null,null,null,{"$f":"(Sammlungsverzeichnis!V29)","v":"00:00:00"}]
[null,{"$f":"(Sammlungsverzeichnis!R23)","v":0},null,null,null,{"$f":"(Sammlungsverzeichnis!R24)","v":0},null,null,null,{"$f":"(Sammlungsverzeichnis!R25)","v":0},null,null,null,{"$f":"(Sammlungsverzeichnis!R26)","v":0},null,null,null,{"$f":"(Sammlungsverzeichnis!R27)","v":0},null,null,null,{"$f":"(Sammlungsverzeichnis!R28)","v":0},null,null,null,{"$f":"(Sammlungsverzeichnis!R29)","v":0}]
[null,{"$f":"(Sammlungsverzeichnis!E3&\" \"&Sammlungsverzeichnis!C3&\" \"&Sammlungsverzeichnis!C4)","v":"col.  Max Mustermann"},null,null,null,{"$f":"(Sammlungsverzeichnis!E3&\" \"&Sammlungsverzeichnis!C3&\" \"&Sammlungsverzeichnis!C4)","v":"col.  Max Mustermann"},null,null,null,{"$f":"(Sammlungsverzeichnis!E3&\" \"&Sammlungsverzeichnis!C3&\" \"&Sammlungsverzeichnis!C4)","v":"col.  Max Mustermann"},null,null,null,{"$f":"(Sammlungsverzeichnis!E3&\" \"&Sammlungsverzeichnis!C3&\" \"&Sammlungsverzeichnis!C4)","v":"col.  Max Mustermann"},null,null,null,{"$f":"(Sammlungsverzeichnis!E3&\" \"&Sammlungsverzeichnis!C3&\" \"&Sammlungsverzeichnis!C4)","v":"col.  Max Mustermann"},null,null,null,{"$f":"(Sammlungsverzeichnis!E3&\" \"&Sammlungsverzeichnis!C3&\" \"&Sammlungsverzeichnis!C4)","v":"col.  Max Mustermann"},null,null,null,{"$f":"(Sammlungsverzeichnis!E3&\" \"&Sammlungsverzeichnis!C3&\" \"&Sammlungsverzeichnis!C4)","v":"col.  Max Mustermann"}]
[]
[null,{"$f":"(Sammlungsverzeichnis!M23)","v":0},null,{"$f":"(Sammlungsverzeichnis!Y23)","v":0},null,{"$f":"(Sammlungsverzeichnis!M24)","v":0},null,{"$f":"(Sammlungsverzeichnis!Y24)","v":0},null,{"$f":"(Sammlungsverzeichnis!M25)","v":0},null,{"$f":"(Sammlungsverzeichnis!Y25)","v":0},null,{"$f":"(Sammlungsverzeichnis!M26)","v":0},null,{"$f":"(Sammlungsverzeichnis!Y26)","v":0},null,{"$f":"(Sammlungsverzeichnis!M27)","v":0},null,{"$f":"(Sammlungsverzeichnis!Y27)","v":0},null,{"$f":"(Sammlungsverzeichnis!M28)","v":0},null,{"$f":"(Sammlungsverzeichnis!Y28)","v":0},null,{"$f":"(Sammlungsverzeichnis!M29)","v":0},null,{"$f":"(Sammlungsverzeichnis!Y29)","v":0}]
[null,{"$f":"(Sammlungsverzeichnis!N23)","v":0},null,null,null,{"$f":"(Sammlungsverzeichnis!N24)","v":0},null,null,null,{"$f":"(Sammlungsverzeichnis!N25)","v":0},null,null,null,{"$f":"(Sammlungsverzeichnis!N26)","v":0},null,null,null,{"$f":"(Sammlungsverzeichnis!N27)","v":0},null,null,null,{"$f":"(Sammlungsverzeichnis!N28)","v":0},null,null,null,{"$f":"(Sammlungsverzeichnis!N29)","v":0}]
[null,{"$f":"(Sammlungsverzeichnis!O23)","v":0},null,null,null,{"$f":"(Sammlungsverzeichnis!O24)","v":0},null,null,null,{"$f":"(Sammlungsverzeichnis!O25)","v":0},null,null,null,{"$f":"(Sammlungsverzeichnis!O26)","v":0},null,null,null,{"$f":"(Sammlungsverzeichnis!O27)","v":0},null,null,null,{"$f":"(Sammlungsverzeichnis!O28)","v":0},null,null,null,{"$f":"(Sammlungsverzeichnis!O29)","v":0}]
[null,{"$f":"(Sammlungsverzeichnis!P23)","v":0},null,null,null,{"$f":"(Sammlungsverzeichnis!P24)","v":0},null,null,null,{"$f":"(Sammlungsverzeichnis!P25)","v":0},null,null,null,{"$f":"(Sammlungsverzeichnis!P26)","v":0},null,null,null,{"$f":"(Sammlungsverzeichnis!P27)","v":0},null,null,null,{"$f":"(Sammlungsverzeichnis!P28)","v":0},null,null,null,{"$f":"(Sammlungsverzeichnis!P29)","v":0}]
[null,{"$f":"(Sammlungsverzeichnis!Q23)","v":0},{"$f":"(Sammlungsverzeichnis!W23)","v":0},null,null,{"$f":"(Sammlungsverzeichnis!Q24)","v":0},{"$f":"(Sammlungsverzeichnis!W24)","v":0},null,null,{"$f":"(Sammlungsverzeichnis!Q25)","v":0},{"$f":"(Sammlungsverzeichnis!W25)","v":0},null,null,{"$f":"(Sammlungsverzeichnis!Q26)","v":0},{"$f":"(Sammlungsverzeichnis!W26)","v":0},null,null,{"$f":"(Sammlungsverzeichnis!Q27)","v":0},{"$f":"(Sammlungsverzeichnis!W27)","v":0},null,null,{"$f":"(Sammlungsverzeichnis!Q28)","v":0},{"$f":"(Sammlungsverzeichnis!W28)","v":0},null,null,{"$f":"(Sammlungsverzeichnis!Q29)","v":0},{"$f":"(Sammlungsverzeichnis!W29)","v":0}]
[]
[null,{"$f":"(Sammlungsverzeichnis!S23)","v":0},null,null,null,{"$f":"(Sammlungsverzeichnis!S24)","v":0},null,null,null,{"$f":"(Sammlungsverzeichnis!S25)","v":0},null,null,null,{"$f":"(Sammlungsverzeichnis!S26)","v":0},null,null,null,{"$f":"(Sammlungsverzeichnis!S27)","v":0},null,null,null,{"$f":"(Sammlungsverzeichnis!S28)","v":0},null,null,null,{"$f":"(Sammlungsverzeichnis!S29)","v":0}]
[]
[null,{"$f":"(Sammlungsverzeichnis!C30)","v":0},null,{"$f":"(Sammlungsverzeichnis!E30)","v":0},null,{"$f":"(Sammlungsverzeichnis!C31)","v":0},null,{"$f":"(Sammlungsverzeichnis!E31)","v":0},null,{"$f":"(Sammlungsverzeichnis!C32)","v":0},null,{"$f":"(Sammlungsverzeichnis!E32)","v":0},null,{"$f":"(Sammlungsverzeichnis!C33)","v":0},null,{"$f":"(Sammlungsverzeichnis!E32)","v":0},null,{"$f":"(Sammlungsverzeichnis!C34)","v":0},null,{"$f":"(Sammlungsverzeichnis!E34)","v":0},null,{"$f":"(Sammlungsverzeichnis!C35)","v":0},null,{"$f":"(Sammlungsverzeichnis!E35)","v":0},null,{"$f":"(Sammlungsverzeichnis!C36)","v":0},null,{"$f":"(Sammlungsverzeichnis!E36)","v":0}]
[null,{"$f":"IF(Sammlungsverzeichnis!D30=0, Sammlungsverzeichnis!T30, Sammlungsverzeichnis!D30)","v":"00:00:00"},null,{"$f":"(Sammlungsverzeichnis!U30)","v":0},null,{"$f":"IF(Sammlungsverzeichnis!D31=0, Sammlungsverzeichnis!T31, Sammlungsverzeichnis!D31)","v":"00:00:00"},null,{"$f":"(Sammlungsverzeichnis!U31)","v":0},null,{"$f":"IF(Sammlungsverzeichnis!D32=0, Sammlungsverzeichnis!T32, Sammlungsverzeichnis!D32)","v":"00:00:00"},null,{"$f":"(Sammlungsverzeichnis!U32)","v":0},null,{"$f":"IF(Sammlungsverzeichnis!D33=0, Sammlungsverzeichnis!T33, Sammlungsverzeichnis!D33)","v":"00:00:00"},null,{"$f":"(Sammlungsverzeichnis!U33)","v":0},null,{"$f":"IF(Sammlungsverzeichnis!D34=0, Sammlungsverzeichnis!T34, Sammlungsverzeichnis!D34)","v":"00:00:00"},null,{"$f":"(Sammlungsverzeichnis!U34)","v":0},null,{"$f":"IF(Sammlungsverzeichnis!D35=0, Sammlungsverzeichnis!T35, Sammlungsverzeichnis!D35)","v":"00:00:00"},null,{"$f":"(Sammlungsverzeichnis!U35)","v":0},null,{"$f":"IF(Sammlungsverzeichnis!D36=0, Sammlungsverzeichnis!T36, Sammlungsverzeichnis!D36)","v":"00:00:00"},null,{"$f":"(Sammlungsverzeichnis!U36)","v":0}]
[null,{"$f":"(Sammlungsverzeichnis!V30)","v":"00:00:00"},null,null,null,{"$f":"(Sammlungsverzeichnis!V31)","v":"00:00:00"},null,null,null,{"$f":"(Sammlungsverzeichnis!V32)","v":"00:00:00"},null,null,null,{"$f":"(Sammlungsverzeichnis!V33)","v":"00:00:00"},null,null,null,{"$f":"(Sammlungsverzeichnis!V34)","v":"00:00:00"},null,null,null,{"$f":"(Sammlungsverzeichnis!V35)","v":"00:00:00"},null,null,null,{"$f":"(Sammlungsverzeichnis!V36)","v":"00:00:00"}]
[null,{"$f":"(Sammlungsverzeichnis!R30)","v":0},null,null,null,{"$f":"(Sammlungsverzeichnis!R31)","v":0},null,null,null,{"$f":"(Sammlungsverzeichnis!R32)","v":0},null,null,null,{"$f":"(Sammlungsverzeichnis!R33)","v":0},null,null,null,{"$f":"(Sammlungsverzeichnis!R34)","v":0},null,null,null,{"$f":"(Sammlungsverzeichnis!R35)","v":0},null,null,null,{"$f":"(Sammlungsverzeichnis!R36)","v":0}]
[null,{"$f":"(Sammlungsverzeichnis!E3&\" \"&Sammlungsverzeichnis!C3&\" \"&Sammlungsverzeichnis!C4)","v":"col.  Max Mustermann"},null,null,null,{"$f":"(Sammlungsverzeichnis!E3&\" \"&Sammlungsverzeichnis!C3&\" \"&Sammlungsverzeichnis!C4)","v":"col.  Max Mustermann"},null,null,null,{"$f":"(Sammlungsverzeichnis!E3&\" \"&Sammlungsverzeichnis!C3&\" \"&Sammlungsverzeichnis!C4)","v":"col.  Max Mustermann"},null,null,null,{"$f":"(Sammlungsverzeichnis!E3&\" \"&Sammlungsverzeichnis!C3&\" \"&Sammlungsverzeichnis!C4)","v":"col.  Max Mustermann"},null,null,null,{"$f":"(Sammlungsverzeichnis!E3&\" \"&Sammlungsverzeichnis!C3&\" \"&Sammlungsverzeichnis!C4)","v":"col.  Max Mustermann"},null,null,null,{"$f":"(Sammlungsverzeichnis!E3&\" \"&Sammlungsverzeichnis!C3&\" \"&Sammlungsverzeichnis!C4)","v":"col.  Max Mustermann"},null,null,null,{"$f":"(Sammlungsverzeichnis!E3&\" \"&Sammlungsverzeichnis!C3&\" \"&Sammlungsverzeichnis!C4)","v":"col.  Max Mustermann"}]
[]
[null,{"$f":"(Sammlungsverzeichnis!M30)","v":0},null,{"$f":"(Sammlungsverzeichnis!Y30)","v":0},null,{"$f":"(Sammlungsverzeichnis!M31)","v":0},null,{"$f":"(Sammlungsverzeichnis!Y31)","v":0},null,{"$f":"(Sammlungsverzeichnis!M32)","v":0},null,{"$f":"(Sammlungsverzeichnis!Y32)","v":0},null,{"$f":"(Sammlungsverzeichnis!M33)","v":0},null,{"$f":"(Sammlungsverzeichnis!Y33)","v":0},null,{"$f":"(Sammlungsverzeichnis!M34)","v":0},null,{"$f":"(Sammlungsverzeichnis!Y34)","v":0},null,{"$f":"(Sammlungsverzeichnis!M35)","v":0},null,{"$f":"(Sammlungsverzeichnis!Y35)","v":0},null,{"$f":"(Sammlungsverzeichnis!M36)","v":0},null,{"$f":"(Sammlungsverzeichnis!Y36)","v":0}]
[null,{"$f":"(Sammlungsverzeichnis!N30)","v":0},null,null,null,{"$f":"(Sammlungsverzeichnis!N31)","v":0},null,null,null,{"$f":"(Sammlungsverzeichnis!N32)","v":0},null,null,null,{"$f":"(Sammlungsverzeichnis!N33)","v":0},null,null,null,{"$f":"(Sammlungsverzeichnis!N34)","v":0},null,null,null,{"$f":"(Sammlungsverzeichnis!N35)","v":0},null,null,null,{"$f":"(Sammlungsverzeichnis!N36)","v":0}]
[null,{"$f":"(Sammlungsverzeichnis!O30)","v":0},null,null,null,{"$f":"(Sammlungsverzeichnis!O31)","v":0},null,null,null,{"$f":"(Sammlungsverzeichnis!O32)","v":0},null,null,null,{"$f":"(Sammlungsverzeichnis!O33)","v":0},null,null,null,{"$f":"(Sammlungsverzeichnis!O34)","v":0},null,null,null,{"$f":"(Sammlungsverzeichnis!O35)","v":0},null,null,null,{"$f":"(Sammlungsverzeichnis!O36)","v":0}]
[null,{"$f":"(Sammlungsverzeichnis!P30)","v":0},null,null,null,{"$f":"(Sammlungsverzeichnis!P31)","v":0},null,null,null,{"$f":"(Sammlungsverzeichnis!P32)","v":0},null,null,null,{"$f":"(Sammlungsverzeichnis!P33)","v":0},null,null,null,{"$f":"(Sammlungsverzeichnis!P34)","v":0},null,null,null,{"$f":"(Sammlungsverzeichnis!P35)","v":0},null,null,null,{"$f":"(Sammlungsverzeichnis!P36)","v":0}]
[null,{"$f":"(Sammlungsverzeichnis!Q30)","v":0},{"$f":"(Sammlungsverzeichnis!W30)","v":0},null,null,{"$f":"(Sammlungsverzeichnis!Q31)","v":0},{"$f":"(Sammlungsverzeichnis!W31)","v":0},null,null,{"$f":"(Sammlungsverzeichnis!Q32)","v":0},{"$f":"(Sammlungsverzeichnis!W32)","v":0},null,null,{"$f":"(Sammlungsverzeichnis!Q33)","v":0},{"$f":"(Sammlungsverzeichnis!W33)","v":0},null,null,{"$f":"(Sammlungsverzeichnis!Q34)","v":0},{"$f":"(Sammlungsverzeichnis!W34)","v":0},null,null,{"$f":"(Sammlungsverzeichnis!Q35)","v":0},{"$f":"(Sammlungsverzeichnis!W35)","v":0},null,null,{"$f":"(Sammlungsverzeichnis!Q36)","v":0},{"$f":"(Sammlungsverzeichnis!W36)","v":0}]
[]
[null,{"$f":"(Sammlungsverzeichnis!S30)","v":0},null,null,null,{"$f":"(Sammlungsverzeichnis!S31)","v":0},null,null,null,{"$f":"(Sammlungsverzeichnis!S32)","v":0},null,null,null,{"$f":"(Sammlungsverzeichnis!S33)","v":0},null,null,null,{"$f":"(Sammlungsverzeichnis!S34)","v":0},null,null,null,{"$f":"(Sammlungsverzeichnis!S35)","v":0},null,null,null,{"$f":"(Sammlungsverzeichnis!S36)","v":0}]
[]
[null,{"$f":"(Sammlungsverzeichnis!C37)","v":0},null,{"$f":"(Sammlungsverzeichnis!E37)","v":0},null,{"$f":"(Sammlungsverzeichnis!C38)","v":0},null,{"$f":"(Sammlungsverzeichnis!E38)","v":0},null,{"$f":"(Sammlungsverzeichnis!C39)","v":0},null,{"$f":"(Sammlungsverzeichnis!E39)","v":0},null,{"$f":"(Sammlungsverzeichnis!C40)","v":0},null,{"$f":"(Sammlungsverzeichnis!E40)","v":0},null,{"$f":"(Sammlungsverzeichnis!C41)","v":0},null,{"$f":"(Sammlungsverzeichnis!E41)","v":0},null,{"$f":"(Sammlungsverzeichnis!C42)","v":0},null,{"$f":"(Sammlungsverzeichnis!E42)","v":0},null,{"$f":"(Sammlungsverzeichnis!C43)","v":0},null,{"$f":"(Sammlungsverzeichnis!E43)","v":0}]
[null,{"$f":"IF(Sammlungsverzeichnis!D37=0, Sammlungsverzeichnis!T37, Sammlungsverzeichnis!D37)","v":"00:00:00"},null,{"$f":"(Sammlungsverzeichnis!U37)","v":0},null,{"$f":"IF(Sammlungsverzeichnis!D38=0, Sammlungsverzeichnis!T38, Sammlungsverzeichnis!D38)","v":"00:00:00"},null,{"$f":"(Sammlungsverzeichnis!U38)","v":0},null,{"$f":"IF(Sammlungsverzeichnis!D39=0, Sammlungsverzeichnis!T39, Sammlungsverzeichnis!D39)","v":"00:00:00"},null,{"$f":"(Sammlungsverzeichnis!U39)","v":0},null,{"$f":"IF(Sammlungsverzeichnis!D40=0, Sammlungsverzeichnis!T40, Sammlungsverzeichnis!D40)","v":"00:00:00"},null,{"$f":"(Sammlungsverzeichnis!U40)","v":0},null,{"$f":"IF(Sammlungsverzeichnis!D41=0, Sammlungsverzeichnis!T41, Sammlungsverzeichnis!D41)","v":"00:00:00"},null,{"$f":"(Sammlungsverzeichnis!U41)","v":0},null,{"$f":"IF(Sammlungsverzeichnis!D42=0, Sammlungsverzeichnis!T42, Sammlungsverzeichnis!D42)","v":"00:00:00"},null,{"$f":"(Sammlungsverzeichnis!U42)","v":0},null,{"$f":"IF(Sammlungsverzeichnis!D43=0, Sammlungsverzeichnis!T43, Sammlungsverzeichnis!D43)","v":"00:00:00"},null,{"$f":"(Sammlungsverzeichnis!U43)","v":0}]
[null,{"$f":"(Sammlungsverzeichnis!V37)","v":"00:00:00"},null,null,null,{"$f":"(Sammlungsverzeichnis!V38)","v":"00:00:00"},null,null,null,{"$f":"(Sammlungsverzeichnis!V39)","v":"00:00:00"},null,null,null,{"$f":"(Sammlungsverzeichnis!V40)","v":"00:00:00"},null,null,null,{"$f":"(Sammlungsverzeichnis!V41)","v":"00:00:00"},null,null,null,{"$f":"(Sammlungsverzeichnis!V42)","v":"00:00:00"},null,null,null,{"$f":"(Sammlungsverzeichnis!V43)","v":"00:00:00"}]
[null,{"$f":"(Sammlungsverzeichnis!R37)","v":0},null,null,null,{"$f":"(Sammlungsverzeichnis!R38)","v":0},null,null,null,{"$f":"(Sammlungsverzeichnis!R39)","v":0},null,null,null,{"$f":"(Sammlungsverzeichnis!R40)","v":0},null,null,null,{"$f":"(Sammlungsverzeichnis!R41)","v":0},null,null,null,{"$f":"(Sammlungsverzeichnis!R42)","v":0},null,null,null,{"$f":"(Sammlungsverzeichnis!R43)","v":0}]
[null,{"$f":"(Sammlungsverzeichnis!E3&\" \"&Sammlungsverzeichnis!C3&\" \"&Sammlungsverzeichnis!C4)","v":"col.  Max Mustermann"},null,null,null,{"$f":"(Sammlungsverzeichnis!E3&\" \"&Sammlungsverzeichnis!C3&\" \"&Sammlungsverzeichnis!C4)","v":"col.  Max Mustermann"},null,null,null,{"$f":"(Sammlungsverzeichnis!E3&\" \"&Sammlungsverzeichnis!C3&\" \"&Sammlungsverzeichnis!C4)","v":"col.  Max Mustermann"},null,null,null,{"$f":"(Sammlungsverzeichnis!E3&\" \"&Sammlungsverzeichnis!C3&\" \"&Sammlungsverzeichnis!C4)","v":"col.  Max Mustermann"},null,null,null,{"$f":"(Sammlungsverzeichnis!E3&\" \"&Sammlungsverzeichnis!C3&\" \"&Sammlungsverzeichnis!C4)","v":"col.  Max Mustermann"},null,null,null,{"$f":"(Sammlungsverzeichnis!E3&\" \"&Sammlungsverzeichnis!C3&\" \"&Sammlungsverzeichnis!C4)","v":"col.  Max Mustermann"},null,null,null,{"$f":"(Sammlungsverzeichnis!E3&\" \"&Sammlungsverzeichnis!C3&\" \"&Sammlungsverzeichnis!C4)","v":"col.  Max Mustermann"}]
[]
[null,{"$f":"(Sammlungsverzeichnis!M37)","v":0},null,{"$f":"(Sammlungsverzeichnis!Y37)","v":0},null,{"$f":"(Sammlungsverzeichnis!M38)","v":0},null,{"$f":"(Sammlungsverzeichnis!Y38)","v":0},null,{"$f":"(Sammlungsverzeichnis!M39)","v":0},null,{"$f":"(Sammlungsverzeichnis!Y39)","v":0},null,{"$f":"(Sammlungsverzeichnis!M40)","v":0},null,{"$f":"(Sammlungsverzeichnis!Y40)","v":0},null,{"$f":"(Sammlungsverzeichnis!M41)","v":0},null,{"$f":"(Sammlungsverzeichnis!Y41)","v":0},null,{"$f":"(Sammlungsverzeichnis!M42)","v":0},null,{"$f":"(Sammlungsverzeichnis!Y42)","v":0},null,{"$f":"(Sammlungsverzeichnis!M43)","v":0},null,{"$f":"(Sammlungsverzeichnis!Y43)","v":0}]
[null,{"$f":"(Sammlungsverzeichnis!N37)","v":0},null,null,null,{"$f":"(Sammlungsverzeichnis!N38)","v":0},null,null,null,{"$f":"(Sammlungsverzeichnis!N39)","v":0},null,null,null,{"$f":"(Sammlungsverzeichnis!N40)","v":0},null,null,null,{"$f":"(Sammlungsverzeichnis!N41)","v":0},null,null,null,{"$f":"(Sammlungsverzeichnis!N42)","v":0},null,null,null,{"$f":"(Sammlungsverzeichnis!N43)","v":0}]
[null,{"$f":"(Sammlungsverzeichnis!O37)","v":0},null,null,null,{"$f":"(Sammlungsverzeichnis!O38)","v":0},null,null,null,{"$f":"(Sammlungsverzeichnis!O39)","v":0},null,null,null,{"$f":"(Sammlungsverzeichnis!O40)","v":0},null,null,null,{"$f":"(Sammlungsverzeichnis!O41)","v":0},null,null,null,{"$f":"(Sammlungsverzeichnis!O42)","v":0},null,null,null,{"$f":"(Sammlungsverzeichnis!O43)","v":0}]
[null,{"$f":"(Sammlungsverzeichnis!P37)","v":0},null,null,null,{"$f":"(Sammlungsverzeichnis!P38)","v":0},null,null,null,{"$f":"(Sammlungsverzeichnis!P39)","v":0},null,null,null,{"$f":"(Sammlungsverzeichnis!P40)","v":0},null,null,null,{"$f":"(Sammlungsverzeichnis!P41)","v":0},null,null,null,{"$f":"(Sammlungsverzeichnis!P42)","v":0},null,null,null,{"$f":"(Sammlungsverzeichnis!P43)","v":0}]
[null,{"$f":"(Sammlungsverzeichnis!Q37)","v":0},{"$f":"(Sammlungsverzeichnis!W37)","v":0},null,null,{"$f":"(Sammlungsverzeichnis!Q38)","v":0},{"$f":"(Sammlungsverzeichnis!W38)","v":0},null,null,{"$f":"(Sammlungsverzeichnis!Q39)","v":0},{"$f":"(Sammlungsverzeichnis!W39)","v":0},null,null,{"$f":"(Sammlungsverzeichnis!Q40)","v":0},{"$f":"(Sammlungsverzeichnis!W40)","v":0},null,null,{"$f":"(Sammlungsverzeichnis!Q41)","v":0},{"$f":"(Sammlungsverzeichnis!W41)","v":0},null,null,{"$f":"(Sammlungsverzeichnis!Q42)","v":0},{"$f":"(Sammlungsverzeichnis!W42)","v":0},null,null,{"$f":"(Sammlungsverzeichnis!Q43)","v":0},{"$f":"(Sammlungsverzeichnis!W43)","v":0}]
[]
[null,{"$f":"(Sammlungsverzeichnis!S37)","v":0},null,null,null,{"$f":"(Sammlungsverzeichnis!S38)","v":0},null,null,null,{"$f":"(Sammlungsverzeichnis!S39)","v":0},null,null,null,{"$f":"(Sammlungsverzeichnis!S40)","v":0},null,null,null,{"$f":"(Sammlungsverzeichnis!S41)","v":0},null,null,null,{"$f":"(Sammlungsverzeichnis!S42)","v":0},null,null,null,{"$f":"(Sammlungsverzeichnis!S43)","v":0}]
[]
[null,{"$f":"(Sammlungsverzeichnis!C44)","v":0},null,{"$f":"(Sammlungsverzeichnis!E44)","v":0},null,{"$f":"(Sammlungsverzeichnis!C45)","v":0},null,{"$f":"(Sammlungsverzeichnis!E45)","v":0},null,{"$f":"(Sammlungsverzeichnis!C46)","v":0},null,{"$f":"(Sammlungsverzeichnis!E46)","v":0},null,{"$f":"(Sammlungsverzeichnis!C47)","v":0},null,{"$f":"(Sammlungsverzeichnis!E47)","v":0},null,{"$f":"(Sammlungsverzeichnis!C48)","v":0},null,{"$f":"(Sammlungsverzeichnis!E48)","v":0},null,{"$f":"(Sammlungsverzeichnis!C49)","v":0},null,{"$f":"(Sammlungsverzeichnis!E49)","v":0},null,{"$f":"(Sammlungsverzeichnis!C50)","v":0},null,{"$f":"(Sammlungsverzeichnis!E50)","v":0}]
[null,{"$f":"IF(Sammlungsverzeichnis!D44=0, Sammlungsverzeichnis!T44, Sammlungsverzeichnis!D44)","v":"00:00:00"},null,{"$f":"(Sammlungsverzeichnis!U44)","v":0},null,{"$f":"IF(Sammlungsverzeichnis!D45=0, Sammlungsverzeichnis!T45, Sammlungsverzeichnis!D45)","v":"00:00:00"},null,{"$f":"(Sammlungsverzeichnis!U45)","v":0},null,{"$f":"IF(Sammlungsverzeichnis!D46=0, Sammlungsverzeichnis!T46, Sammlungsverzeichnis!D46)","v":"00:00:00"},null,{"$f":"(Sammlungsverzeichnis!U46)","v":0},null,{"$f":"IF(Sammlungsverzeichnis!D47=0, Sammlungsverzeichnis!T47, Sammlungsverzeichnis!D47)","v":"00:00:00"},null,{"$f":"(Sammlungsverzeichnis!U47)","v":0},null,{"$f":"IF(Sammlungsverzeichnis!D48=0, Sammlungsverzeichnis!T48, Sammlungsverzeichnis!D48)","v":"00:00:00"},null,{"$f":"(Sammlungsverzeichnis!U48)","v":0},null,{"$f":"IF(Sammlungsverzeichnis!D49=0, Sammlungsverzeichnis!T49, Sammlungsverzeichnis!D49)","v":"00:00:00"},null,{"$f":"(Sammlungsverzeichnis!U49)","v":0},null,{"$f":"IF(Sammlungsverzeichnis!D50=0, Sammlungsverzeichnis!T50, Sammlungsverzeichnis!D50)","v":"00:00:00"},null,{"$f":"(Sammlungsverzeichnis!U50)","v":0}]
[null,{"$f":"(Sammlungsverzeichnis!V44)","v":"00:00:00"},null,null,null,{"$f":"(Sammlungsverzeichnis!V45)","v":"00:00:00"},null,null,null,{"$f":"(Sammlungsverzeichnis!V46)","v":"00:00:00"},null,null,null,{"$f":"(Sammlungsverzeichnis!V47)","v":"00:00:00"},null,null,null,{"$f":"(Sammlungsverzeichnis!V48)","v":"00:00:00"},null,null,null,{"$f":"(Sammlungsverzeichnis!V49)","v":"00:00:00"},null,null,null,{"$f":"(Sammlungsverzeichnis!V50)","v":"00:00:00"}]
[null,{"$f":"(Sammlungsverzeichnis!R44)","v":0},null,null,null,{"$f":"(Sammlungsverzeichnis!R45)","v":0},null,null,null,{"$f":"(Sammlungsverzeichnis!R46)","v":0},null,null,null,{"$f":"(Sammlungsverzeichnis!R47)","v":0},null,null,null,{"$f":"(Sammlungsverzeichnis!R48)","v":0},null,null,null,{"$f":"(Sammlungsverzeichnis!R49)","v":0},null,null,null,{"$f":"(Sammlungsverzeichnis!R50)","v":0}]
[null,{"$f":"(Sammlungsverzeichnis!E3&\" \"&Sammlungsverzeichnis!C3&\" \"&Sammlungsverzeichnis!C4)","v":"col.  Max Mustermann"},null,null,null,{"$f":"(Sammlungsverzeichnis!E3&\" \"&Sammlungsverzeichnis!C3&\" \"&Sammlungsverzeichnis!C4)","v":"col.  Max Mustermann"},null,null,null,{"$f":"(Sammlungsverzeichnis!E3&\" \"&Sammlungsverzeichnis!C3&\" \"&Sammlungsverzeichnis!C4)","v":"col.  Max Mustermann"},null,null,null,{"$f":"(Sammlungsverzeichnis!E3&\" \"&Sammlungsverzeichnis!C3&\" \"&Sammlungsverzeichnis!C4)","v":"col.  Max Mustermann"},null,null,null,{"$f":"(Sammlungsverzeichnis!E3&\" \"&Sammlungsverzeichnis!C3&\" \"&Sammlungsverzeichnis!C4)","v":"col.  Max Mustermann"},null,null,null,{"$f":"(Sammlungsverzeichnis!E3&\" \"&Sammlungsverzeichnis!C3&\" \"&Sammlungsverzeichnis!C4)","v":"col.  Max Mustermann"},null,null,null,{"$f":"(Sammlungsverzeichnis!E3&\" \"&Sammlungsverzeichnis!C3&\" \"&Sammlungsverzeichnis!C4)","v":"col.  Max Mustermann"}]
[]
[null,{"$f":"(Sammlungsverzeichnis!M44)","v":0},null,{"$f":"(Sammlungsverzeichnis!Y44)","v":0},null,{"$f":"(Sammlungsverzeichnis!M45)","v":0},null,{"$f":"(Sammlungsverzeichnis!Y45)","v":0},null,{"$f":"(Sammlungsverzeichnis!M46)","v":0},null,{"$f":"(Sammlungsverzeichnis!Y46)","v":0},null,{"$f":"(Sammlungsverzeichnis!M47)","v":0},null,{"$f":"(Sammlungsverzeichnis!Y47)","v":0},null,{"$f":"(Sammlungsverzeichnis!M48)","v":0},null,{"$f":"(Sammlungsverzeichnis!Y48)","v":0},null,{"$f":"(Sammlungsverzeichnis!M49)","v":0},null,{"$f":"(Sammlungsverzeichnis!Y49)","v":0},null,{"$f":"(Sammlungsverzeichnis!M50)","v":0},null,{"$f":"(Sammlungsverzeichnis!Y50)","v":0}]
[null,{"$f":"(Sammlungsverzeichnis!N44)","v":0},null,null,null,{"$f":"(Sammlungsverzeichnis!N45)","v":0},null,null,null,{"$f":"(Sammlungsverzeichnis!N46)","v":0},null,null,null,{"$f":"(Sammlungsverzeichnis!N47)","v":0},null,null,null,{"$f":"(Sammlungsverzeichnis!N48)","v":0},null,null,null,{"$f":"(Sammlungsverzeichnis!N49)","v":0},null,null,null,{"$f":"(Sammlungsverzeichnis!N50)","v":0}]
[null,{"$f":"(Sammlungsverzeichnis!O44)","v":0},null,null,null,{"$f":"(Sammlungsverzeichnis!O45)","v":0},null,null,null,{"$f":"(Sammlungsverzeichnis!O46)","v":0},null,null,null,{"$f":"(Sammlungsverzeichnis!O47)","v":0},null,null,null,{"$f":"(Sammlungsverzeichnis!O48)","v":0},null,null,null,{"$f":"(Sammlungsverzeichnis!O49)","v":0},null,null,null,{"$f":"(Sammlungsverzeichnis!O50)","v":0}]
[null,{"$f":"(Sammlungsverzeichnis!P44)","v":0},null,null,null,{"$f":"(Sammlungsverzeichnis!P45)","v":0},null,null,null,{"$f":"(Sammlungsverzeichnis!P46)","v":0},null,null,null,{"$f":"(Sammlungsverzeichnis!P47)","v":0},null,null,null,{"$f":"(Sammlungsverzeichnis!P48)","v":0},null,null,null,{"$f":"(Sammlungsverzeichnis!P49)","v":0},null,null,null,{"$f":"(Sammlungsverzeichnis!P50)","v":0}]
[null,{"$f":"(Sammlungsverzeichnis!Q44)","v":0},{"$f":"(Sammlungsverzeichnis!W44)","v":0},null,null,{"$f":"(Sammlungsverzeichnis!Q45)","v":0},{"$f":"(Sammlungsverzeichnis!W45)","v":0},null,null,{"$f":"(Sammlungsverzeichnis!Q46)","v":0},{"$f":"(Sammlungsverzeichnis!W46)","v":0},null,null,{"$f":"(Sammlungsverzeichnis!Q47)","v":0},{"$f":"(Sammlungsverzeichnis!W47)","v":0},null,null,{"$f":"(Sammlungsverzeichnis!Q48)","v":0},{"$f":"(Sammlungsverzeichnis!W48)","v":0},null,null,{"$f":"(Sammlungsverzeichnis!Q49)","v":0},{"$f":"(Sammlungsverzeichnis!W49)","v":0},null,null,{"$f":"(Sammlungsverzeichnis!Q50)","v":0},{"$f":"(Sammlungsverzeichnis!W50)","v":0}]
[]
[null,{"$f":"(Sammlungsverzeichnis!S44)","v":0},null,null,null,{"$f":"(Sammlungsverzeichnis!S45)","v":0},null,null,null,{"$f":"(Sammlungsverzeichnis!S46)","v":0},null,null,null,{"$f":"(Sammlungsverzeichnis!S47)","v":0},null,null,null,{"$f":"(Sammlungsverzeichnis!S48)","v":0},null,null,null,{"$f":"(Sammlungsverzeichnis!S49)","v":0},null,null,null,{"$f":"(Sammlungsverzeichnis!S50)","v":0}]
[]
[null,"http://www.entopedia.info",null,null,null,null,null,null,null,null,null,null,null,null,null,null,null,"© Michael Frank | All rights reserved"]

{"sheet":"Etiketten - Dunkel","index":2,"n_rows":89,"n_cols":28,"rows_kept":89,"cut":false,"hidden":false,"merged":[[86,25,86,27],[88,1,88,15],[88,17,88,27],[86,1,86,3],[86,5,86,7],[86,9,86,11],[86,13,86,15],[86,17,86,19],[86,21,86,23],[82,25,82,26],[83,1,83,2],[83,5,83,6],[83,9,83,10],[83,13,83,14],[83,17,83,18],[83,21,83,22],[83,25,83,26],[80,25,80,26],[82,5,82,6],[82,9,82,10],[80,27,84,27],[81,1,81,2],[81,5,81,6],[81,9,81,10],[81,13,81,14],[81,17,81,18],[81,21,81,22],[81,25,81,26],[82,1,82,2],[80,13,80,14],[80,15,84,15],[80,17,80,18],[80,19,84,19],[80,21,80,22],[80,23,84,23],[82,13,82,14],[82,17,82,18],[82,21,82,22],[80,1,80,2],[80,3,84,3],[80,5,80,6],[80,7,84,7],[80,9,80,10],[80,11,84,11],[77,25,77,26],[78,1,78,2],[78,5,78,6],[78,9,78,10],[78,13,78,14],[78,17,78,18],[78,21,78,22],[78,25,78,26],[75,25,75,26],[77,5,77,6],[77,9,77,10],[75,27,77,27],[76,1,76,2],[76,5,76,6],[76,9,76,10],[76,13,76,14],[76,17,76,18],[76,21,76,22],[76,25,76,26],[77,1,77,2],[75,13,75,14],[75,15,77,15],[75,17,75,18],[75,19,77,19],[75,21,75,22],[75,23,77,23],[77,13,77,14],[77,17,77,18],[77,21,77,22],[75,1,75,2],[75,3,77,3],[75,5,75,6],[75,7,77,7],[75,9,75,10],[75,11,77,11],[72,25,72,27],[74,1,74,2],[74,5,74,6],[74,9,74,10],[74,13,74,14],[74,17,74,18],[74,21,74,22],[74,25,74,26],[72,1,72,3],[72,5,72,7],[72,9,72,11],[72,13,72,15],[72,17,72,19],[72,21,72,23],[68,25,68,26],[69,1,69,2],[69,5,69,6],[69,9,69,10],[69,13,69,14],[69,17,69,18],[69,21,69,22],[69,25,69,26],[66,25,66,26],[68,5,68,6],[68,9,68,10],[66,27,70,27],[67,1,67,2],[67,5,67,6],[67,9,67,10],[67,13,67,14],[67,17,67,18],[67,21,67,22],[67,25,67,26],[68,1,68,2],[66,13,66,14],[66,15,70,15],[66,17,66,18],[66,19,70,19],[66,21,66,22],[66,23,70,23],[68,13,68,14],[68,17,68,18],[68,21,68,22],[66,1,66,2],[66,3,70,3],[66,5,66,6],[66,7,70,7],[66,9,66,10],[66,11,70,11],[63,25,63,26],[64,1,64,2],[64,5,64,6],[64,9,64,10],[64,13,64,14],[64,17,64,18],[64,21,64,22],[64,25,64,26],[61,25,61,26],[63,5,63,6],[63,9,63,10],[61,27,63,27],[62,1,62,2],[62,5,62,6],[62,9,62,10],[62,13,62,14],[62,17,62,18],[62,21,62,22],[62,25,62,26],[63,1,63,2],[61,13,61,14],[61,15,63,15],[61,17,61,18],[61,19,63,19],[61,21,61,22],[61,23,63,23],[63,13,63,14],[63,17,63,18],[63,21,63,22],[61,1,61,2],[61,3,63,3],[61,5,61,6],[61,7,63,7],[61,9,61,10],[61,11,63,11],[58,25,58,27],[60,1,60,2],[60,5,60,6],[60,9,60,10],[60,13,60,14],[60,17,60,18],[60,21,60,22],[60,25,60,26],[58,1,58,3],[58,5,58,7],[58,9,58,11],[58,13,58,15],[58,17,58,19],[58,21,58,23],[54,25,54,26],[55,1,55,2],[55,5,55,6],[55,9,55,10],[55,13,55,14],[55,17,55,18],[55,21,55,22],[55,25,55,26],[52,25,52,26],[54,5,54,6],[54,9,54,10],[52,27,56,27],[53,1,53,2],[53,5,53,6],[53,9,53,10],[53,13,53,14],[53,17,53,18],[53,21,53,22],[53,25,53,26],[54,1,54,2],[52,13,52,14],[52,15,56,15],[52,17,52,18],[52,19,56,19],[52,21,52,22],[52,23,56,23],[54,13,54,14],[54,17,54,18],[54,21,54,22],[52,1,52,2],[52,3,56,3],[52,5,52,6],[52,7,56,7],[52,9,52,10],[52,11,56,11],[49,25,49,26],[50,1,50,2],[50,5,50,6],[50,9,50,10],[50,13,50,14],[50,17,50,18],[50,21,50,22],[50,25,50,26],[47,25,47,26],[49,5,49,6],[49,9,49,10],[47,27,49,27],[48,1,48,2],[48,5,48,6],[48,9,48,10],[48,13,48,14],[48,17,48,18],[48,21,48,22],[48,25,48,26],[49,1,49,2],[47,13,47,14],[47,15,49,15],[47,17,47,18],[47,19,49,19],[47,21,47,22],[47,23,49,23],[49,13,49,14],[49,17,49,18],[49,21,49,22],[47,1,47,2],[47,3,49,3],[47,5,47,6],[47,7,49,7],[47,9,47,10],[47,11,49,11],[44,25,44,27],[46,1,46,2],[46,5,46,6],[46,9,46,10],[46,13,46,14],[46,17,46,18],[46,21,46,22],[46,25,46,26],[44,1,44,3],[44,5,44,7],[44,9,44,11],[44,13,44,15],[44,17,44,19],[44,21,44,23],[40,25,40,26],[41,1,41,2],[41,5,41,6],[41,9,41,10],[41,13,41,14],[41,17,41,18],[41,21,41,22],[41,25,41,26],[38,25,38,26],[40,5,40,6],[40,9,40,10],[38,27,42,27],[39,1,39,2],[39,5,39,6],[39,9,39,10],[39,13,39,14],[39,17,39,18],[39,21,39,22],[39,25,39,26],[40,1,40,2],[38,13,38,14],[38,15,42,15],[38,17,38,18],[38,19,42,19],[38,21,38,22],[38,23,42,23],[40,13,40,14],[40,17,40,18],[40,21,40,22],[38,1,38,2],[38,3,42,3],[38,5,38,6],[38,7,42,7],[38,9,38,10],[38,11,42,11],[35,25,35,26],[36,1,36,2],[36,5,36,6],[36,9,36,10],[36,13,36,14],[36,17,36,18],[36,21,36,22],[36,25,36,26],[33,25,33,26],[35,5,35,6],[35,9,35,10],[33,27,35,27],[34,1,34,2],[34,5,34,6],[34,9,34,10],[34,13,34,14],[34,17,34,18],[34,21,34,22],[34,25,34,26],[35,1,35,2],[33,13,33,14],[33,15,35,15],[33,17,33,18],[33,19,35,19],[33,21,33,22],[33,23,35,23],[35,13,35,14],[35,17,35,18],[35,21,35,22],[33,1,33,2],[33,3,35,3],[33,5,33,6],[33,7,35,7],[33,9,33,10],[33,11,35,11],[30,25,30,27],[32,1,32,2],[32,5,32,6],[32,9,32,10],[32,13,32,14],[32,17,32,18],[32,21,32,22],[32,25,32,26],[30,1,30,3],[30,5,30,7],[30,9,30,11],[30,13,30,15],[30,17,30,19],[30,21,30,23],[26,25,26,26],[27,1,27,2],[27,5,27,6],[27,9,27,10],[27,13,27,14],[27,17,27,18],[27,21,27,22],[27,25,27,26],[24,25,24,26],[26,5,26,6],[26,9,26,10],[24,27,28,27],[25,1,25,2],[25,5,25,6],[25,9,25,10],[25,13,25,14],[25,17,25,18],[25,21,25,22],[25,25,25,26],[26,1,26,2],[24,13,24,14],[24,15,28,15],[24,17,24,18],[24,19,28,19],[24,21,24,22],[24,23,28,23],[26,13,26,14],[26,17,26,18],[26,21,26,22],[24,1,24,2],[24,3,28,3],[24,5,24,6],[24,7,28,7],[24,9,24,10],[24,11,28,11],[21,25,21,26],[22,1,22,2],[22,5,22,6],[22,9,22,10],[22,13,22,14],[22,17,22,18],[22,21,22,22],[22,25,22,26],[19,25,19,26],[21,5,21,6],[21,9,21,10],[19,27,21,27],[20,1,20,2],[20,5,20,6],[20,9,20,10],[20,13,20,14],[20,17,20,18],[20,21,20,22],[20,25,20,26],[21,1,21,2],[19,13,19,14],[19,15,21,15],[19,17,19,18],[19,19,21,19],[19,21,19,22],[19,23,21,23],[21,13,21,14],[21,17,21,18],[21,21,21,22],[19,1,19,2],[19,3,21,3],[19,5,19,6],[19,7,21,7],[19,9,19,10],[19,11,21,11],[16,25,16,27],[18,1,18,2],[18,5,18,6],[18,9,18,10],[18,13,18,14],[18,17,18,18],[18,21,18,22],[18,25,18,26],[16,1,16,3],[16,5,16,7],[16,9,16,11],[16,13,16,15],[16,17,16,19],[16,21,16,23],[12,25,12,26],[13,1,13,2],[13,5,13,6],[13,9,13,10],[13,13,13,14],[13,17,13,18],[13,21,13,22],[13,25,13,26],[10,25,10,26],[12,5,12,6],[12,9,12,10],[10,27,14,27],[11,1,11,2],[11,5,11,6],[11,9,11,10],[11,13,11,14],[11,17,11,18],[11,21,11,22],[11,25,11,26],[12,1,12,2],[10,13,10,14],[10,15,14,15],[10,17,10,18],[10,19,14,19],[10,21,10,22],[10,23,14,23],[12,13,12,14],[12,17,12,18],[12,21,12,22],[10,1,10,2],[10,3,14,3],[10,5,10,6],[10,7,14,7],[10,9,10,10],[10,11,14,11],[7,25,7,26],[8,1,8,2],[8,5,8,6],[8,9,8,10],[8,13,8,14],[8,17,8,18],[8,21,8,22],[8,25,8,26],[5,25,5,26],[7,5,7,6],[7,9,7,10],[5,27,7,27],[6,1,6,2],[6,5,6,6],[6,9,6,10],[6,13,6,14],[6,17,6,18],[6,21,6,22],[6,25,6,26],[7,1,7,2],[5,13,5,14],[5,15,7,15],[5,17,5,18],[5,19,7,19],[5,21,5,22],[5,23,7,23],[7,13,7,14],[7,17,7,18],[7,21,7,22],[5,1,5,2],[5,3,7,3],[5,5,5,6],[5,7,7,7],[5,9,5,10],[5,11,7,11],[0,1,0,14],[0,22,0,27],[4,1,4,2],[4,5,4,6],[4,9,4,10],[4,13,4,14],[4,17,4,18],[4,21,4,22],[4,25,4,26]]}
[null,"Sammlungs - Etiketten (dunkel)",null,null,null,null,null,null,null,null,null,null,null,null,null,null,null,null,null,null,null,null,{"$f":"TODAY()","v":"2016-10-12"}]
[]
[]
[]
[null,{"$f":"(Sammlungsverzeichnis!C9)","v":"Thecla betulae"},null,{"$f":"(Sammlungsverzeichnis!E9)","v":"♀"},null,{"$f":"(Sammlungsverzeichnis!C10)","v":"Smerinthus kindermanni"},null,{"$f":"(Sammlungsverzeichnis!E10)","v":"♂"},null,{"$f":"(Sammlungsverzeichnis!C11)","v":"Colias crocea"},null,{"$f":"(Sammlungsverzeichnis!E11)","v":"♀"},null,{"$f":"(Sammlungsverzeichnis!C12)","v":"Inachis io"},null,{"$f":"(Sammlungsverzeichnis!E12)","v":"♂"},null,{"$f":"(Sammlungsverzeichnis!C13)","v":"Colias crocea"},null,{"$f":"(Sammlungsverzeichnis!E13)","v":"♀"},null,{"$f":"(Sammlungsverzeichnis!C14)","v":"Colias crocea"},null,{"$f":"(Sammlungsverzeichnis!E14)","v":"♀"},null,{"$f":"(Sammlungsverzeichnis!C15)","v":0},null,{"$f":"(Sammlungsverzeichnis!E15)","v":0}]
[null,{"$f":"IF(Sammlungsverzeichnis!D9=0, Sammlungsverzeichnis!T9, Sammlungsverzeichnis!D9)","v":"sonnig"},null,{"$f":"(Sammlungsverzeichnis!U9)","v":"ca. 24°C"},null,{"$f":"IF(Sammlungsverzeichnis!D10=0, Sammlungsverzeichnis!T10, Sammlungsverzeichnis!D10)","v":"ssp. kindermanni "},null,{"$f":"(Sammlungsverzeichnis!U10)","v":"ca. 33°C"},null,{"$f":"IF(Sammlungsverzeichnis!D11=0, Sammlungsverzeichnis!T11, Sammlungsverzeichnis!D11)","v":"sonnig, heiter"},null,{"$f":"(Sammlungsverzeichnis!U11)","v":"ca. 25°C"},null,{"$f":"IF(Sammlungsverzeichnis!D12=0, Sammlungsverzeichnis!T12, Sammlungsverzeichnis!D12)","v":"sonnig, heiter"},null,{"$f":"(Sammlungsverzeichnis!U12)","v":"ca. 25°C"},null,{"$f":"IF(Sammlungsverzeichnis!D13=0, Sammlungsverzeichnis!T13, Sammlungsverzeichnis!D13)","v":"sonnig, heiter"},null,{"$f":"(Sammlungsverzeichnis!U13)","v":"ca. 25°C"},null,{"$f":"IF(Sammlungsverzeichnis!D14=0, Sammlungsverzeichnis!T14, Sammlungsverzeichnis!D14)","v":"wechselhaft"},null,{"$f":"(Sammlungsverzeichnis!U14)","v":"ca. 16°C"},null,{"$f":"IF(Sammlungsverzeichnis!D15=0, Sammlungsverzeichnis!T15, Sammlungsverzeichnis!D15)","v":"00:00:00"},null,{"$f":"(Sammlungsverzeichnis!U15)","v":0}]
[null,{"$f":"(Sammlungsverzeichnis!V9)","v":"2016-09-25"},null,null,null,{"$f":"(Sammlungsverzeichnis!V10)","v":"2015-06-14"},null,null,null,{"$f":"(Sammlungsverzeichnis!V11)","v":"23. - 25.09.2016"},null,null,null,{"$f":"(Sammlungsverzeichnis!V12)","v":"23. - 25.09.2016"},null,null,null,{"$f":"(Sammlungsverzeichnis!V13)","v":"23. - 25.09.2016"},null,null,null,{"$f":"(Sammlungsverzeichnis!V14)","v":"2016-09-21"},null,null,null,{"$f":"(Sammlungsverzeichnis!V15)","v":"00:00:00"}]
[null,{"$f":"(Sammlungsverzeichnis!R9)","v":"Max Mustermann leg."},null,null,null,{"$f":"(Sammlungsverzeichnis!R10)","v":"Max Mustermann leg."},null,null,null,{"$f":"(Sammlungsverzeichnis!R11)","v":"Max Mustermann leg."},null,null,null,{"$f":"(Sammlungsverzeichnis!R12)","v":"Max Mustermann leg."},null,null,null,{"$f":"(Sammlungsverzeichnis!R13)","v":"Max Mustermann leg."},null,null,null,{"$f":"(Sammlungsverzeichnis!R14)","v":"Max Mustermann leg."},null,null,null,{"$f":"(Sammlungsverzeichnis!R15)","v":0}]
[null,{"$f":"(Sammlungsverzeichnis!E3&\" \"&Sammlungsverzeichnis!C3&\" \"&Sammlungsverzeichnis!C4)","v":"col.  Max Mustermann"},null,null,null,{"$f":"(Sammlungsverzeichnis!E3&\" \"&Sammlungsverzeichnis!C3&\" \"&Sammlungsverzeichnis!C4)","v":"col.  Max Mustermann"},null,null,null,{"$f":"(Sammlungsverzeichnis!E3&\" \"&Sammlungsverzeichnis!C3&\" \"&Sammlungsverzeichnis!C4)","v":"col.  Max Mustermann"},null,null,null,{"$f":"(Sammlungsverzeichnis!E3&\" \"&Sammlungsverzeichnis!C3&\" \"&Sammlungsverzeichnis!C4)","v":"col.  Max Mustermann"},null,null,null,{"$f":"(Sammlungsverzeichnis!E3&\" \"&Sammlungsverzeichnis!C3&\" \"&Sammlungsverzeichnis!C4)","v":"col.  Max Mustermann"},null,null,null,{"$f":"(Sammlungsverzeichnis!E3&\" \"&Sammlungsverzeichnis!C3&\" \"&Sammlungsverzeichnis!C4)","v":"col.  Max Mustermann"},null,null,null,{"$f":"(Sammlungsverzeichnis!E3&\" \"&Sammlungsverzeichnis!C3&\" \"&Sammlungsverzeichnis!C4)","v":"col.  Max Mustermann"}]
[]
[null,{"$f":"(Sammlungsverzeichnis!M9)","v":"Austria"},null,{"$f":"(Sammlungsverzeichnis!Y9)","v":"ENr.: 0000006"},null,{"$f":"(Sammlungsverzeichnis!M10)","v":"Türkei"},null,{"$f":"(Sammlungsverzeichnis!Y10)","v":"ENr.: 0000005"},null,{"$f":"(Sammlungsverzeichnis!M11)","v":"Austria"},null,{"$f":"(Sammlungsverzeichnis!Y11)","v":"ENr.: 0000004"},null,{"$f":"(Sammlungsverzeichnis!M12)","v":"Austria"},null,{"$f":"(Sammlungsverzeichnis!Y12)","v":"ENr.: 0000003"},null,{"$f":"(Sammlungsverzeichnis!M13)","v":"Austria"},null,{"$f":"(Sammlungsverzeichnis!Y13)","v":"ENr.: 0000002"},null,{"$f":"(Sammlungsverzeichnis!M14)","v":"Austria"},null,{"$f":"(Sammlungsverzeichnis!Y14)","v":"ENr.: 0000001"},null,{"$f":"(Sammlungsverzeichnis!M15)","v":0},null,{"$f":"(Sammlungsverzeichnis!Y15)","v":0}]
[null,{"$f":"(Sammlungsverzeichnis!N9)","v":"NÖ"},null,null,null,{"$f":"(Sammlungsverzeichnis!N10)","v":"Anatolien"},null,null,null,{"$f":"(Sammlungsverzeichnis!N11)","v":"NÖ"},null,null,null,{"$f":"(Sammlungsverzeichnis!N12)","v":"NÖ"},null,null,null,{"$f":"(Sammlungsverzeichnis!N13)","v":"NÖ"},null,null,null,{"$f":"(Sammlungsverzeichnis!N14)","v":"Stmk"},null,null,null,{"$f":"(Sammlungsverzeichnis!N15)","v":0}]
[null,{"$f":"(Sammlungsverzeichnis!O9)","v":"Musterstadt"},null,null,null,{"$f":"(Sammlungsverzeichnis!O10)","v":"Musterstadt"},null,null,null,{"$f":"(Sammlungsverzeichnis!O11)","v":"Musterstadt"},null,null,null,{"$f":"(Sammlungsverzeichnis!O12)","v":"Musterstadt"},null,null,null,{"$f":"(Sammlungsverzeichnis!O13)","v":"Musterstadt"},null,null,null,{"$f":"(Sammlungsverzeichnis!O14)","v":"Musterdorf"},null,null,null,{"$f":"(Sammlungsverzeichnis!O15)","v":0}]
[null,{"$f":"(Sammlungsverzeichnis!P9)","v":"48° 13' 17″ N, 14° 22' 41″ O"},null,null,null,{"$f":"(Sammlungsverzeichnis!P10)","v":"48° 13' 17″ N, 14° 22' 41″ O"},null,null,null,{"$f":"(Sammlungsverzeichnis!P11)","v":"48° 13' 17″ N, 14° 22' 41″ O"},null,null,null,{"$f":"(Sammlungsverzeichnis!P12)","v":"48° 13' 17″ N, 14° 22' 41″ O"},null,null,null,{"$f":"(Sammlungsverzeichnis!P13)","v":"48° 13' 17″ N, 14° 22' 41″ O"},null,null,null,{"$f":"(Sammlungsverzeichnis!P14)","v":"48° 13' 17″ N, 14° 22' 41″ O"},null,null,null,{"$f":"(Sammlungsverzeichnis!P15)","v":0}]
[null,{"$f":"(Sammlungsverzeichnis!Q9)","v":"472 Meter"},{"$f":"(Sammlungsverzeichnis!W9)","v":"15:00 Uhr"},null,null,{"$f":"(Sammlungsverzeichnis!Q10)","v":"472 Meter"},{"$f":"(Sammlungsverzeichnis!W10)","v":"22:58 Uhr"},null,null,{"$f":"(Sammlungsverzeichnis!Q11)","v":"472 Meter"},{"$f":"(Sammlungsverzeichnis!W11)","v":"Nachmittags"},null,null,{"$f":"(Sammlungsverzeichnis!Q12)","v":"472 Meter"},{"$f":"(Sammlungsverzeichnis!W12)","v":"Nachmittags"},null,null,{"$f":"(Sammlungsverzeichnis!Q13)","v":"472 Meter"},{"$f":"(Sammlungsverzeichnis!W13)","v":"Nachmittags"},null,null,{"$f":"(Sammlungsverzeichnis!Q14)","v":"203 Meter"},{"$f":"(Sammlungsverzeichnis!W14)","v":"14:30 Uhr"},null,null,{"$f":"(Sammlungsverzeichnis!Q15)","v":0},{"$f":"(Sammlungsverzeichnis!W15)","v":0}]
[]
[null,{"$f":"(Sammlungsverzeichnis!S9)","v":"an blühendem Efeustrauch"},null,null,null,{"$f":"(Sammlungsverzeichnis!S10)","v":"Lichtfang"},null,null,null,{"$f":"(Sammlungsverzeichnis!S11)","v":"bei Blütenbesuch gefangen"},null,null,null,{"$f":"(Sammlungsverzeichnis!S12)","v":"bei Blütenbesuch gefangen"},null,null,null,{"$f":"(Sammlungsverzeichnis!S13)","v":"bei Blütenbesuch gefangen"},null,null,null,{"$f":"(Sammlungsverzeichnis!S14)","v":"Auf Wiese (Paarungsflug)"},null,null,null,{"$f":"(Sammlungsverzeichnis!S15)","v":0}]
[]
[null,{"$f":"(Sammlungsverzeichnis!C16)","v":0},null,{"$f":"(Sammlungsverzeichnis!E16)","v":0},null,{"$f":"(Sammlungsverzeichnis!C17)","v":0},null,{"$f":"(Sammlungsverzeichnis!E17)","v":0},null,{"$f":"(Sammlungsverzeichnis!C18)","v":0},null,{"$f":"(Sammlungsverzeichnis!E18)","v":0},null,{"$f":"(Sammlungsverzeichnis!C19)","v":0},null,{"$f":"(Sammlungsverzeichnis!E19)","v":0},null,{"$f":"(Sammlungsverzeichnis!C20)","v":0},null,{"$f":"(Sammlungsverzeichnis!E20)","v":0},null,{"$f":"(Sammlungsverzeichnis!C21)","v":0},null,{"$f":"(Sammlungsverzeichnis!E21)","v":0},null,{"$f":"(Sammlungsverzeichnis!C22)","v":0},null,{"$f":"(Sammlungsverzeichnis!E22)","v":0}]
[null,{"$f":"IF(Sammlungsverzeichnis!D16=0, Sammlungsverzeichnis!T16, Sammlungsverzeichnis!D16)","v":"00:00:00"},null,{"$f":"(Sammlungsverzeichnis!U16)","v":0},null,{"$f":"IF(Sammlungsverzeichnis!D17=0, Sammlungsverzeichnis!T17, Sammlungsverzeichnis!D17)","v":"00:00:00"},null,{"$f":"(Sammlungsverzeichnis!U17)","v":0},null,{"$f":"IF(Sammlungsverzeichnis!D18=0, Sammlungsverzeichnis!T18, Sammlungsverzeichnis!D18)","v":"00:00:00"},null,{"$f":"(Sammlungsverzeichnis!U18)","v":0},null,{"$f":"IF(Sammlungsverzeichnis!D19=0, Sammlungsverzeichnis!T19, Sammlungsverzeichnis!D19)","v":"00:00:00"},null,{"$f":"(Sammlungsverzeichnis!U19)","v":0},null,{"$f":"IF(Sammlungsverzeichnis!D20=0, Sammlungsverzeichnis!T20, Sammlungsverzeichnis!D20)","v":"00:00:00"},null,{"$f":"(Sammlungsverzeichnis!U20)","v":0},null,{"$f":"IF(Sammlungsverzeichnis!D21=0, Sammlungsverzeichnis!T21, Sammlungsverzeichnis!D21)","v":"00:00:00"},null,{"$f":"(Sammlungsverzeichnis!U21)","v":0},null,{"$f":"IF(Sammlungsverzeichnis!D22=0, Sammlungsverzeichnis!T22, Sammlungsverzeichnis!D22)","v":"00:00:00"},null,{"$f":"(Sammlungsverzeichnis!U22)","v":0}]
[null,{"$f":"(Sammlungsverzeichnis!V16)","v":"00:00:00"},null,null,null,{"$f":"(Sammlungsverzeichnis!V17)","v":"00:00:00"},null,null,null,{"$f":"(Sammlungsverzeichnis!V18)","v":"00:00:00"},null,null,null,{"$f":"(Sammlungsverzeichnis!V19)","v":"00:00:00"},null,null,null,{"$f":"(Sammlungsverzeichnis!V20)","v":"00:00:00"},null,null,null,{"$f":"(Sammlungsverzeichnis!V21)","v":"00:00:00"},null,null,null,{"$f":"(Sammlungsverzeichnis!V22)","v":"00:00:00"}]
[null,{"$f":"(Sammlungsverzeichnis!R16)","v":0},null,null,null,{"$f":"(Sammlungsverzeichnis!R17)","v":0},null,null,null,{"$f":"(Sammlungsverzeichnis!R18)","v":0},null,null,null,{"$f":"(Sammlungsverzeichnis!R19)","v":0},null,null,null,{"$f":"(Sammlungsverzeichnis!R20)","v":0},null,null,null,{"$f":"(Sammlungsverzeichnis!R21)","v":0},null,null,null,{"$f":"(Sammlungsverzeichnis!R22)","v":0}]
[null,{"$f":"(Sammlungsverzeichnis!E3&\" \"&Sammlungsverzeichnis!C3&\" \"&Sammlungsverzeichnis!C4)","v":"col.  Max Mustermann"},null,null,null,{"$f":"(Sammlungsverzeichnis!E3&\" \"&Sammlungsverzeichnis!C3&\" \"&Sammlungsverzeichnis!C4)","v":"col.  Max Mustermann"},null,null,null,{"$f":"(Sammlungsverzeichnis!E3&\" \"&Sammlungsverzeichnis!C3&\" \"&Sammlungsverzeichnis!C4)","v":"col.  Max Mustermann"},null,null,null,{"$f":"(Sammlungsverzeichnis!E3&\" \"&Sammlungsverzeichnis!C3&\" \"&Sammlungsverzeichnis!C4)","v":"col.  Max Mustermann"},null,null,null,{"$f":"(Sammlungsverzeichnis!E3&\" \"&Sammlungsverzeichnis!C3&\" \"&Sammlungsverzeichnis!C4)","v":"col.  Max Mustermann"},null,null,null,{"$f":"(Sammlungsverzeichnis!E3&\" \"&Sammlungsverzeichnis!C3&\" \"&Sammlungsverzeichnis!C4)","v":"col.  Max Mustermann"},null,null,null,{"$f":"(Sammlungsverzeichnis!E3&\" \"&Sammlungsverzeichnis!C3&\" \"&Sammlungsverzeichnis!C4)","v":"col.  Max Mustermann"}]
[]
[null,{"$f":"(Sammlungsverzeichnis!M16)","v":0},null,{"$f":"(Sammlungsverzeichnis!Y16)","v":0},null,{"$f":"(Sammlungsverzeichnis!M17)","v":0},null,{"$f":"(Sammlungsverzeichnis!Y17)","v":0},null,{"$f":"(Sammlungsverzeichnis!M18)","v":0},null,{"$f":"(Sammlungsverzeichnis!Y18)","v":0},null,{"$f":"(Sammlungsverzeichnis!M19)","v":0},null,{"$f":"(Sammlungsverzeichnis!Y19)","v":0},null,{"$f":"(Sammlungsverzeichnis!M20)","v":0},null,{"$f":"(Sammlungsverzeichnis!Y20)","v":0},null,{"$f":"(Sammlungsverzeichnis!M21)","v":0},null,{"$f":"(Sammlungsverzeichnis!Y21)","v":0},null,{"$f":"(Sammlungsverzeichnis!M22)","v":0},null,{"$f":"(Sammlungsverzeichnis!Y22)","v":0}]
[null,{"$f":"(Sammlungsverzeichnis!N16)","v":0},null,null,null,{"$f":"(Sammlungsverzeichnis!N17)","v":0},null,null,null,{"$f":"(Sammlungsverzeichnis!N18)","v":0},null,null,null,{"$f":"(Sammlungsverzeichnis!N19)","v":0},null,null,null,{"$f":"(Sammlungsverzeichnis!N20)","v":0},null,null,null,{"$f":"(Sammlungsverzeichnis!N21)","v":0},null,null,null,{"$f":"(Sammlungsverzeichnis!N22)","v":0}]
[null,{"$f":"(Sammlungsverzeichnis!O16)","v":0},null,null,null,{"$f":"(Sammlungsverzeichnis!O17)","v":0},null,null,null,{"$f":"(Sammlungsverzeichnis!O18)","v":0},null,null,null,{"$f":"(Sammlungsverzeichnis!O19)","v":0},null,null,null,{"$f":"(Sammlungsverzeichnis!O20)","v":0},null,null,null,{"$f":"(Sammlungsverzeichnis!O21)","v":0},null,null,null,{"$f":"(Sammlungsverzeichnis!O22)","v":0}]
[null,{"$f":"(Sammlungsverzeichnis!P16)","v":0},null,null,null,{"$f":"(Sammlungsverzeichnis!P17)","v":0},null,null,null,{"$f":"(Sammlungsverzeichnis!P18)","v":0},null,null,null,{"$f":"(Sammlungsverzeichnis!P19)","v":0},null,null,null,{"$f":"(Sammlungsverzeichnis!P20)","v":0},null,null,null,{"$f":"(Sammlungsverzeichnis!P21)","v":0},null,null,null,{"$f":"(Sammlungsverzeichnis!P22)","v":0}]
[null,{"$f":"(Sammlungsverzeichnis!Q16)","v":0},{"$f":"(Sammlungsverzeichnis!W16)","v":0},null,null,{"$f":"(Sammlungsverzeichnis!Q17)","v":0},{"$f":"(Sammlungsverzeichnis!W17)","v":0},null,null,{"$f":"(Sammlungsverzeichnis!Q18)","v":0},{"$f":"(Sammlungsverzeichnis!W18)","v":0},null,null,{"$f":"(Sammlungsverzeichnis!Q19)","v":0},{"$f":"(Sammlungsverzeichnis!W19)","v":0},null,null,{"$f":"(Sammlungsverzeichnis!Q20)","v":0},{"$f":"(Sammlungsverzeichnis!W20)","v":0},null,null,{"$f":"(Sammlungsverzeichnis!Q21)","v":0},{"$f":"(Sammlungsverzeichnis!W21)","v":0},null,null,{"$f":"(Sammlungsverzeichnis!Q22)","v":0},{"$f":"(Sammlungsverzeichnis!W22)","v":0}]
[]
[null,{"$f":"(Sammlungsverzeichnis!S16)","v":0},null,null,null,{"$f":"(Sammlungsverzeichnis!S17)","v":0},null,null,null,{"$f":"(Sammlungsverzeichnis!S18)","v":0},null,null,null,{"$f":"(Sammlungsverzeichnis!S19)","v":0},null,null,null,{"$f":"(Sammlungsverzeichnis!S20)","v":0},null,null,null,{"$f":"(Sammlungsverzeichnis!S21)","v":0},null,null,null,{"$f":"(Sammlungsverzeichnis!S22)","v":0}]
[]
[null,{"$f":"(Sammlungsverzeichnis!C23)","v":0},null,{"$f":"(Sammlungsverzeichnis!E23)","v":0},null,{"$f":"(Sammlungsverzeichnis!C24)","v":0},null,{"$f":"(Sammlungsverzeichnis!E24)","v":0},null,{"$f":"(Sammlungsverzeichnis!C25)","v":0},null,{"$f":"(Sammlungsverzeichnis!E25)","v":0},null,{"$f":"(Sammlungsverzeichnis!C26)","v":0},null,{"$f":"(Sammlungsverzeichnis!E26)","v":0},null,{"$f":"(Sammlungsverzeichnis!C27)","v":0},null,{"$f":"(Sammlungsverzeichnis!E27)","v":0},null,{"$f":"(Sammlungsverzeichnis!C28)","v":0},null,{"$f":"(Sammlungsverzeichnis!E28)","v":0},null,{"$f":"(Sammlungsverzeichnis!C29)","v":0},null,{"$f":"(Sammlungsverzeichnis!E29)","v":0}]
[null,{"$f":"IF(Sammlungsverzeichnis!D23=0, Sammlungsverzeichnis!T23, Sammlungsverzeichnis!D23)","v":"00:00:00"},null,{"$f":"(Sammlungsverzeichnis!U23)","v":0},null,{"$f":"IF(Sammlungsverzeichnis!D24=0, Sammlungsverzeichnis!T24, Sammlungsverzeichnis!D24)","v":"00:00:00"},null,{"$f":"(Sammlungsverzeichnis!U24)","v":0},null,{"$f":"IF(Sammlungsverzeichnis!D25=0, Sammlungsverzeichnis!T25, Sammlungsverzeichnis!D25)","v":"00:00:00"},null,{"$f":"(Sammlungsverzeichnis!U25)","v":0},null,{"$f":"IF(Sammlungsverzeichnis!D26=0, Sammlungsverzeichnis!T26, Sammlungsverzeichnis!D26)","v":"00:00:00"},null,{"$f":"(Sammlungsverzeichnis!U26)","v":0},null,{"$f":"IF(Sammlungsverzeichnis!D27=0, Sammlungsverzeichnis!T27, Sammlungsverzeichnis!D27)","v":"00:00:00"},null,{"$f":"(Sammlungsverzeichnis!U27)","v":0},null,{"$f":"IF(Sammlungsverzeichnis!D28=0, Sammlungsverzeichnis!T28, Sammlungsverzeichnis!D28)","v":"00:00:00"},null,{"$f":"(Sammlungsverzeichnis!U28)","v":0},null,{"$f":"IF(Sammlungsverzeichnis!D29=0, Sammlungsverzeichnis!T29, Sammlungsverzeichnis!D29)","v":"00:00:00"},null,{"$f":"(Sammlungsverzeichnis!U29)","v":0}]
[null,{"$f":"(Sammlungsverzeichnis!V23)","v":"00:00:00"},null,null,null,{"$f":"(Sammlungsverzeichnis!V24)","v":"00:00:00"},null,null,null,{"$f":"(Sammlungsverzeichnis!V25)","v":"00:00:00"},null,null,null,{"$f":"(Sammlungsverzeichnis!V26)","v":"00:00:00"},null,null,null,{"$f":"(Sammlungsverzeichnis!V27)","v":"00:00:00"},null,null,null,{"$f":"(Sammlungsverzeichnis!V28)","v":"00:00:00"},null,null,null,{"$f":"(Sammlungsverzeichnis!V29)","v":"00:00:00"}]
[null,{"$f":"(Sammlungsverzeichnis!R23)","v":0},null,null,null,{"$f":"(Sammlungsverzeichnis!R24)","v":0},null,null,null,{"$f":"(Sammlungsverzeichnis!R25)","v":0},null,null,null,{"$f":"(Sammlungsverzeichnis!R26)","v":0},null,null,null,{"$f":"(Sammlungsverzeichnis!R27)","v":0},null,null,null,{"$f":"(Sammlungsverzeichnis!R28)","v":0},null,null,null,{"$f":"(Sammlungsverzeichnis!R29)","v":0}]
[null,{"$f":"(Sammlungsverzeichnis!E3&\" \"&Sammlungsverzeichnis!C3&\" \"&Sammlungsverzeichnis!C4)","v":"col.  Max Mustermann"},null,null,null,{"$f":"(Sammlungsverzeichnis!E3&\" \"&Sammlungsverzeichnis!C3&\" \"&Sammlungsverzeichnis!C4)","v":"col.  Max Mustermann"},null,null,null,{"$f":"(Sammlungsverzeichnis!E3&\" \"&Sammlungsverzeichnis!C3&\" \"&Sammlungsverzeichnis!C4)","v":"col.  Max Mustermann"},null,null,null,{"$f":"(Sammlungsverzeichnis!E3&\" \"&Sammlungsverzeichnis!C3&\" \"&Sammlungsverzeichnis!C4)","v":"col.  Max Mustermann"},null,null,null,{"$f":"(Sammlungsverzeichnis!E3&\" \"&Sammlungsverzeichnis!C3&\" \"&Sammlungsverzeichnis!C4)","v":"col.  Max Mustermann"},null,null,null,{"$f":"(Sammlungsverzeichnis!E3&\" \"&Sammlungsverzeichnis!C3&\" \"&Sammlungsverzeichnis!C4)","v":"col.  Max Mustermann"},null,null,null,{"$f":"(Sammlungsverzeichnis!E3&\" \"&Sammlungsverzeichnis!C3&\" \"&Sammlungsverzeichnis!C4)","v":"col.  Max Mustermann"}]
[]
[null,{"$f":"(Sammlungsverzeichnis!M23)","v":0},null,{"$f":"(Sammlungsverzeichnis!Y23)","v":0},null,{"$f":"(Sammlungsverzeichnis!M24)","v":0},null,{"$f":"(Sammlungsverzeichnis!Y24)","v":0},null,{"$f":"(Sammlungsverzeichnis!M25)","v":0},null,{"$f":"(Sammlungsverzeichnis!Y25)","v":0},null,{"$f":"(Sammlungsverzeichnis!M26)","v":0},null,{"$f":"(Sammlungsverzeichnis!Y26)","v":0},null,{"$f":"(Sammlungsverzeichnis!M27)","v":0},null,{"$f":"(Sammlungsverzeichnis!Y27)","v":0},null,{"$f":"(Sammlungsverzeichnis!M28)","v":0},null,{"$f":"(Sammlungsverzeichnis!Y28)","v":0},null,{"$f":"(Sammlungsverzeichnis!M29)","v":0},null,{"$f":"(Sammlungsverzeichnis!Y29)","v":0}]
[null,{"$f":"(Sammlungsverzeichnis!N23)","v":0},null,null,null,{"$f":"(Sammlungsverzeichnis!N24)","v":0},null,null,null,{"$f":"(Sammlungsverzeichnis!N25)","v":0},null,null,null,{"$f":"(Sammlungsverzeichnis!N26)","v":0},null,null,null,{"$f":"(Sammlungsverzeichnis!N27)","v":0},null,null,null,{"$f":"(Sammlungsverzeichnis!N28)","v":0},null,null,null,{"$f":"(Sammlungsverzeichnis!N29)","v":0}]
[null,{"$f":"(Sammlungsverzeichnis!O23)","v":0},null,null,null,{"$f":"(Sammlungsverzeichnis!O24)","v":0},null,null,null,{"$f":"(Sammlungsverzeichnis!O25)","v":0},null,null,null,{"$f":"(Sammlungsverzeichnis!O26)","v":0},null,null,null,{"$f":"(Sammlungsverzeichnis!O27)","v":0},null,null,null,{"$f":"(Sammlungsverzeichnis!O28)","v":0},null,null,null,{"$f":"(Sammlungsverzeichnis!O29)","v":0}]
[null,{"$f":"(Sammlungsverzeichnis!P23)","v":0},null,null,null,{"$f":"(Sammlungsverzeichnis!P24)","v":0},null,null,null,{"$f":"(Sammlungsverzeichnis!P25)","v":0},null,null,null,{"$f":"(Sammlungsverzeichnis!P26)","v":0},null,null,null,{"$f":"(Sammlungsverzeichnis!P27)","v":0},null,null,null,{"$f":"(Sammlungsverzeichnis!P28)","v":0},null,null,null,{"$f":"(Sammlungsverzeichnis!P29)","v":0}]
[null,{"$f":"(Sammlungsverzeichnis!Q23)","v":0},{"$f":"(Sammlungsverzeichnis!W23)","v":0},null,null,{"$f":"(Sammlungsverzeichnis!Q24)","v":0},{"$f":"(Sammlungsverzeichnis!W24)","v":0},null,null,{"$f":"(Sammlungsverzeichnis!Q25)","v":0},{"$f":"(Sammlungsverzeichnis!W25)","v":0},null,null,{"$f":"(Sammlungsverzeichnis!Q26)","v":0},{"$f":"(Sammlungsverzeichnis!W26)","v":0},null,null,{"$f":"(Sammlungsverzeichnis!Q27)","v":0},{"$f":"(Sammlungsverzeichnis!W27)","v":0},null,null,{"$f":"(Sammlungsverzeichnis!Q28)","v":0},{"$f":"(Sammlungsverzeichnis!W28)","v":0},null,null,{"$f":"(Sammlungsverzeichnis!Q29)","v":0},{"$f":"(Sammlungsverzeichnis!W29)","v":0}]
[]
[null,{"$f":"(Sammlungsverzeichnis!S23)","v":0},null,null,null,{"$f":"(Sammlungsverzeichnis!S24)","v":0},null,null,null,{"$f":"(Sammlungsverzeichnis!S25)","v":0},null,null,null,{"$f":"(Sammlungsverzeichnis!S26)","v":0},null,null,null,{"$f":"(Sammlungsverzeichnis!S27)","v":0},null,null,null,{"$f":"(Sammlungsverzeichnis!S28)","v":0},null,null,null,{"$f":"(Sammlungsverzeichnis!S29)","v":0}]
[]
[null,{"$f":"(Sammlungsverzeichnis!C30)","v":0},null,{"$f":"(Sammlungsverzeichnis!E30)","v":0},null,{"$f":"(Sammlungsverzeichnis!C31)","v":0},null,{"$f":"(Sammlungsverzeichnis!E31)","v":0},null,{"$f":"(Sammlungsverzeichnis!C32)","v":0},null,{"$f":"(Sammlungsverzeichnis!E32)","v":0},null,{"$f":"(Sammlungsverzeichnis!C33)","v":0},null,{"$f":"(Sammlungsverzeichnis!E32)","v":0},null,{"$f":"(Sammlungsverzeichnis!C34)","v":0},null,{"$f":"(Sammlungsverzeichnis!E34)","v":0},null,{"$f":"(Sammlungsverzeichnis!C35)","v":0},null,{"$f":"(Sammlungsverzeichnis!E35)","v":0},null,{"$f":"(Sammlungsverzeichnis!C36)","v":0},null,{"$f":"(Sammlungsverzeichnis!E36)","v":0}]
[null,{"$f":"IF(Sammlungsverzeichnis!D30=0, Sammlungsverzeichnis!T30, Sammlungsverzeichnis!D30)","v":"00:00:00"},null,{"$f":"(Sammlungsverzeichnis!U30)","v":0},null,{"$f":"IF(Sammlungsverzeichnis!D31=0, Sammlungsverzeichnis!T31, Sammlungsverzeichnis!D31)","v":"00:00:00"},null,{"$f":"(Sammlungsverzeichnis!U31)","v":0},null,{"$f":"IF(Sammlungsverzeichnis!D32=0, Sammlungsverzeichnis!T32, Sammlungsverzeichnis!D32)","v":"00:00:00"},null,{"$f":"(Sammlungsverzeichnis!U32)","v":0},null,{"$f":"IF(Sammlungsverzeichnis!D33=0, Sammlungsverzeichnis!T33, Sammlungsverzeichnis!D33)","v":"00:00:00"},null,{"$f":"(Sammlungsverzeichnis!U33)","v":0},null,{"$f":"IF(Sammlungsverzeichnis!D34=0, Sammlungsverzeichnis!T34, Sammlungsverzeichnis!D34)","v":"00:00:00"},null,{"$f":"(Sammlungsverzeichnis!U34)","v":0},null,{"$f":"IF(Sammlungsverzeichnis!D35=0, Sammlungsverzeichnis!T35, Sammlungsverzeichnis!D35)","v":"00:00:00"},null,{"$f":"(Sammlungsverzeichnis!U35)","v":0},null,{"$f":"IF(Sammlungsverzeichnis!D36=0, Sammlungsverzeichnis!T36, Sammlungsverzeichnis!D36)","v":"00:00:00"},null,{"$f":"(Sammlungsverzeichnis!U36)","v":0}]
[null,{"$f":"(Sammlungsverzeichnis!V30)","v":"00:00:00"},null,null,null,{"$f":"(Sammlungsverzeichnis!V31)","v":"00:00:00"},null,null,null,{"$f":"(Sammlungsverzeichnis!V32)","v":"00:00:00"},null,null,null,{"$f":"(Sammlungsverzeichnis!V33)","v":"00:00:00"},null,null,null,{"$f":"(Sammlungsverzeichnis!V34)","v":"00:00:00"},null,null,null,{"$f":"(Sammlungsverzeichnis!V35)","v":"00:00:00"},null,null,null,{"$f":"(Sammlungsverzeichnis!V36)","v":"00:00:00"}]
[null,{"$f":"(Sammlungsverzeichnis!R30)","v":0},null,null,null,{"$f":"(Sammlungsverzeichnis!R31)","v":0},null,null,null,{"$f":"(Sammlungsverzeichnis!R32)","v":0},null,null,null,{"$f":"(Sammlungsverzeichnis!R33)","v":0},null,null,null,{"$f":"(Sammlungsverzeichnis!R34)","v":0},null,null,null,{"$f":"(Sammlungsverzeichnis!R35)","v":0},null,null,null,{"$f":"(Sammlungsverzeichnis!R36)","v":0}]
[null,{"$f":"(Sammlungsverzeichnis!E3&\" \"&Sammlungsverzeichnis!C3&\" \"&Sammlungsverzeichnis!C4)","v":"col.  Max Mustermann"},null,null,null,{"$f":"(Sammlungsverzeichnis!E3&\" \"&Sammlungsverzeichnis!C3&\" \"&Sammlungsverzeichnis!C4)","v":"col.  Max Mustermann"},null,null,null,{"$f":"(Sammlungsverzeichnis!E3&\" \"&Sammlungsverzeichnis!C3&\" \"&Sammlungsverzeichnis!C4)","v":"col.  Max Mustermann"},null,null,null,{"$f":"(Sammlungsverzeichnis!E3&\" \"&Sammlungsverzeichnis!C3&\" \"&Sammlungsverzeichnis!C4)","v":"col.  Max Mustermann"},null,null,null,{"$f":"(Sammlungsverzeichnis!E3&\" \"&Sammlungsverzeichnis!C3&\" \"&Sammlungsverzeichnis!C4)","v":"col.  Max Mustermann"},null,null,null,{"$f":"(Sammlungsverzeichnis!E3&\" \"&Sammlungsverzeichnis!C3&\" \"&Sammlungsverzeichnis!C4)","v":"col.  Max Mustermann"},null,null,null,{"$f":"(Sammlungsverzeichnis!E3&\" \"&Sammlungsverzeichnis!C3&\" \"&Sammlungsverzeichnis!C4)","v":"col.  Max Mustermann"}]
[]
[null,{"$f":"(Sammlungsverzeichnis!M30)","v":0},null,{"$f":"(Sammlungsverzeichnis!Y30)","v":0},null,{"$f":"(Sammlungsverzeichnis!M31)","v":0},null,{"$f":"(Sammlungsverzeichnis!Y31)","v":0},null,{"$f":"(Sammlungsverzeichnis!M32)","v":0},null,{"$f":"(Sammlungsverzeichnis!Y32)","v":0},null,{"$f":"(Sammlungsverzeichnis!M33)","v":0},null,{"$f":"(Sammlungsverzeichnis!Y33)","v":0},null,{"$f":"(Sammlungsverzeichnis!M34)","v":0},null,{"$f":"(Sammlungsverzeichnis!Y34)","v":0},null,{"$f":"(Sammlungsverzeichnis!M35)","v":0},null,{"$f":"(Sammlungsverzeichnis!Y35)","v":0},null,{"$f":"(Sammlungsverzeichnis!M36)","v":0},null,{"$f":"(Sammlungsverzeichnis!Y36)","v":0}]
[null,{"$f":"(Sammlungsverzeichnis!N30)","v":0},null,null,null,{"$f":"(Sammlungsverzeichnis!N31)","v":0},null,null,null,{"$f":"(Sammlungsverzeichnis!N32)","v":0},null,null,null,{"$f":"(Sammlungsverzeichnis!N33)","v":0},null,null,null,{"$f":"(Sammlungsverzeichnis!N34)","v":0},null,null,null,{"$f":"(Sammlungsverzeichnis!N35)","v":0},null,null,null,{"$f":"(Sammlungsverzeichnis!N36)","v":0}]
[null,{"$f":"(Sammlungsverzeichnis!O30)","v":0},null,null,null,{"$f":"(Sammlungsverzeichnis!O31)","v":0},null,null,null,{"$f":"(Sammlungsverzeichnis!O32)","v":0},null,null,null,{"$f":"(Sammlungsverzeichnis!O33)","v":0},null,null,null,{"$f":"(Sammlungsverzeichnis!O34)","v":0},null,null,null,{"$f":"(Sammlungsverzeichnis!O35)","v":0},null,null,null,{"$f":"(Sammlungsverzeichnis!O36)","v":0}]
[null,{"$f":"(Sammlungsverzeichnis!P30)","v":0},null,null,null,{"$f":"(Sammlungsverzeichnis!P31)","v":0},null,null,null,{"$f":"(Sammlungsverzeichnis!P32)","v":0},null,null,null,{"$f":"(Sammlungsverzeichnis!P33)","v":0},null,null,null,{"$f":"(Sammlungsverzeichnis!P34)","v":0},null,null,null,{"$f":"(Sammlungsverzeichnis!P35)","v":0},null,null,null,{"$f":"(Sammlungsverzeichnis!P36)","v":0}]
[null,{"$f":"(Sammlungsverzeichnis!Q30)","v":0},{"$f":"(Sammlungsverzeichnis!W30)","v":0},null,null,{"$f":"(Sammlungsverzeichnis!Q31)","v":0},{"$f":"(Sammlungsverzeichnis!W31)","v":0},null,null,{"$f":"(Sammlungsverzeichnis!Q32)","v":0},{"$f":"(Sammlungsverzeichnis!W32)","v":0},null,null,{"$f":"(Sammlungsverzeichnis!Q33)","v":0},{"$f":"(Sammlungsverzeichnis!W33)","v":0},null,null,{"$f":"(Sammlungsverzeichnis!Q34)","v":0},{"$f":"(Sammlungsverzeichnis!W34)","v":0},null,null,{"$f":"(Sammlungsverzeichnis!Q35)","v":0},{"$f":"(Sammlungsverzeichnis!W35)","v":0},null,null,{"$f":"(Sammlungsverzeichnis!Q36)","v":0},{"$f":"(Sammlungsverzeichnis!W36)","v":0}]
[]
[null,{"$f":"(Sammlungsverzeichnis!S30)","v":0},null,null,null,{"$f":"(Sammlungsverzeichnis!S31)","v":0},null,null,null,{"$f":"(Sammlungsverzeichnis!S32)","v":0},null,null,null,{"$f":"(Sammlungsverzeichnis!S33)","v":0},null,null,null,{"$f":"(Sammlungsverzeichnis!S34)","v":0},null,null,null,{"$f":"(Sammlungsverzeichnis!S35)","v":0},null,null,null,{"$f":"(Sammlungsverzeichnis!S36)","v":0}]
[]
[null,{"$f":"(Sammlungsverzeichnis!C37)","v":0},null,{"$f":"(Sammlungsverzeichnis!E37)","v":0},null,{"$f":"(Sammlungsverzeichnis!C38)","v":0},null,{"$f":"(Sammlungsverzeichnis!E38)","v":0},null,{"$f":"(Sammlungsverzeichnis!C39)","v":0},null,{"$f":"(Sammlungsverzeichnis!E39)","v":0},null,{"$f":"(Sammlungsverzeichnis!C40)","v":0},null,{"$f":"(Sammlungsverzeichnis!E40)","v":0},null,{"$f":"(Sammlungsverzeichnis!C41)","v":0},null,{"$f":"(Sammlungsverzeichnis!E41)","v":0},null,{"$f":"(Sammlungsverzeichnis!C42)","v":0},null,{"$f":"(Sammlungsverzeichnis!E42)","v":0},null,{"$f":"(Sammlungsverzeichnis!C43)","v":0},null,{"$f":"(Sammlungsverzeichnis!E43)","v":0}]
[null,{"$f":"IF(Sammlungsverzeichnis!D37=0, Sammlungsverzeichnis!T37, Sammlungsverzeichnis!D37)","v":"00:00:00"},null,{"$f":"(Sammlungsverzeichnis!U37)","v":0},null,{"$f":"IF(Sammlungsverzeichnis!D38=0, Sammlungsverzeichnis!T38, Sammlungsverzeichnis!D38)","v":"00:00:00"},null,{"$f":"(Sammlungsverzeichnis!U38)","v":0},null,{"$f":"IF(Sammlungsverzeichnis!D39=0, Sammlungsverzeichnis!T39, Sammlungsverzeichnis!D39)","v":"00:00:00"},null,{"$f":"(Sammlungsverzeichnis!U39)","v":0},null,{"$f":"IF(Sammlungsverzeichnis!D40=0, Sammlungsverzeichnis!T40, Sammlungsverzeichnis!D40)","v":"00:00:00"},null,{"$f":"(Sammlungsverzeichnis!U40)","v":0},null,{"$f":"IF(Sammlungsverzeichnis!D41=0, Sammlungsverzeichnis!T41, Sammlungsverzeichnis!D41)","v":"00:00:00"},null,{"$f":"(Sammlungsverzeichnis!U41)","v":0},null,{"$f":"IF(Sammlungsverzeichnis!D42=0, Sammlungsverzeichnis!T42, Sammlungsverzeichnis!D42)","v":"00:00:00"},null,{"$f":"(Sammlungsverzeichnis!U42)","v":0},null,{"$f":"IF(Sammlungsverzeichnis!D43=0, Sammlungsverzeichnis!T43, Sammlungsverzeichnis!D43)","v":"00:00:00"},null,{"$f":"(Sammlungsverzeichnis!U43)","v":0}]
[null,{"$f":"(Sammlungsverzeichnis!V37)","v":"00:00:00"},null,null,null,{"$f":"(Sammlungsverzeichnis!V38)","v":"00:00:00"},null,null,null,{"$f":"(Sammlungsverzeichnis!V39)","v":"00:00:00"},null,null,null,{"$f":"(Sammlungsverzeichnis!V40)","v":"00:00:00"},null,null,null,{"$f":"(Sammlungsverzeichnis!V41)","v":"00:00:00"},null,null,null,{"$f":"(Sammlungsverzeichnis!V42)","v":"00:00:00"},null,null,null,{"$f":"(Sammlungsverzeichnis!V43)","v":"00:00:00"}]
[null,{"$f":"(Sammlungsverzeichnis!R37)","v":0},null,null,null,{"$f":"(Sammlungsverzeichnis!R38)","v":0},null,null,null,{"$f":"(Sammlungsverzeichnis!R39)","v":0},null,null,null,{"$f":"(Sammlungsverzeichnis!R40)","v":0},null,null,null,{"$f":"(Sammlungsverzeichnis!R41)","v":0},null,null,null,{"$f":"(Sammlungsverzeichnis!R42)","v":0},null,null,null,{"$f":"(Sammlungsverzeichnis!R43)","v":0}]
[null,{"$f":"(Sammlungsverzeichnis!E3&\" \"&Sammlungsverzeichnis!C3&\" \"&Sammlungsverzeichnis!C4)","v":"col.  Max Mustermann"},null,null,null,{"$f":"(Sammlungsverzeichnis!E3&\" \"&Sammlungsverzeichnis!C3&\" \"&Sammlungsverzeichnis!C4)","v":"col.  Max Mustermann"},null,null,null,{"$f":"(Sammlungsverzeichnis!E3&\" \"&Sammlungsverzeichnis!C3&\" \"&Sammlungsverzeichnis!C4)","v":"col.  Max Mustermann"},null,null,null,{"$f":"(Sammlungsverzeichnis!E3&\" \"&Sammlungsverzeichnis!C3&\" \"&Sammlungsverzeichnis!C4)","v":"col.  Max Mustermann"},null,null,null,{"$f":"(Sammlungsverzeichnis!E3&\" \"&Sammlungsverzeichnis!C3&\" \"&Sammlungsverzeichnis!C4)","v":"col.  Max Mustermann"},null,null,null,{"$f":"(Sammlungsverzeichnis!E3&\" \"&Sammlungsverzeichnis!C3&\" \"&Sammlungsverzeichnis!C4)","v":"col.  Max Mustermann"},null,null,null,{"$f":"(Sammlungsverzeichnis!E3&\" \"&Sammlungsverzeichnis!C3&\" \"&Sammlungsverzeichnis!C4)","v":"col.  Max Mustermann"}]
[]
[null,{"$f":"(Sammlungsverzeichnis!M37)","v":0},null,{"$f":"(Sammlungsverzeichnis!Y37)","v":0},null,{"$f":"(Sammlungsverzeichnis!M38)","v":0},null,{"$f":"(Sammlungsverzeichnis!Y38)","v":0},null,{"$f":"(Sammlungsverzeichnis!M39)","v":0},null,{"$f":"(Sammlungsverzeichnis!Y39)","v":0},null,{"$f":"(Sammlungsverzeichnis!M40)","v":0},null,{"$f":"(Sammlungsverzeichnis!Y40)","v":0},null,{"$f":"(Sammlungsverzeichnis!M41)","v":0},null,{"$f":"(Sammlungsverzeichnis!Y41)","v":0},null,{"$f":"(Sammlungsverzeichnis!M42)","v":0},null,{"$f":"(Sammlungsverzeichnis!Y42)","v":0},null,{"$f":"(Sammlungsverzeichnis!M43)","v":0},null,{"$f":"(Sammlungsverzeichnis!Y43)","v":0}]
[null,{"$f":"(Sammlungsverzeichnis!N37)","v":0},null,null,null,{"$f":"(Sammlungsverzeichnis!N38)","v":0},null,null,null,{"$f":"(Sammlungsverzeichnis!N39)","v":0},null,null,null,{"$f":"(Sammlungsverzeichnis!N40)","v":0},null,null,null,{"$f":"(Sammlungsverzeichnis!N41)","v":0},null,null,null,{"$f":"(Sammlungsverzeichnis!N42)","v":0},null,null,null,{"$f":"(Sammlungsverzeichnis!N43)","v":0}]
[null,{"$f":"(Sammlungsverzeichnis!O37)","v":0},null,null,null,{"$f":"(Sammlungsverzeichnis!O38)","v":0},null,null,null,{"$f":"(Sammlungsverzeichnis!O39)","v":0},null,null,null,{"$f":"(Sammlungsverzeichnis!O40)","v":0},null,null,null,{"$f":"(Sammlungsverzeichnis!O41)","v":0},null,null,null,{"$f":"(Sammlungsverzeichnis!O42)","v":0},null,null,null,{"$f":"(Sammlungsverzeichnis!O43)","v":0}]
[null,{"$f":"(Sammlungsverzeichnis!P37)","v":0},null,null,null,{"$f":"(Sammlungsverzeichnis!P38)","v":0},null,null,null,{"$f":"(Sammlungsverzeichnis!P39)","v":0},null,null,null,{"$f":"(Sammlungsverzeichnis!P40)","v":0},null,null,null,{"$f":"(Sammlungsverzeichnis!P41)","v":0},null,null,null,{"$f":"(Sammlungsverzeichnis!P42)","v":0},null,null,null,{"$f":"(Sammlungsverzeichnis!P43)","v":0}]
[null,{"$f":"(Sammlungsverzeichnis!Q37)","v":0},{"$f":"(Sammlungsverzeichnis!W37)","v":0},null,null,{"$f":"(Sammlungsverzeichnis!Q38)","v":0},{"$f":"(Sammlungsverzeichnis!W38)","v":0},null,null,{"$f":"(Sammlungsverzeichnis!Q39)","v":0},{"$f":"(Sammlungsverzeichnis!W39)","v":0},null,null,{"$f":"(Sammlungsverzeichnis!Q40)","v":0},{"$f":"(Sammlungsverzeichnis!W40)","v":0},null,null,{"$f":"(Sammlungsverzeichnis!Q41)","v":0},{"$f":"(Sammlungsverzeichnis!W41)","v":0},null,null,{"$f":"(Sammlungsverzeichnis!Q42)","v":0},{"$f":"(Sammlungsverzeichnis!W42)","v":0},null,null,{"$f":"(Sammlungsverzeichnis!Q43)","v":0},{"$f":"(Sammlungsverzeichnis!W43)","v":0}]
[]
[null,{"$f":"(Sammlungsverzeichnis!S37)","v":0},null,null,null,{"$f":"(Sammlungsverzeichnis!S38)","v":0},null,null,null,{"$f":"(Sammlungsverzeichnis!S39)","v":0},null,null,null,{"$f":"(Sammlungsverzeichnis!S40)","v":0},null,null,null,{"$f":"(Sammlungsverzeichnis!S41)","v":0},null,null,null,{"$f":"(Sammlungsverzeichnis!S42)","v":0},null,null,null,{"$f":"(Sammlungsverzeichnis!S43)","v":0}]
[]
[null,{"$f":"(Sammlungsverzeichnis!C44)","v":0},null,{"$f":"(Sammlungsverzeichnis!E44)","v":0},null,{"$f":"(Sammlungsverzeichnis!C45)","v":0},null,{"$f":"(Sammlungsverzeichnis!E45)","v":0},null,{"$f":"(Sammlungsverzeichnis!C46)","v":0},null,{"$f":"(Sammlungsverzeichnis!E46)","v":0},null,{"$f":"(Sammlungsverzeichnis!C47)","v":0},null,{"$f":"(Sammlungsverzeichnis!E47)","v":0},null,{"$f":"(Sammlungsverzeichnis!C48)","v":0},null,{"$f":"(Sammlungsverzeichnis!E48)","v":0},null,{"$f":"(Sammlungsverzeichnis!C49)","v":0},null,{"$f":"(Sammlungsverzeichnis!E49)","v":0},null,{"$f":"(Sammlungsverzeichnis!C50)","v":0},null,{"$f":"(Sammlungsverzeichnis!E50)","v":0}]
[null,{"$f":"IF(Sammlungsverzeichnis!D44=0, Sammlungsverzeichnis!T44, Sammlungsverzeichnis!D44)","v":"00:00:00"},null,{"$f":"(Sammlungsverzeichnis!U44)","v":0},null,{"$f":"IF(Sammlungsverzeichnis!D45=0, Sammlungsverzeichnis!T45, Sammlungsverzeichnis!D45)","v":"00:00:00"},null,{"$f":"(Sammlungsverzeichnis!U45)","v":0},null,{"$f":"IF(Sammlungsverzeichnis!D46=0, Sammlungsverzeichnis!T46, Sammlungsverzeichnis!D46)","v":"00:00:00"},null,{"$f":"(Sammlungsverzeichnis!U46)","v":0},null,{"$f":"IF(Sammlungsverzeichnis!D47=0, Sammlungsverzeichnis!T47, Sammlungsverzeichnis!D47)","v":"00:00:00"},null,{"$f":"(Sammlungsverzeichnis!U47)","v":0},null,{"$f":"IF(Sammlungsverzeichnis!D48=0, Sammlungsverzeichnis!T48, Sammlungsverzeichnis!D48)","v":"00:00:00"},null,{"$f":"(Sammlungsverzeichnis!U48)","v":0},null,{"$f":"IF(Sammlungsverzeichnis!D49=0, Sammlungsverzeichnis!T49, Sammlungsverzeichnis!D49)","v":"00:00:00"},null,{"$f":"(Sammlungsverzeichnis!U49)","v":0},null,{"$f":"IF(Sammlungsverzeichnis!D50=0, Sammlungsverzeichnis!T50, Sammlungsverzeichnis!D50)","v":"00:00:00"},null,{"$f":"(Sammlungsverzeichnis!U50)","v":0}]
[null,{"$f":"(Sammlungsverzeichnis!V44)","v":"00:00:00"},null,null,null,{"$f":"(Sammlungsverzeichnis!V45)","v":"00:00:00"},null,null,null,{"$f":"(Sammlungsverzeichnis!V46)","v":"00:00:00"},null,null,null,{"$f":"(Sammlungsverzeichnis!V47)","v":"00:00:00"},null,null,null,{"$f":"(Sammlungsverzeichnis!V48)","v":"00:00:00"},null,null,null,{"$f":"(Sammlungsverzeichnis!V49)","v":"00:00:00"},null,null,null,{"$f":"(Sammlungsverzeichnis!V50)","v":"00:00:00"}]
[null,{"$f":"(Sammlungsverzeichnis!R44)","v":0},null,null,null,{"$f":"(Sammlungsverzeichnis!R45)","v":0},null,null,null,{"$f":"(Sammlungsverzeichnis!R46)","v":0},null,null,null,{"$f":"(Sammlungsverzeichnis!R47)","v":0},null,null,null,{"$f":"(Sammlungsverzeichnis!R48)","v":0},null,null,null,{"$f":"(Sammlungsverzeichnis!R49)","v":0},null,null,null,{"$f":"(Sammlungsverzeichnis!R50)","v":0}]
[null,{"$f":"(Sammlungsverzeichnis!E3&\" \"&Sammlungsverzeichnis!C3&\" \"&Sammlungsverzeichnis!C4)","v":"col.  Max Mustermann"},null,null,null,{"$f":"(Sammlungsverzeichnis!E3&\" \"&Sammlungsverzeichnis!C3&\" \"&Sammlungsverzeichnis!C4)","v":"col.  Max Mustermann"},null,null,null,{"$f":"(Sammlungsverzeichnis!E3&\" \"&Sammlungsverzeichnis!C3&\" \"&Sammlungsverzeichnis!C4)","v":"col.  Max Mustermann"},null,null,null,{"$f":"(Sammlungsverzeichnis!E3&\" \"&Sammlungsverzeichnis!C3&\" \"&Sammlungsverzeichnis!C4)","v":"col.  Max Mustermann"},null,null,null,{"$f":"(Sammlungsverzeichnis!E3&\" \"&Sammlungsverzeichnis!C3&\" \"&Sammlungsverzeichnis!C4)","v":"col.  Max Mustermann"},null,null,null,{"$f":"(Sammlungsverzeichnis!E3&\" \"&Sammlungsverzeichnis!C3&\" \"&Sammlungsverzeichnis!C4)","v":"col.  Max Mustermann"},null,null,null,{"$f":"(Sammlungsverzeichnis!E3&\" \"&Sammlungsverzeichnis!C3&\" \"&Sammlungsverzeichnis!C4)","v":"col.  Max Mustermann"}]
[]
[null,{"$f":"(Sammlungsverzeichnis!M44)","v":0},null,{"$f":"(Sammlungsverzeichnis!Y44)","v":0},null,{"$f":"(Sammlungsverzeichnis!M45)","v":0},null,{"$f":"(Sammlungsverzeichnis!Y45)","v":0},null,{"$f":"(Sammlungsverzeichnis!M46)","v":0},null,{"$f":"(Sammlungsverzeichnis!Y46)","v":0},null,{"$f":"(Sammlungsverzeichnis!M47)","v":0},null,{"$f":"(Sammlungsverzeichnis!Y47)","v":0},null,{"$f":"(Sammlungsverzeichnis!M48)","v":0},null,{"$f":"(Sammlungsverzeichnis!Y48)","v":0},null,{"$f":"(Sammlungsverzeichnis!M49)","v":0},null,{"$f":"(Sammlungsverzeichnis!Y49)","v":0},null,{"$f":"(Sammlungsverzeichnis!M50)","v":0},null,{"$f":"(Sammlungsverzeichnis!Y50)","v":0}]
[null,{"$f":"(Sammlungsverzeichnis!N44)","v":0},null,null,null,{"$f":"(Sammlungsverzeichnis!N45)","v":0},null,null,null,{"$f":"(Sammlungsverzeichnis!N46)","v":0},null,null,null,{"$f":"(Sammlungsverzeichnis!N47)","v":0},null,null,null,{"$f":"(Sammlungsverzeichnis!N48)","v":0},null,null,null,{"$f":"(Sammlungsverzeichnis!N49)","v":0},null,null,null,{"$f":"(Sammlungsverzeichnis!N50)","v":0}]
[null,{"$f":"(Sammlungsverzeichnis!O44)","v":0},null,null,null,{"$f":"(Sammlungsverzeichnis!O45)","v":0},null,null,null,{"$f":"(Sammlungsverzeichnis!O46)","v":0},null,null,null,{"$f":"(Sammlungsverzeichnis!O47)","v":0},null,null,null,{"$f":"(Sammlungsverzeichnis!O48)","v":0},null,null,null,{"$f":"(Sammlungsverzeichnis!O49)","v":0},null,null,null,{"$f":"(Sammlungsverzeichnis!O50)","v":0}]
[null,{"$f":"(Sammlungsverzeichnis!P44)","v":0},null,null,null,{"$f":"(Sammlungsverzeichnis!P45)","v":0},null,null,null,{"$f":"(Sammlungsverzeichnis!P46)","v":0},null,null,null,{"$f":"(Sammlungsverzeichnis!P47)","v":0},null,null,null,{"$f":"(Sammlungsverzeichnis!P48)","v":0},null,null,null,{"$f":"(Sammlungsverzeichnis!P49)","v":0},null,null,null,{"$f":"(Sammlungsverzeichnis!P50)","v":0}]
[null,{"$f":"(Sammlungsverzeichnis!Q44)","v":0},{"$f":"(Sammlungsverzeichnis!W44)","v":0},null,null,{"$f":"(Sammlungsverzeichnis!Q45)","v":0},{"$f":"(Sammlungsverzeichnis!W45)","v":0},null,null,{"$f":"(Sammlungsverzeichnis!Q46)","v":0},{"$f":"(Sammlungsverzeichnis!W46)","v":0},null,null,{"$f":"(Sammlungsverzeichnis!Q47)","v":0},{"$f":"(Sammlungsverzeichnis!W47)","v":0},null,null,{"$f":"(Sammlungsverzeichnis!Q48)","v":0},{"$f":"(Sammlungsverzeichnis!W48)","v":0},null,null,{"$f":"(Sammlungsverzeichnis!Q49)","v":0},{"$f":"(Sammlungsverzeichnis!W49)","v":0},null,null,{"$f":"(Sammlungsverzeichnis!Q50)","v":0},{"$f":"(Sammlungsverzeichnis!W50)","v":0}]
[]
[null,{"$f":"(Sammlungsverzeichnis!S44)","v":0},null,null,null,{"$f":"(Sammlungsverzeichnis!S45)","v":0},null,null,null,{"$f":"(Sammlungsverzeichnis!S46)","v":0},null,null,null,{"$f":"(Sammlungsverzeichnis!S47)","v":0},null,null,null,{"$f":"(Sammlungsverzeichnis!S48)","v":0},null,null,null,{"$f":"(Sammlungsverzeichnis!S49)","v":0},null,null,null,{"$f":"(Sammlungsverzeichnis!S50)","v":0}]
[]
[null,"http://www.entopedia.info",null,null,null,null,null,null,null,null,null,null,null,null,null,null,null,"© Michael Frank | All rights reserved"]

{"sheet":"Etiketten - Weiss","index":3,"n_rows":89,"n_cols":28,"rows_kept":89,"cut":false,"hidden":false,"merged":[[86,25,86,27],[88,1,88,15],[88,17,88,27],[5,27,8,27],[5,23,8,23],[5,19,8,19],[5,15,8,15],[5,11,8,11],[5,7,8,7],[5,3,8,3],[86,1,86,3],[86,5,86,7],[86,9,86,11],[86,13,86,15],[86,17,86,19],[86,21,86,23],[82,25,82,26],[83,1,83,2],[83,5,83,6],[83,9,83,10],[83,13,83,14],[83,17,83,18],[83,21,83,22],[83,25,83,26],[80,27,84,27],[81,1,81,2],[81,5,81,6],[81,9,81,10],[81,13,81,14],[81,17,81,18],[81,21,81,22],[81,25,81,26],[82,1,82,2],[80,13,80,14],[80,15,84,15],[80,17,80,18],[80,19,84,19],[80,21,80,22],[80,23,84,23],[82,13,82,14],[82,17,82,18],[82,21,82,22],[80,1,80,2],[80,3,84,3],[80,5,80,6],[80,7,84,7],[80,9,80,10],[80,11,84,11],[82,5,82,6],[82,9,82,10],[77,25,77,26],[78,1,78,2],[78,5,78,6],[78,9,78,10],[78,13,78,14],[78,17,78,18],[78,21,78,22],[78,25,78,26],[75,11,77,11],[77,5,77,6],[77,9,77,10],[80,25,80,26],[75,25,75,26],[75,27,77,27],[76,1,76,2],[76,5,76,6],[76,9,76,10],[76,13,76,14],[76,17,76,18],[76,21,76,22],[76,25,76,26],[77,1,77,2],[75,13,75,14],[75,15,77,15],[75,17,75,18],[75,19,77,19],[75,21,75,22],[75,23,77,23],[77,13,77,14],[77,17,77,18],[77,21,77,22],[75,1,75,2],[75,3,77,3],[75,5,75,6],[75,7,77,7],[75,9,75,10],[72,25,72,27],[74,1,74,2],[74,5,74,6],[74,9,74,10],[74,13,74,14],[74,17,74,18],[74,21,74,22],[74,25,74,26],[72,1,72,3],[72,5,72,7],[72,9,72,11],[72,13,72,15],[72,17,72,19],[72,21,72,23],[68,25,68,26],[69,1,69,2],[69,5,69,6],[69,9,69,10],[69,13,69,14],[69,17,69,18],[69,21,69,22],[69,25,69,26],[66,25,66,26],[68,5,68,6],[68,9,68,10],[66,27,70,27],[67,1,67,2],[67,5,67,6],[67,9,67,10],[67,13,67,14],[67,17,67,18],[67,21,67,22],[67,25,67,26],[68,1,68,2],[66,13,66,14],[66,15,70,15],[66,17,66,18],[66,19,70,19],[66,21,66,22],[66,23,70,23],[68,13,68,14],[68,17,68,18],[68,21,68,22],[66,1,66,2],[66,3,70,3],[66,5,66,6],[66,7,70,7],[66,9,66,10],[66,11,70,11],[63,25,63,26],[64,1,64,2],[64,5,64,6],[64,9,64,10],[64,13,64,14],[64,17,64,18],[64,21,64,22],[64,25,64,26],[61,25,61,26],[63,5,63,6],[63,9,63,10],[61,27,63,27],[62,1,62,2],[62,5,62,6],[62,9,62,10],[62,13,62,14],[62,17,62,18],[62,21,62,22],[62,25,62,26],[63,1,63,2],[61,13,61,14],[61,15,63,15],[61,17,61,18],[61,19,63,19],[61,21,61,22],[61,23,63,23],[63,13,63,14],[63,17,63,18],[63,21,63,22],[61,1,61,2],[61,3,63,3],[61,5,61,6],[61,7,63,7],[61,9,61,10],[61,11,63,11],[58,25,58,27],[60,1,60,2],[60,5,60,6],[60,9,60,10],[60,13,60,14],[60,17,60,18],[60,21,60,22],[60,25,60,26],[58,1,58,3],[58,5,58,7],[58,9,58,11],[58,13,58,15],[58,17,58,19],[58,21,58,23],[54,25,54,26],[55,1,55,2],[55,5,55,6],[55,9,55,10],[55,13,55,14],[55,17,55,18],[55,21,55,22],[55,25,55,26],[52,25,52,26],[54,5,54,6],[54,9,54,10],[52,27,56,27],[53,1,53,2],[53,5,53,6],[53,9,53,10],[53,13,53,14],[53,17,53,18],[53,21,53,22],[53,25,53,26],[54,1,54,2],[52,13,52,14],[52,15,56,15],[52,17,52,18],[52,19,56,19],[52,21,52,22],[52,23,56,23],[54,13,54,14],[54,17,54,18],[54,21,54,22],[52,1,52,2],[52,3,56,3],[52,5,52,6],[52,7,56,7],[52,9,52,10],[52,11,56,11],[49,25,49,26],[50,1,50,2],[50,5,50,6],[50,9,50,10],[50,13,50,14],[50,17,50,18],[50,21,50,22],[50,25,50,26],[47,25,47,26],[49,5,49,6],[49,9,49,10],[47,27,49,27],[48,1,48,2],[48,5,48,6],[48,9,48,10],[48,13,48,14],[48,17,48,18],[48,21,48,22],[48,25,48,26],[49,1,49,2],[47,13,47,14],[47,15,49,15],[47,17,47,18],[47,19,49,19],[47,21,47,22],[47,23,49,23],[49,13,49,14],[49,17,49,18],[49,21,49,22],[47,1,47,2],[47,3,49,3],[47,5,47,6],[47,7,49,7],[47,9,47,10],[47,11,49,11],[44,25,44,27],[46,1,46,2],[46,5,46,6],[46,9,46,10],[46,13,46,14],[46,17,46,18],[46,21,46,22],[46,25,46,26],[44,1,44,3],[44,5,44,7],[44,9,44,11],[44,13,44,15],[44,17,44,19],[44,21,44,23],[40,25,40,26],[41,1,41,2],[41,5,41,6],[41,9,41,10],[41,13,41,14],[41,17,41,18],[41,21,41,22],[41,25,41,26],[38,25,38,26],[40,5,40,6],[40,9,40,10],[38,27,42,27],[39,1,39,2],[39,5,39,6],[39,9,39,10],[39,13,39,14],[39,17,39,18],[39,21,39,22],[39,25,39,26],[40,1,40,2],[38,13,38,14],[38,15,42,15],[38,17,38,18],[38,19,42,19],[38,21,38,22],[38,23,42,23],[40,13,40,14],[40,17,40,18],[40,21,40,22],[38,1,38,2],[38,3,42,3],[38,5,38,6],[38,7,42,7],[38,9,38,10],[38,11,42,11],[35,25,35,26],[36,1,36,2],[36,5,36,6],[36,9,36,10],[36,13,36,14],[36,17,36,18],[36,21,36,22],[36,25,36,26],[33,25,33,26],[35,5,35,6],[35,9,35,10],[33,27,35,27],[34,1,34,2],[34,5,34,6],[34,9,34,10],[34,13,34,14],[34,17,34,18],[34,21,34,22],[34,25,34,26],[35,1,35,2],[33,13,33,14],[33,15,35,15],[33,17,33,18],[33,19,35,19],[33,21,33,22],[33,23,35,23],[35,13,35,14],[35,17,35,18],[35,21,35,22],[33,1,33,2],[33,3,35,3],[33,5,33,6],[33,7,35,7],[33,9,33,10],[33,11,35,11],[30,25,30,27],[32,1,32,2],[32,5,32,6],[32,9,32,10],[32,13,32,14],[32,17,32,18],[32,21,32,22],[32,25,32,26],[30,1,30,3],[30,5,30,7],[30,9,30,11],[30,13,30,15],[30,17,30,19],[30,21,30,23],[26,25,26,26],[27,1,27,2],[27,5,27,6],[27,9,27,10],[27,13,27,14],[27,17,27,18],[27,21,27,22],[27,25,27,26],[24,25,24,26],[26,5,26,6],[26,9,26,10],[24,27,28,27],[25,1,25,2],[25,5,25,6],[25,9,25,10],[25,13,25,14],[25,17,25,18],[25,21,25,22],[25,25,25,26],[26,1,26,2],[24,13,24,14],[24,15,28,15],[24,17,24,18],[24,19,28,19],[24,21,24,22],[24,23,28,23],[26,13,26,14],[26,17,26,18],[26,21,26,22],[24,1,24,2],[24,3,28,3],[24,5,24,6],[24,7,28,7],[24,9,24,10],[24,11,28,11],[21,25,21,26],[22,1,22,2],[22,5,22,6],[22,9,22,10],[22,13,22,14],[22,17,22,18],[22,21,22,22],[22,25,22,26],[19,25,19,26],[21,5,21,6],[21,9,21,10],[19,27,21,27],[20,1,20,2],[20,5,20,6],[20,9,20,10],[20,13,20,14],[20,17,20,18],[20,21,20,22],[20,25,20,26],[21,1,21,2],[19,13,19,14],[19,15,21,15],[19,17,19,18],[19,19,21,19],[19,21,19,22],[19,23,21,23],[21,13,21,14],[21,17,21,18],[21,21,21,22],[19,1,19,2],[19,3,21,3],[19,5,19,6],[19,7,21,7],[19,9,19,10],[19,11,21,11],[16,25,16,27],[18,1,18,2],[18,5,18,6],[18,9,18,10],[18,13,18,14],[18,17,18,18],[18,21,18,22],[18,25,18,26],[16,1,16,3],[16,5,16,7],[16,9,16,11],[16,13,16,15],[16,17,16,19],[16,21,16,23],[12,25,12,26],[13,1,13,2],[13,5,13,6],[13,9,13,10],[13,13,13,14],[13,17,13,18],[13,21,13,22],[13,25,13,26],[10,25,10,26],[12,5,12,6],[12,9,12,10],[10,27,14,27],[11,1,11,2],[11,5,11,6],[11,9,11,10],[11,13,11,14],[11,17,11,18],[11,21,11,22],[11,25,11,26],[12,1,12,2],[10,13,10,14],[10,15,14,15],[10,17,10,18],[10,19,14,19],[10,21,10,22],[10,23,14,23],[12,13,12,14],[12,17,12,18],[12,21,12,22],[10,1,10,2],[10,3,14,3],[10,5,10,6],[10,7,14,7],[10,9,10,10],[10,11,14,11],[8,1,8,2],[8,5,8,6],[8,9,8,10],[8,13,8,14],[8,17,8,18],[8,21,8,22],[8,25,8,26],[5,25,5,26],[6,1,6,2],[6,5,6,6],[6,9,6,10],[6,13,6,14],[6,17,6,18],[6,21,6,22],[6,25,6,26],[7,1,7,2],[5,13,5,14],[5,17,5,18],[5,21,5,22],[7,13,7,14],[7,17,7,18],[7,21,7,22],[5,1,5,2],[5,5,5,6],[5,9,5,10],[7,5,7,6],[7,9,7,10],[0,1,0,14],[0,22,0,27],[4,1,4,2],[4,5,4,6],[4,9,4,10],[4,13,4,14],[4,17,4,18],[4,21,4,22],[4,25,4,26],[7,25,7,26]]}
[null,"Sammlungs - Etiketten (weiss)",null,null,null,null,null,null,null,null,null,null,null,null,null,null,null,null,null,null,null,null,{"$f":"TODAY()","v":"2016-10-12"}]
[]
[]
[]
[null,{"$f":"(Sammlungsverzeichnis!C9)","v":"Thecla betulae"},null,{"$f":"(Sammlungsverzeichnis!E9)","v":"♀"},null,{"$f":"(Sammlungsverzeichnis!C10)","v":"Smerinthus kindermanni"},null,{"$f":"(Sammlungsverzeichnis!E10)","v":"♂"},null,{"$f":"(Sammlungsverzeichnis!C11)","v":"Colias crocea"},null,{"$f":"(Sammlungsverzeichnis!E11)","v":"♀"},null,{"$f":"(Sammlungsverzeichnis!C12)","v":"Inachis io"},null,{"$f":"(Sammlungsverzeichnis!E12)","v":"♂"},null,{"$f":"(Sammlungsverzeichnis!C13)","v":"Colias crocea"},null,{"$f":"(Sammlungsverzeichnis!E13)","v":"♀"},null,{"$f":"(Sammlungsverzeichnis!C14)","v":"Colias crocea"},null,{"$f":"(Sammlungsverzeichnis!E14)","v":"♀"},null,{"$f":"(Sammlungsverzeichnis!C15)","v":0},null,{"$f":"(Sammlungsverzeichnis!E15)","v":0}]
[null,{"$f":"IF(Sammlungsverzeichnis!D9=0, Sammlungsverzeichnis!T9, Sammlungsverzeichnis!D9)","v":"sonnig"},null,{"$f":"(Sammlungsverzeichnis!U9)","v":"ca. 24°C"},null,{"$f":"IF(Sammlungsverzeichnis!D10=0, Sammlungsverzeichnis!T10, Sammlungsverzeichnis!D10)","v":"ssp. kindermanni "},null,{"$f":"(Sammlungsverzeichnis!U10)","v":"ca. 33°C"},null,{"$f":"IF(Sammlungsverzeichnis!D11=0, Sammlungsverzeichnis!T11, Sammlungsverzeichnis!D11)","v":"sonnig, heiter"},null,{"$f":"(Sammlungsverzeichnis!U11)","v":"ca. 25°C"},null,{"$f":"IF(Sammlungsverzeichnis!D12=0, Sammlungsverzeichnis!T12, Sammlungsverzeichnis!D12)","v":"sonnig, heiter"},null,{"$f":"(Sammlungsverzeichnis!U12)","v":"ca. 25°C"},null,{"$f":"IF(Sammlungsverzeichnis!D13=0, Sammlungsverzeichnis!T13, Sammlungsverzeichnis!D13)","v":"sonnig, heiter"},null,{"$f":"(Sammlungsverzeichnis!U13)","v":"ca. 25°C"},null,{"$f":"IF(Sammlungsverzeichnis!D14=0, Sammlungsverzeichnis!T14, Sammlungsverzeichnis!D14)","v":"wechselhaft"},null,{"$f":"(Sammlungsverzeichnis!U14)","v":"ca. 16°C"},null,{"$f":"IF(Sammlungsverzeichnis!D15=0, Sammlungsverzeichnis!T15, Sammlungsverzeichnis!D15)","v":"00:00:00"},null,{"$f":"(Sammlungsverzeichnis!U15)","v":0}]
[null,{"$f":"(Sammlungsverzeichnis!V9)","v":"2016-09-25"},null,null,null,{"$f":"(Sammlungsverzeichnis!V10)","v":"2015-06-14"},null,null,null,{"$f":"(Sammlungsverzeichnis!V11)","v":"23. - 25.09.2016"},null,null,null,{"$f":"(Sammlungsverzeichnis!V12)","v":"23. - 25.09.2016"},null,null,null,{"$f":"(Sammlungsverzeichnis!V13)","v":"23. - 25.09.2016"},null,null,null,{"$f":"(Sammlungsverzeichnis!V14)","v":"2016-09-21"},null,null,null,{"$f":"(Sammlungsverzeichnis!V15)","v":"00:00:00"}]
[null,{"$f":"(Sammlungsverzeichnis!R9)","v":"Max Mustermann leg."},null,null,null,{"$f":"(Sammlungsverzeichnis!R10)","v":"Max Mustermann leg."},null,null,null,{"$f":"(Sammlungsverzeichnis!R11)","v":"Max Mustermann leg."},null,null,null,{"$f":"(Sammlungsverzeichnis!R12)","v":"Max Mustermann leg."},null,null,null,{"$f":"(Sammlungsverzeichnis!R13)","v":"Max Mustermann leg."},null,null,null,{"$f":"(Sammlungsverzeichnis!R14)","v":"Max Mustermann leg."},null,null,null,{"$f":"(Sammlungsverzeichnis!R15)","v":0}]
[null,{"$f":"(Sammlungsverzeichnis!E3&\" \"&Sammlungsverzeichnis!C3&\" \"&Sammlungsverzeichnis!C4)","v":"col.  Max Mustermann"},null,null,null,{"$f":"(Sammlungsverzeichnis!E3&\" \"&Sammlungsverzeichnis!C3&\" \"&Sammlungsverzeichnis!C4)","v":"col.  Max Mustermann"},null,null,null,{"$f":"(Sammlungsverzeichnis!E3&\" \"&Sammlungsverzeichnis!C3&\" \"&Sammlungsverzeichnis!C4)","v":"col.  Max Mustermann"},null,null,null,{"$f":"(Sammlungsverzeichnis!E3&\" \"&Sammlungsverzeichnis!C3&\" \"&Sammlungsverzeichnis!C4)","v":"col.  Max Mustermann"},null,null,null,{"$f":"(Sammlungsverzeichnis!E3&\" \"&Sammlungsverzeichnis!C3&\" \"&Sammlungsverzeichnis!C4)","v":"col.  Max Mustermann"},null,null,null,{"$f":"(Sammlungsverzeichnis!E3&\" \"&Sammlungsverzeichnis!C3&\" \"&Sammlungsverzeichnis!C4)","v":"col.  Max Mustermann"},null,null,null,{"$f":"(Sammlungsverzeichnis!E3&\" \"&Sammlungsverzeichnis!C3&\" \"&Sammlungsverzeichnis!C4)","v":"col.  Max Mustermann"}]
[]
[null,{"$f":"(Sammlungsverzeichnis!M9)","v":"Austria"},null,{"$f":"(Sammlungsverzeichnis!Y9)","v":"ENr.: 0000006"},null,{"$f":"(Sammlungsverzeichnis!M10)","v":"Türkei"},null,{"$f":"(Sammlungsverzeichnis!Y10)","v":"ENr.: 0000005"},null,{"$f":"(Sammlungsverzeichnis!M11)","v":"Austria"},null,{"$f":"(Sammlungsverzeichnis!Y11)","v":"ENr.: 0000004"},null,{"$f":"(Sammlungsverzeichnis!M12)","v":"Austria"},null,{"$f":"(Sammlungsverzeichnis!Y12)","v":"ENr.: 0000003"},null,{"$f":"(Sammlungsverzeichnis!M13)","v":"Austria"},null,{"$f":"(Sammlungsverzeichnis!Y13)","v":"ENr.: 0000002"},null,{"$f":"(Sammlungsverzeichnis!M14)","v":"Austria"},null,{"$f":"(Sammlungsverzeichnis!Y14)","v":"ENr.: 0000001"},null,{"$f":"(Sammlungsverzeichnis!M15)","v":0},null,{"$f":"(Sammlungsverzeichnis!Y15)","v":0}]
[null,{"$f":"(Sammlungsverzeichnis!N9)","v":"NÖ"},null,null,null,{"$f":"(Sammlungsverzeichnis!N10)","v":"Anatolien"},null,null,null,{"$f":"(Sammlungsverzeichnis!N11)","v":"NÖ"},null,null,null,{"$f":"(Sammlungsverzeichnis!N12)","v":"NÖ"},null,null,null,{"$f":"(Sammlungsverzeichnis!N13)","v":"NÖ"},null,null,null,{"$f":"(Sammlungsverzeichnis!N14)","v":"Stmk"},null,null,null,{"$f":"(Sammlungsverzeichnis!N15)","v":0}]
[null,{"$f":"(Sammlungsverzeichnis!O9)","v":"Musterstadt"},null,null,null,{"$f":"(Sammlungsverzeichnis!O10)","v":"Musterstadt"},null,null,null,{"$f":"(Sammlungsverzeichnis!O11)","v":"Musterstadt"},null,null,null,{"$f":"(Sammlungsverzeichnis!O12)","v":"Musterstadt"},null,null,null,{"$f":"(Sammlungsverzeichnis!O13)","v":"Musterstadt"},null,null,null,{"$f":"(Sammlungsverzeichnis!O14)","v":"Musterdorf"},null,null,null,{"$f":"(Sammlungsverzeichnis!O15)","v":0}]
[null,{"$f":"(Sammlungsverzeichnis!P9)","v":"48° 13' 17″ N, 14° 22' 41″ O"},null,null,null,{"$f":"(Sammlungsverzeichnis!P10)","v":"48° 13' 17″ N, 14° 22' 41″ O"},null,null,null,{"$f":"(Sammlungsverzeichnis!P11)","v":"48° 13' 17″ N, 14° 22' 41″ O"},null,null,null,{"$f":"(Sammlungsverzeichnis!P12)","v":"48° 13' 17″ N, 14° 22' 41″ O"},null,null,null,{"$f":"(Sammlungsverzeichnis!P13)","v":"48° 13' 17″ N, 14° 22' 41″ O"},null,null,null,{"$f":"(Sammlungsverzeichnis!P14)","v":"48° 13' 17″ N, 14° 22' 41″ O"},null,null,null,{"$f":"(Sammlungsverzeichnis!P15)","v":0}]
[null,{"$f":"(Sammlungsverzeichnis!Q9)","v":"472 Meter"},{"$f":"(Sammlungsverzeichnis!W9)","v":"15:00 Uhr"},null,null,{"$f":"(Sammlungsverzeichnis!Q10)","v":"472 Meter"},{"$f":"(Sammlungsverzeichnis!W10)","v":"22:58 Uhr"},null,null,{"$f":"(Sammlungsverzeichnis!Q11)","v":"472 Meter"},{"$f":"(Sammlungsverzeichnis!W11)","v":"Nachmittags"},null,null,{"$f":"(Sammlungsverzeichnis!Q12)","v":"472 Meter"},{"$f":"(Sammlungsverzeichnis!W12)","v":"Nachmittags"},null,null,{"$f":"(Sammlungsverzeichnis!Q13)","v":"472 Meter"},{"$f":"(Sammlungsverzeichnis!W13)","v":"Nachmittags"},null,null,{"$f":"(Sammlungsverzeichnis!Q14)","v":"203 Meter"},{"$f":"(Sammlungsverzeichnis!W14)","v":"14:30 Uhr"},null,null,{"$f":"(Sammlungsverzeichnis!Q15)","v":0},{"$f":"(Sammlungsverzeichnis!W15)","v":0}]
[]
[null,{"$f":"(Sammlungsverzeichnis!S9)","v":"an blühendem Efeustrauch"},null,null,null,{"$f":"(Sammlungsverzeichnis!S10)","v":"Lichtfang"},null,null,null,{"$f":"(Sammlungsverzeichnis!S11)","v":"bei Blütenbesuch gefangen"},null,null,null,{"$f":"(Sammlungsverzeichnis!S12)","v":"bei Blütenbesuch gefangen"},null,null,null,{"$f":"(Sammlungsverzeichnis!S13)","v":"bei Blütenbesuch gefangen"},null,null,null,{"$f":"(Sammlungsverzeichnis!S14)","v":"Auf Wiese (Paarungsflug)"},null,null,null,{"$f":"(Sammlungsverzeichnis!S15)","v":0}]
[]
[null,{"$f":"(Sammlungsverzeichnis!C16)","v":0},null,{"$f":"(Sammlungsverzeichnis!E16)","v":0},null,{"$f":"(Sammlungsverzeichnis!C17)","v":0},null,{"$f":"(Sammlungsverzeichnis!E17)","v":0},null,{"$f":"(Sammlungsverzeichnis!C18)","v":0},null,{"$f":"(Sammlungsverzeichnis!E18)","v":0},null,{"$f":"(Sammlungsverzeichnis!C19)","v":0},null,{"$f":"(Sammlungsverzeichnis!E19)","v":0},null,{"$f":"(Sammlungsverzeichnis!C20)","v":0},null,{"$f":"(Sammlungsverzeichnis!E20)","v":0},null,{"$f":"(Sammlungsverzeichnis!C21)","v":0},null,{"$f":"(Sammlungsverzeichnis!E21)","v":0},null,{"$f":"(Sammlungsverzeichnis!C22)","v":0},null,{"$f":"(Sammlungsverzeichnis!E22)","v":0}]
[null,{"$f":"IF(Sammlungsverzeichnis!D16=0, Sammlungsverzeichnis!T16, Sammlungsverzeichnis!D16)","v":"00:00:00"},null,{"$f":"(Sammlungsverzeichnis!U16)","v":0},null,{"$f":"IF(Sammlungsverzeichnis!D17=0, Sammlungsverzeichnis!T17, Sammlungsverzeichnis!D17)","v":"00:00:00"},null,{"$f":"(Sammlungsverzeichnis!U17)","v":0},null,{"$f":"IF(Sammlungsverzeichnis!D18=0, Sammlungsverzeichnis!T18, Sammlungsverzeichnis!D18)","v":"00:00:00"},null,{"$f":"(Sammlungsverzeichnis!U18)","v":0},null,{"$f":"IF(Sammlungsverzeichnis!D19=0, Sammlungsverzeichnis!T19, Sammlungsverzeichnis!D19)","v":"00:00:00"},null,{"$f":"(Sammlungsverzeichnis!U19)","v":0},null,{"$f":"IF(Sammlungsverzeichnis!D20=0, Sammlungsverzeichnis!T20, Sammlungsverzeichnis!D20)","v":"00:00:00"},null,{"$f":"(Sammlungsverzeichnis!U20)","v":0},null,{"$f":"IF(Sammlungsverzeichnis!D21=0, Sammlungsverzeichnis!T21, Sammlungsverzeichnis!D21)","v":"00:00:00"},null,{"$f":"(Sammlungsverzeichnis!U21)","v":0},null,{"$f":"IF(Sammlungsverzeichnis!D22=0, Sammlungsverzeichnis!T22, Sammlungsverzeichnis!D22)","v":"00:00:00"},null,{"$f":"(Sammlungsverzeichnis!U22)","v":0}]
[null,{"$f":"(Sammlungsverzeichnis!V16)","v":"00:00:00"},null,null,null,{"$f":"(Sammlungsverzeichnis!V17)","v":"00:00:00"},null,null,null,{"$f":"(Sammlungsverzeichnis!V18)","v":"00:00:00"},null,null,null,{"$f":"(Sammlungsverzeichnis!V19)","v":"00:00:00"},null,null,null,{"$f":"(Sammlungsverzeichnis!V20)","v":"00:00:00"},null,null,null,{"$f":"(Sammlungsverzeichnis!V21)","v":"00:00:00"},null,null,null,{"$f":"(Sammlungsverzeichnis!V22)","v":"00:00:00"}]
[null,{"$f":"(Sammlungsverzeichnis!R16)","v":0},null,null,null,{"$f":"(Sammlungsverzeichnis!R17)","v":0},null,null,null,{"$f":"(Sammlungsverzeichnis!R18)","v":0},null,null,null,{"$f":"(Sammlungsverzeichnis!R19)","v":0},null,null,null,{"$f":"(Sammlungsverzeichnis!R20)","v":0},null,null,null,{"$f":"(Sammlungsverzeichnis!R21)","v":0},null,null,null,{"$f":"(Sammlungsverzeichnis!R22)","v":0}]
[null,{"$f":"(Sammlungsverzeichnis!E3&\" \"&Sammlungsverzeichnis!C3&\" \"&Sammlungsverzeichnis!C4)","v":"col.  Max Mustermann"},null,null,null,{"$f":"(Sammlungsverzeichnis!E3&\" \"&Sammlungsverzeichnis!C3&\" \"&Sammlungsverzeichnis!C4)","v":"col.  Max Mustermann"},null,null,null,{"$f":"(Sammlungsverzeichnis!E3&\" \"&Sammlungsverzeichnis!C3&\" \"&Sammlungsverzeichnis!C4)","v":"col.  Max Mustermann"},null,null,null,{"$f":"(Sammlungsverzeichnis!E3&\" \"&Sammlungsverzeichnis!C3&\" \"&Sammlungsverzeichnis!C4)","v":"col.  Max Mustermann"},null,null,null,{"$f":"(Sammlungsverzeichnis!E3&\" \"&Sammlungsverzeichnis!C3&\" \"&Sammlungsverzeichnis!C4)","v":"col.  Max Mustermann"},null,null,null,{"$f":"(Sammlungsverzeichnis!E3&\" \"&Sammlungsverzeichnis!C3&\" \"&Sammlungsverzeichnis!C4)","v":"col.  Max Mustermann"},null,null,null,{"$f":"(Sammlungsverzeichnis!E3&\" \"&Sammlungsverzeichnis!C3&\" \"&Sammlungsverzeichnis!C4)","v":"col.  Max Mustermann"}]
[]
[null,{"$f":"(Sammlungsverzeichnis!M16)","v":0},null,{"$f":"(Sammlungsverzeichnis!Y16)","v":0},null,{"$f":"(Sammlungsverzeichnis!M17)","v":0},null,{"$f":"(Sammlungsverzeichnis!Y17)","v":0},null,{"$f":"(Sammlungsverzeichnis!M18)","v":0},null,{"$f":"(Sammlungsverzeichnis!Y18)","v":0},null,{"$f":"(Sammlungsverzeichnis!M19)","v":0},null,{"$f":"(Sammlungsverzeichnis!Y19)","v":0},null,{"$f":"(Sammlungsverzeichnis!M20)","v":0},null,{"$f":"(Sammlungsverzeichnis!Y20)","v":0},null,{"$f":"(Sammlungsverzeichnis!M21)","v":0},null,{"$f":"(Sammlungsverzeichnis!Y21)","v":0},null,{"$f":"(Sammlungsverzeichnis!M22)","v":0},null,{"$f":"(Sammlungsverzeichnis!Y22)","v":0}]
[null,{"$f":"(Sammlungsverzeichnis!N16)","v":0},null,null,null,{"$f":"(Sammlungsverzeichnis!N17)","v":0},null,null,null,{"$f":"(Sammlungsverzeichnis!N18)","v":0},null,null,null,{"$f":"(Sammlungsverzeichnis!N19)","v":0},null,null,null,{"$f":"(Sammlungsverzeichnis!N20)","v":0},null,null,null,{"$f":"(Sammlungsverzeichnis!N21)","v":0},null,null,null,{"$f":"(Sammlungsverzeichnis!N22)","v":0}]
[null,{"$f":"(Sammlungsverzeichnis!O16)","v":0},null,null,null,{"$f":"(Sammlungsverzeichnis!O17)","v":0},null,null,null,{"$f":"(Sammlungsverzeichnis!O18)","v":0},null,null,null,{"$f":"(Sammlungsverzeichnis!O19)","v":0},null,null,null,{"$f":"(Sammlungsverzeichnis!O20)","v":0},null,null,null,{"$f":"(Sammlungsverzeichnis!O21)","v":0},null,null,null,{"$f":"(Sammlungsverzeichnis!O22)","v":0}]
[null,{"$f":"(Sammlungsverzeichnis!P16)","v":0},null,null,null,{"$f":"(Sammlungsverzeichnis!P17)","v":0},null,null,null,{"$f":"(Sammlungsverzeichnis!P18)","v":0},null,null,null,{"$f":"(Sammlungsverzeichnis!P19)","v":0},null,null,null,{"$f":"(Sammlungsverzeichnis!P20)","v":0},null,null,null,{"$f":"(Sammlungsverzeichnis!P21)","v":0},null,null,null,{"$f":"(Sammlungsverzeichnis!P22)","v":0}]
[null,{"$f":"(Sammlungsverzeichnis!Q16)","v":0},{"$f":"(Sammlungsverzeichnis!W16)","v":0},null,null,{"$f":"(Sammlungsverzeichnis!Q17)","v":0},{"$f":"(Sammlungsverzeichnis!W17)","v":0},null,null,{"$f":"(Sammlungsverzeichnis!Q18)","v":0},{"$f":"(Sammlungsverzeichnis!W18)","v":0},null,null,{"$f":"(Sammlungsverzeichnis!Q19)","v":0},{"$f":"(Sammlungsverzeichnis!W19)","v":0},null,null,{"$f":"(Sammlungsverzeichnis!Q20)","v":0},{"$f":"(Sammlungsverzeichnis!W20)","v":0},null,null,{"$f":"(Sammlungsverzeichnis!Q21)","v":0},{"$f":"(Sammlungsverzeichnis!W21)","v":0},null,null,{"$f":"(Sammlungsverzeichnis!Q22)","v":0},{"$f":"(Sammlungsverzeichnis!W22)","v":0}]
[]
[null,{"$f":"(Sammlungsverzeichnis!S16)","v":0},null,null,null,{"$f":"(Sammlungsverzeichnis!S17)","v":0},null,null,null,{"$f":"(Sammlungsverzeichnis!S18)","v":0},null,null,null,{"$f":"(Sammlungsverzeichnis!S19)","v":0},null,null,null,{"$f":"(Sammlungsverzeichnis!S20)","v":0},null,null,null,{"$f":"(Sammlungsverzeichnis!S21)","v":0},null,null,null,{"$f":"(Sammlungsverzeichnis!S22)","v":0}]
[]
[null,{"$f":"(Sammlungsverzeichnis!C23)","v":0},null,{"$f":"(Sammlungsverzeichnis!E23)","v":0},null,{"$f":"(Sammlungsverzeichnis!C24)","v":0},null,{"$f":"(Sammlungsverzeichnis!E24)","v":0},null,{"$f":"(Sammlungsverzeichnis!C25)","v":0},null,{"$f":"(Sammlungsverzeichnis!E25)","v":0},null,{"$f":"(Sammlungsverzeichnis!C26)","v":0},null,{"$f":"(Sammlungsverzeichnis!E26)","v":0},null,{"$f":"(Sammlungsverzeichnis!C27)","v":0},null,{"$f":"(Sammlungsverzeichnis!E27)","v":0},null,{"$f":"(Sammlungsverzeichnis!C28)","v":0},null,{"$f":"(Sammlungsverzeichnis!E28)","v":0},null,{"$f":"(Sammlungsverzeichnis!C29)","v":0},null,{"$f":"(Sammlungsverzeichnis!E29)","v":0}]
[null,{"$f":"IF(Sammlungsverzeichnis!D23=0, Sammlungsverzeichnis!T23, Sammlungsverzeichnis!D23)","v":"00:00:00"},null,{"$f":"(Sammlungsverzeichnis!U23)","v":0},null,{"$f":"IF(Sammlungsverzeichnis!D24=0, Sammlungsverzeichnis!T24, Sammlungsverzeichnis!D24)","v":"00:00:00"},null,{"$f":"(Sammlungsverzeichnis!U24)","v":0},null,{"$f":"IF(Sammlungsverzeichnis!D25=0, Sammlungsverzeichnis!T25, Sammlungsverzeichnis!D25)","v":"00:00:00"},null,{"$f":"(Sammlungsverzeichnis!U25)","v":0},null,{"$f":"IF(Sammlungsverzeichnis!D26=0, Sammlungsverzeichnis!T26, Sammlungsverzeichnis!D26)","v":"00:00:00"},null,{"$f":"(Sammlungsverzeichnis!U26)","v":0},null,{"$f":"IF(Sammlungsverzeichnis!D27=0, Sammlungsverzeichnis!T27, Sammlungsverzeichnis!D27)","v":"00:00:00"},null,{"$f":"(Sammlungsverzeichnis!U27)","v":0},null,{"$f":"IF(Sammlungsverzeichnis!D28=0, Sammlungsverzeichnis!T28, Sammlungsverzeichnis!D28)","v":"00:00:00"},null,{"$f":"(Sammlungsverzeichnis!U28)","v":0},null,{"$f":"IF(Sammlungsverzeichnis!D29=0, Sammlungsverzeichnis!T29, Sammlungsverzeichnis!D29)","v":"00:00:00"},null,{"$f":"(Sammlungsverzeichnis!U29)","v":0}]
[null,{"$f":"(Sammlungsverzeichnis!V23)","v":"00:00:00"},null,null,null,{"$f":"(Sammlungsverzeichnis!V24)","v":"00:00:00"},null,null,null,{"$f":"(Sammlungsverzeichnis!V25)","v":"00:00:00"},null,null,null,{"$f":"(Sammlungsverzeichnis!V26)","v":"00:00:00"},null,null,null,{"$f":"(Sammlungsverzeichnis!V27)","v":"00:00:00"},null,null,null,{"$f":"(Sammlungsverzeichnis!V28)","v":"00:00:00"},null,null,null,{"$f":"(Sammlungsverzeichnis!V29)","v":"00:00:00"}]
[null,{"$f":"(Sammlungsverzeichnis!R23)","v":0},null,null,null,{"$f":"(Sammlungsverzeichnis!R24)","v":0},null,null,null,{"$f":"(Sammlungsverzeichnis!R25)","v":0},null,null,null,{"$f":"(Sammlungsverzeichnis!R26)","v":0},null,null,null,{"$f":"(Sammlungsverzeichnis!R27)","v":0},null,null,null,{"$f":"(Sammlungsverzeichnis!R28)","v":0},null,null,null,{"$f":"(Sammlungsverzeichnis!R29)","v":0}]
[null,{"$f":"(Sammlungsverzeichnis!E3&\" \"&Sammlungsverzeichnis!C3&\" \"&Sammlungsverzeichnis!C4)","v":"col.  Max Mustermann"},null,null,null,{"$f":"(Sammlungsverzeichnis!E3&\" \"&Sammlungsverzeichnis!C3&\" \"&Sammlungsverzeichnis!C4)","v":"col.  Max Mustermann"},null,null,null,{"$f":"(Sammlungsverzeichnis!E3&\" \"&Sammlungsverzeichnis!C3&\" \"&Sammlungsverzeichnis!C4)","v":"col.  Max Mustermann"},null,null,null,{"$f":"(Sammlungsverzeichnis!E3&\" \"&Sammlungsverzeichnis!C3&\" \"&Sammlungsverzeichnis!C4)","v":"col.  Max Mustermann"},null,null,null,{"$f":"(Sammlungsverzeichnis!E3&\" \"&Sammlungsverzeichnis!C3&\" \"&Sammlungsverzeichnis!C4)","v":"col.  Max Mustermann"},null,null,null,{"$f":"(Sammlungsverzeichnis!E3&\" \"&Sammlungsverzeichnis!C3&\" \"&Sammlungsverzeichnis!C4)","v":"col.  Max Mustermann"},null,null,null,{"$f":"(Sammlungsverzeichnis!E3&\" \"&Sammlungsverzeichnis!C3&\" \"&Sammlungsverzeichnis!C4)","v":"col.  Max Mustermann"}]
[]
[null,{"$f":"(Sammlungsverzeichnis!M23)","v":0},null,{"$f":"(Sammlungsverzeichnis!Y23)","v":0},null,{"$f":"(Sammlungsverzeichnis!M24)","v":0},null,{"$f":"(Sammlungsverzeichnis!Y24)","v":0},null,{"$f":"(Sammlungsverzeichnis!M25)","v":0},null,{"$f":"(Sammlungsverzeichnis!Y25)","v":0},null,{"$f":"(Sammlungsverzeichnis!M26)","v":0},null,{"$f":"(Sammlungsverzeichnis!Y26)","v":0},null,{"$f":"(Sammlungsverzeichnis!M27)","v":0},null,{"$f":"(Sammlungsverzeichnis!Y27)","v":0},null,{"$f":"(Sammlungsverzeichnis!M28)","v":0},null,{"$f":"(Sammlungsverzeichnis!Y28)","v":0},null,{"$f":"(Sammlungsverzeichnis!M29)","v":0},null,{"$f":"(Sammlungsverzeichnis!Y29)","v":0}]
[null,{"$f":"(Sammlungsverzeichnis!N23)","v":0},null,null,null,{"$f":"(Sammlungsverzeichnis!N24)","v":0},null,null,null,{"$f":"(Sammlungsverzeichnis!N25)","v":0},null,null,null,{"$f":"(Sammlungsverzeichnis!N26)","v":0},null,null,null,{"$f":"(Sammlungsverzeichnis!N27)","v":0},null,null,null,{"$f":"(Sammlungsverzeichnis!N28)","v":0},null,null,null,{"$f":"(Sammlungsverzeichnis!N29)","v":0}]
[null,{"$f":"(Sammlungsverzeichnis!O23)","v":0},null,null,null,{"$f":"(Sammlungsverzeichnis!O24)","v":0},null,null,null,{"$f":"(Sammlungsverzeichnis!O25)","v":0},null,null,null,{"$f":"(Sammlungsverzeichnis!O26)","v":0},null,null,null,{"$f":"(Sammlungsverzeichnis!O27)","v":0},null,null,null,{"$f":"(Sammlungsverzeichnis!O28)","v":0},null,null,null,{"$f":"(Sammlungsverzeichnis!O29)","v":0}]
[null,{"$f":"(Sammlungsverzeichnis!P23)","v":0},null,null,null,{"$f":"(Sammlungsverzeichnis!P24)","v":0},null,null,null,{"$f":"(Sammlungsverzeichnis!P25)","v":0},null,null,null,{"$f":"(Sammlungsverzeichnis!P26)","v":0},null,null,null,{"$f":"(Sammlungsverzeichnis!P27)","v":0},null,null,null,{"$f":"(Sammlungsverzeichnis!P28)","v":0},null,null,null,{"$f":"(Sammlungsverzeichnis!P29)","v":0}]
[null,{"$f":"(Sammlungsverzeichnis!Q23)","v":0},{"$f":"(Sammlungsverzeichnis!W23)","v":0},null,null,{"$f":"(Sammlungsverzeichnis!Q24)","v":0},{"$f":"(Sammlungsverzeichnis!W24)","v":0},null,null,{"$f":"(Sammlungsverzeichnis!Q25)","v":0},{"$f":"(Sammlungsverzeichnis!W25)","v":0},null,null,{"$f":"(Sammlungsverzeichnis!Q26)","v":0},{"$f":"(Sammlungsverzeichnis!W26)","v":0},null,null,{"$f":"(Sammlungsverzeichnis!Q27)","v":0},{"$f":"(Sammlungsverzeichnis!W27)","v":0},null,null,{"$f":"(Sammlungsverzeichnis!Q28)","v":0},{"$f":"(Sammlungsverzeichnis!W28)","v":0},null,null,{"$f":"(Sammlungsverzeichnis!Q29)","v":0},{"$f":"(Sammlungsverzeichnis!W29)","v":0}]
[]
[null,{"$f":"(Sammlungsverzeichnis!S23)","v":0},null,null,null,{"$f":"(Sammlungsverzeichnis!S24)","v":0},null,null,null,{"$f":"(Sammlungsverzeichnis!S25)","v":0},null,null,null,{"$f":"(Sammlungsverzeichnis!S26)","v":0},null,null,null,{"$f":"(Sammlungsverzeichnis!S27)","v":0},null,null,null,{"$f":"(Sammlungsverzeichnis!S28)","v":0},null,null,null,{"$f":"(Sammlungsverzeichnis!S29)","v":0}]
[]
[null,{"$f":"(Sammlungsverzeichnis!C30)","v":0},null,{"$f":"(Sammlungsverzeichnis!E30)","v":0},null,{"$f":"(Sammlungsverzeichnis!C31)","v":0},null,{"$f":"(Sammlungsverzeichnis!E31)","v":0},null,{"$f":"(Sammlungsverzeichnis!C32)","v":0},null,{"$f":"(Sammlungsverzeichnis!E32)","v":0},null,{"$f":"(Sammlungsverzeichnis!C33)","v":0},null,{"$f":"(Sammlungsverzeichnis!E32)","v":0},null,{"$f":"(Sammlungsverzeichnis!C34)","v":0},null,{"$f":"(Sammlungsverzeichnis!E34)","v":0},null,{"$f":"(Sammlungsverzeichnis!C35)","v":0},null,{"$f":"(Sammlungsverzeichnis!E35)","v":0},null,{"$f":"(Sammlungsverzeichnis!C36)","v":0},null,{"$f":"(Sammlungsverzeichnis!E36)","v":0}]
[null,{"$f":"IF(Sammlungsverzeichnis!D30=0, Sammlungsverzeichnis!T30, Sammlungsverzeichnis!D30)","v":"00:00:00"},null,{"$f":"(Sammlungsverzeichnis!U30)","v":0},null,{"$f":"IF(Sammlungsverzeichnis!D31=0, Sammlungsverzeichnis!T31, Sammlungsverzeichnis!D31)","v":"00:00:00"},null,{"$f":"(Sammlungsverzeichnis!U31)","v":0},null,{"$f":"IF(Sammlungsverzeichnis!D32=0, Sammlungsverzeichnis!T32, Sammlungsverzeichnis!D32)","v":"00:00:00"},null,{"$f":"(Sammlungsverzeichnis!U32)","v":0},null,{"$f":"IF(Sammlungsverzeichnis!D33=0, Sammlungsverzeichnis!T33, Sammlungsverzeichnis!D33)","v":"00:00:00"},null,{"$f":"(Sammlungsverzeichnis!U33)","v":0},null,{"$f":"IF(Sammlungsverzeichnis!D34=0, Sammlungsverzeichnis!T34, Sammlungsverzeichnis!D34)","v":"00:00:00"},null,{"$f":"(Sammlungsverzeichnis!U34)","v":0},null,{"$f":"IF(Sammlungsverzeichnis!D35=0, Sammlungsverzeichnis!T35, Sammlungsverzeichnis!D35)","v":"00:00:00"},null,{"$f":"(Sammlungsverzeichnis!U35)","v":0},null,{"$f":"IF(Sammlungsverzeichnis!D36=0, Sammlungsverzeichnis!T36, Sammlungsverzeichnis!D36)","v":"00:00:00"},null,{"$f":"(Sammlungsverzeichnis!U36)","v":0}]
[null,{"$f":"(Sammlungsverzeichnis!V30)","v":"00:00:00"},null,null,null,{"$f":"(Sammlungsverzeichnis!V31)","v":"00:00:00"},null,null,null,{"$f":"(Sammlungsverzeichnis!V32)","v":"00:00:00"},null,null,null,{"$f":"(Sammlungsverzeichnis!V33)","v":"00:00:00"},null,null,null,{"$f":"(Sammlungsverzeichnis!V34)","v":"00:00:00"},null,null,null,{"$f":"(Sammlungsverzeichnis!V35)","v":"00:00:00"},null,null,null,{"$f":"(Sammlungsverzeichnis!V36)","v":"00:00:00"}]
[null,{"$f":"(Sammlungsverzeichnis!R30)","v":0},null,null,null,{"$f":"(Sammlungsverzeichnis!R31)","v":0},null,null,null,{"$f":"(Sammlungsverzeichnis!R32)","v":0},null,null,null,{"$f":"(Sammlungsverzeichnis!R33)","v":0},null,null,null,{"$f":"(Sammlungsverzeichnis!R34)","v":0},null,null,null,{"$f":"(Sammlungsverzeichnis!R35)","v":0},null,null,null,{"$f":"(Sammlungsverzeichnis!R36)","v":0}]
[null,{"$f":"(Sammlungsverzeichnis!E3&\" \"&Sammlungsverzeichnis!C3&\" \"&Sammlungsverzeichnis!C4)","v":"col.  Max Mustermann"},null,null,null,{"$f":"(Sammlungsverzeichnis!E3&\" \"&Sammlungsverzeichnis!C3&\" \"&Sammlungsverzeichnis!C4)","v":"col.  Max Mustermann"},null,null,null,{"$f":"(Sammlungsverzeichnis!E3&\" \"&Sammlungsverzeichnis!C3&\" \"&Sammlungsverzeichnis!C4)","v":"col.  Max Mustermann"},null,null,null,{"$f":"(Sammlungsverzeichnis!E3&\" \"&Sammlungsverzeichnis!C3&\" \"&Sammlungsverzeichnis!C4)","v":"col.  Max Mustermann"},null,null,null,{"$f":"(Sammlungsverzeichnis!E3&\" \"&Sammlungsverzeichnis!C3&\" \"&Sammlungsverzeichnis!C4)","v":"col.  Max Mustermann"},null,null,null,{"$f":"(Sammlungsverzeichnis!E3&\" \"&Sammlungsverzeichnis!C3&\" \"&Sammlungsverzeichnis!C4)","v":"col.  Max Mustermann"},null,null,null,{"$f":"(Sammlungsverzeichnis!E3&\" \"&Sammlungsverzeichnis!C3&\" \"&Sammlungsverzeichnis!C4)","v":"col.  Max Mustermann"}]
[]
[null,{"$f":"(Sammlungsverzeichnis!M30)","v":0},null,{"$f":"(Sammlungsverzeichnis!Y30)","v":0},null,{"$f":"(Sammlungsverzeichnis!M31)","v":0},null,{"$f":"(Sammlungsverzeichnis!Y31)","v":0},null,{"$f":"(Sammlungsverzeichnis!M32)","v":0},null,{"$f":"(Sammlungsverzeichnis!Y32)","v":0},null,{"$f":"(Sammlungsverzeichnis!M33)","v":0},null,{"$f":"(Sammlungsverzeichnis!Y33)","v":0},null,{"$f":"(Sammlungsverzeichnis!M34)","v":0},null,{"$f":"(Sammlungsverzeichnis!Y34)","v":0},null,{"$f":"(Sammlungsverzeichnis!M35)","v":0},null,{"$f":"(Sammlungsverzeichnis!Y35)","v":0},null,{"$f":"(Sammlungsverzeichnis!M36)","v":0},null,{"$f":"(Sammlungsverzeichnis!Y36)","v":0}]
[null,{"$f":"(Sammlungsverzeichnis!N30)","v":0},null,null,null,{"$f":"(Sammlungsverzeichnis!N31)","v":0},null,null,null,{"$f":"(Sammlungsverzeichnis!N32)","v":0},null,null,null,{"$f":"(Sammlungsverzeichnis!N33)","v":0},null,null,null,{"$f":"(Sammlungsverzeichnis!N34)","v":0},null,null,null,{"$f":"(Sammlungsverzeichnis!N35)","v":0},null,null,null,{"$f":"(Sammlungsverzeichnis!N36)","v":0}]
[null,{"$f":"(Sammlungsverzeichnis!O30)","v":0},null,null,null,{"$f":"(Sammlungsverzeichnis!O31)","v":0},null,null,null,{"$f":"(Sammlungsverzeichnis!O32)","v":0},null,null,null,{"$f":"(Sammlungsverzeichnis!O33)","v":0},null,null,null,{"$f":"(Sammlungsverzeichnis!O34)","v":0},null,null,null,{"$f":"(Sammlungsverzeichnis!O35)","v":0},null,null,null,{"$f":"(Sammlungsverzeichnis!O36)","v":0}]
[null,{"$f":"(Sammlungsverzeichnis!P30)","v":0},null,null,null,{"$f":"(Sammlungsverzeichnis!P31)","v":0},null,null,null,{"$f":"(Sammlungsverzeichnis!P32)","v":0},null,null,null,{"$f":"(Sammlungsverzeichnis!P33)","v":0},null,null,null,{"$f":"(Sammlungsverzeichnis!P34)","v":0},null,null,null,{"$f":"(Sammlungsverzeichnis!P35)","v":0},null,null,null,{"$f":"(Sammlungsverzeichnis!P36)","v":0}]
[null,{"$f":"(Sammlungsverzeichnis!Q30)","v":0},{"$f":"(Sammlungsverzeichnis!W30)","v":0},null,null,{"$f":"(Sammlungsverzeichnis!Q31)","v":0},{"$f":"(Sammlungsverzeichnis!W31)","v":0},null,null,{"$f":"(Sammlungsverzeichnis!Q32)","v":0},{"$f":"(Sammlungsverzeichnis!W32)","v":0},null,null,{"$f":"(Sammlungsverzeichnis!Q33)","v":0},{"$f":"(Sammlungsverzeichnis!W33)","v":0},null,null,{"$f":"(Sammlungsverzeichnis!Q34)","v":0},{"$f":"(Sammlungsverzeichnis!W34)","v":0},null,null,{"$f":"(Sammlungsverzeichnis!Q35)","v":0},{"$f":"(Sammlungsverzeichnis!W35)","v":0},null,null,{"$f":"(Sammlungsverzeichnis!Q36)","v":0},{"$f":"(Sammlungsverzeichnis!W36)","v":0}]
[]
[null,{"$f":"(Sammlungsverzeichnis!S30)","v":0},null,null,null,{"$f":"(Sammlungsverzeichnis!S31)","v":0},null,null,null,{"$f":"(Sammlungsverzeichnis!S32)","v":0},null,null,null,{"$f":"(Sammlungsverzeichnis!S33)","v":0},null,null,null,{"$f":"(Sammlungsverzeichnis!S34)","v":0},null,null,null,{"$f":"(Sammlungsverzeichnis!S35)","v":0},null,null,null,{"$f":"(Sammlungsverzeichnis!S36)","v":0}]
[]
[null,{"$f":"(Sammlungsverzeichnis!C37)","v":0},null,{"$f":"(Sammlungsverzeichnis!E37)","v":0},null,{"$f":"(Sammlungsverzeichnis!C38)","v":0},null,{"$f":"(Sammlungsverzeichnis!E38)","v":0},null,{"$f":"(Sammlungsverzeichnis!C39)","v":0},null,{"$f":"(Sammlungsverzeichnis!E39)","v":0},null,{"$f":"(Sammlungsverzeichnis!C40)","v":0},null,{"$f":"(Sammlungsverzeichnis!E40)","v":0},null,{"$f":"(Sammlungsverzeichnis!C41)","v":0},null,{"$f":"(Sammlungsverzeichnis!E41)","v":0},null,{"$f":"(Sammlungsverzeichnis!C42)","v":0},null,{"$f":"(Sammlungsverzeichnis!E42)","v":0},null,{"$f":"(Sammlungsverzeichnis!C43)","v":0},null,{"$f":"(Sammlungsverzeichnis!E43)","v":0}]
[null,{"$f":"IF(Sammlungsverzeichnis!D37=0, Sammlungsverzeichnis!T37, Sammlungsverzeichnis!D37)","v":"00:00:00"},null,{"$f":"(Sammlungsverzeichnis!U37)","v":0},null,{"$f":"IF(Sammlungsverzeichnis!D38=0, Sammlungsverzeichnis!T38, Sammlungsverzeichnis!D38)","v":"00:00:00"},null,{"$f":"(Sammlungsverzeichnis!U38)","v":0},null,{"$f":"IF(Sammlungsverzeichnis!D39=0, Sammlungsverzeichnis!T39, Sammlungsverzeichnis!D39)","v":"00:00:00"},null,{"$f":"(Sammlungsverzeichnis!U39)","v":0},null,{"$f":"IF(Sammlungsverzeichnis!D40=0, Sammlungsverzeichnis!T40, Sammlungsverzeichnis!D40)","v":"00:00:00"},null,{"$f":"(Sammlungsverzeichnis!U40)","v":0},null,{"$f":"IF(Sammlungsverzeichnis!D41=0, Sammlungsverzeichnis!T41, Sammlungsverzeichnis!D41)","v":"00:00:00"},null,{"$f":"(Sammlungsverzeichnis!U41)","v":0},null,{"$f":"IF(Sammlungsverzeichnis!D42=0, Sammlungsverzeichnis!T42, Sammlungsverzeichnis!D42)","v":"00:00:00"},null,{"$f":"(Sammlungsverzeichnis!U42)","v":0},null,{"$f":"IF(Sammlungsverzeichnis!D43=0, Sammlungsverzeichnis!T43, Sammlungsverzeichnis!D43)","v":"00:00:00"},null,{"$f":"(Sammlungsverzeichnis!U43)","v":0}]
[null,{"$f":"(Sammlungsverzeichnis!V37)","v":"00:00:00"},null,null,null,{"$f":"(Sammlungsverzeichnis!V38)","v":"00:00:00"},null,null,null,{"$f":"(Sammlungsverzeichnis!V39)","v":"00:00:00"},null,null,null,{"$f":"(Sammlungsverzeichnis!V40)","v":"00:00:00"},null,null,null,{"$f":"(Sammlungsverzeichnis!V41)","v":"00:00:00"},null,null,null,{"$f":"(Sammlungsverzeichnis!V42)","v":"00:00:00"},null,null,null,{"$f":"(Sammlungsverzeichnis!V43)","v":"00:00:00"}]
[null,{"$f":"(Sammlungsverzeichnis!R37)","v":0},null,null,null,{"$f":"(Sammlungsverzeichnis!R38)","v":0},null,null,null,{"$f":"(Sammlungsverzeichnis!R39)","v":0},null,null,null,{"$f":"(Sammlungsverzeichnis!R40)","v":0},null,null,null,{"$f":"(Sammlungsverzeichnis!R41)","v":0},null,null,null,{"$f":"(Sammlungsverzeichnis!R42)","v":0},null,null,null,{"$f":"(Sammlungsverzeichnis!R43)","v":0}]
[null,{"$f":"(Sammlungsverzeichnis!E3&\" \"&Sammlungsverzeichnis!C3&\" \"&Sammlungsverzeichnis!C4)","v":"col.  Max Mustermann"},null,null,null,{"$f":"(Sammlungsverzeichnis!E3&\" \"&Sammlungsverzeichnis!C3&\" \"&Sammlungsverzeichnis!C4)","v":"col.  Max Mustermann"},null,null,null,{"$f":"(Sammlungsverzeichnis!E3&\" \"&Sammlungsverzeichnis!C3&\" \"&Sammlungsverzeichnis!C4)","v":"col.  Max Mustermann"},null,null,null,{"$f":"(Sammlungsverzeichnis!E3&\" \"&Sammlungsverzeichnis!C3&\" \"&Sammlungsverzeichnis!C4)","v":"col.  Max Mustermann"},null,null,null,{"$f":"(Sammlungsverzeichnis!E3&\" \"&Sammlungsverzeichnis!C3&\" \"&Sammlungsverzeichnis!C4)","v":"col.  Max Mustermann"},null,null,null,{"$f":"(Sammlungsverzeichnis!E3&\" \"&Sammlungsverzeichnis!C3&\" \"&Sammlungsverzeichnis!C4)","v":"col.  Max Mustermann"},null,null,null,{"$f":"(Sammlungsverzeichnis!E3&\" \"&Sammlungsverzeichnis!C3&\" \"&Sammlungsverzeichnis!C4)","v":"col.  Max Mustermann"}]
[]
[null,{"$f":"(Sammlungsverzeichnis!M37)","v":0},null,{"$f":"(Sammlungsverzeichnis!Y37)","v":0},null,{"$f":"(Sammlungsverzeichnis!M38)","v":0},null,{"$f":"(Sammlungsverzeichnis!Y38)","v":0},null,{"$f":"(Sammlungsverzeichnis!M39)","v":0},null,{"$f":"(Sammlungsverzeichnis!Y39)","v":0},null,{"$f":"(Sammlungsverzeichnis!M40)","v":0},null,{"$f":"(Sammlungsverzeichnis!Y40)","v":0},null,{"$f":"(Sammlungsverzeichnis!M41)","v":0},null,{"$f":"(Sammlungsverzeichnis!Y41)","v":0},null,{"$f":"(Sammlungsverzeichnis!M42)","v":0},null,{"$f":"(Sammlungsverzeichnis!Y42)","v":0},null,{"$f":"(Sammlungsverzeichnis!M43)","v":0},null,{"$f":"(Sammlungsverzeichnis!Y43)","v":0}]
[null,{"$f":"(Sammlungsverzeichnis!N37)","v":0},null,null,null,{"$f":"(Sammlungsverzeichnis!N38)","v":0},null,null,null,{"$f":"(Sammlungsverzeichnis!N39)","v":0},null,null,null,{"$f":"(Sammlungsverzeichnis!N40)","v":0},null,null,null,{"$f":"(Sammlungsverzeichnis!N41)","v":0},null,null,null,{"$f":"(Sammlungsverzeichnis!N42)","v":0},null,null,null,{"$f":"(Sammlungsverzeichnis!N43)","v":0}]
[null,{"$f":"(Sammlungsverzeichnis!O37)","v":0},null,null,null,{"$f":"(Sammlungsverzeichnis!O38)","v":0},null,null,null,{"$f":"(Sammlungsverzeichnis!O39)","v":0},null,null,null,{"$f":"(Sammlungsverzeichnis!O40)","v":0},null,null,null,{"$f":"(Sammlungsverzeichnis!O41)","v":0},null,null,null,{"$f":"(Sammlungsverzeichnis!O42)","v":0},null,null,null,{"$f":"(Sammlungsverzeichnis!O43)","v":0}]
[null,{"$f":"(Sammlungsverzeichnis!P37)","v":0},null,null,null,{"$f":"(Sammlungsverzeichnis!P38)","v":0},null,null,null,{"$f":"(Sammlungsverzeichnis!P39)","v":0},null,null,null,{"$f":"(Sammlungsverzeichnis!P40)","v":0},null,null,null,{"$f":"(Sammlungsverzeichnis!P41)","v":0},null,null,null,{"$f":"(Sammlungsverzeichnis!P42)","v":0},null,null,null,{"$f":"(Sammlungsverzeichnis!P43)","v":0}]
[null,{"$f":"(Sammlungsverzeichnis!Q37)","v":0},{"$f":"(Sammlungsverzeichnis!W37)","v":0},null,null,{"$f":"(Sammlungsverzeichnis!Q38)","v":0},{"$f":"(Sammlungsverzeichnis!W38)","v":0},null,null,{"$f":"(Sammlungsverzeichnis!Q39)","v":0},{"$f":"(Sammlungsverzeichnis!W39)","v":0},null,null,{"$f":"(Sammlungsverzeichnis!Q40)","v":0},{"$f":"(Sammlungsverzeichnis!W40)","v":0},null,null,{"$f":"(Sammlungsverzeichnis!Q41)","v":0},{"$f":"(Sammlungsverzeichnis!W41)","v":0},null,null,{"$f":"(Sammlungsverzeichnis!Q42)","v":0},{"$f":"(Sammlungsverzeichnis!W42)","v":0},null,null,{"$f":"(Sammlungsverzeichnis!Q43)","v":0},{"$f":"(Sammlungsverzeichnis!W43)","v":0}]
[]
[null,{"$f":"(Sammlungsverzeichnis!S37)","v":0},null,null,null,{"$f":"(Sammlungsverzeichnis!S38)","v":0},null,null,null,{"$f":"(Sammlungsverzeichnis!S39)","v":0},null,null,null,{"$f":"(Sammlungsverzeichnis!S40)","v":0},null,null,null,{"$f":"(Sammlungsverzeichnis!S41)","v":0},null,null,null,{"$f":"(Sammlungsverzeichnis!S42)","v":0},null,null,null,{"$f":"(Sammlungsverzeichnis!S43)","v":0}]
[]
[null,{"$f":"(Sammlungsverzeichnis!C44)","v":0},null,{"$f":"(Sammlungsverzeichnis!E44)","v":0},null,{"$f":"(Sammlungsverzeichnis!C45)","v":0},null,{"$f":"(Sammlungsverzeichnis!E45)","v":0},null,{"$f":"(Sammlungsverzeichnis!C46)","v":0},null,{"$f":"(Sammlungsverzeichnis!E46)","v":0},null,{"$f":"(Sammlungsverzeichnis!C47)","v":0},null,{"$f":"(Sammlungsverzeichnis!E47)","v":0},null,{"$f":"(Sammlungsverzeichnis!C48)","v":0},null,{"$f":"(Sammlungsverzeichnis!E48)","v":0},null,{"$f":"(Sammlungsverzeichnis!C49)","v":0},null,{"$f":"(Sammlungsverzeichnis!E49)","v":0},null,{"$f":"(Sammlungsverzeichnis!C50)","v":0},null,{"$f":"(Sammlungsverzeichnis!E50)","v":0}]
[null,{"$f":"IF(Sammlungsverzeichnis!D44=0, Sammlungsverzeichnis!T44, Sammlungsverzeichnis!D44)","v":"00:00:00"},null,{"$f":"(Sammlungsverzeichnis!U44)","v":0},null,{"$f":"IF(Sammlungsverzeichnis!D45=0, Sammlungsverzeichnis!T45, Sammlungsverzeichnis!D45)","v":"00:00:00"},null,{"$f":"(Sammlungsverzeichnis!U45)","v":0},null,{"$f":"IF(Sammlungsverzeichnis!D46=0, Sammlungsverzeichnis!T46, Sammlungsverzeichnis!D46)","v":"00:00:00"},null,{"$f":"(Sammlungsverzeichnis!U46)","v":0},null,{"$f":"IF(Sammlungsverzeichnis!D47=0, Sammlungsverzeichnis!T47, Sammlungsverzeichnis!D47)","v":"00:00:00"},null,{"$f":"(Sammlungsverzeichnis!U47)","v":0},null,{"$f":"IF(Sammlungsverzeichnis!D48=0, Sammlungsverzeichnis!T48, Sammlungsverzeichnis!D48)","v":"00:00:00"},null,{"$f":"(Sammlungsverzeichnis!U48)","v":0},null,{"$f":"IF(Sammlungsverzeichnis!D49=0, Sammlungsverzeichnis!T49, Sammlungsverzeichnis!D49)","v":"00:00:00"},null,{"$f":"(Sammlungsverzeichnis!U49)","v":0},null,{"$f":"IF(Sammlungsverzeichnis!D50=0, Sammlungsverzeichnis!T50, Sammlungsverzeichnis!D50)","v":"00:00:00"},null,{"$f":"(Sammlungsverzeichnis!U50)","v":0}]
[null,{"$f":"(Sammlungsverzeichnis!V44)","v":"00:00:00"},null,null,null,{"$f":"(Sammlungsverzeichnis!V45)","v":"00:00:00"},null,null,null,{"$f":"(Sammlungsverzeichnis!V46)","v":"00:00:00"},null,null,null,{"$f":"(Sammlungsverzeichnis!V47)","v":"00:00:00"},null,null,null,{"$f":"(Sammlungsverzeichnis!V48)","v":"00:00:00"},null,null,null,{"$f":"(Sammlungsverzeichnis!V49)","v":"00:00:00"},null,null,null,{"$f":"(Sammlungsverzeichnis!V50)","v":"00:00:00"}]
[null,{"$f":"(Sammlungsverzeichnis!R44)","v":0},null,null,null,{"$f":"(Sammlungsverzeichnis!R45)","v":0},null,null,null,{"$f":"(Sammlungsverzeichnis!R46)","v":0},null,null,null,{"$f":"(Sammlungsverzeichnis!R47)","v":0},null,null,null,{"$f":"(Sammlungsverzeichnis!R48)","v":0},null,null,null,{"$f":"(Sammlungsverzeichnis!R49)","v":0},null,null,null,{"$f":"(Sammlungsverzeichnis!R50)","v":0}]
[null,{"$f":"(Sammlungsverzeichnis!E3&\" \"&Sammlungsverzeichnis!C3&\" \"&Sammlungsverzeichnis!C4)","v":"col.  Max Mustermann"},null,null,null,{"$f":"(Sammlungsverzeichnis!E3&\" \"&Sammlungsverzeichnis!C3&\" \"&Sammlungsverzeichnis!C4)","v":"col.  Max Mustermann"},null,null,null,{"$f":"(Sammlungsverzeichnis!E3&\" \"&Sammlungsverzeichnis!C3&\" \"&Sammlungsverzeichnis!C4)","v":"col.  Max Mustermann"},null,null,null,{"$f":"(Sammlungsverzeichnis!E3&\" \"&Sammlungsverzeichnis!C3&\" \"&Sammlungsverzeichnis!C4)","v":"col.  Max Mustermann"},null,null,null,{"$f":"(Sammlungsverzeichnis!E3&\" \"&Sammlungsverzeichnis!C3&\" \"&Sammlungsverzeichnis!C4)","v":"col.  Max Mustermann"},null,null,null,{"$f":"(Sammlungsverzeichnis!E3&\" \"&Sammlungsverzeichnis!C3&\" \"&Sammlungsverzeichnis!C4)","v":"col.  Max Mustermann"},null,null,null,{"$f":"(Sammlungsverzeichnis!E3&\" \"&Sammlungsverzeichnis!C3&\" \"&Sammlungsverzeichnis!C4)","v":"col.  Max Mustermann"}]
[]
[null,{"$f":"(Sammlungsverzeichnis!M44)","v":0},null,{"$f":"(Sammlungsverzeichnis!Y44)","v":0},null,{"$f":"(Sammlungsverzeichnis!M45)","v":0},null,{"$f":"(Sammlungsverzeichnis!Y45)","v":0},null,{"$f":"(Sammlungsverzeichnis!M46)","v":0},null,{"$f":"(Sammlungsverzeichnis!Y46)","v":0},null,{"$f":"(Sammlungsverzeichnis!M47)","v":0},null,{"$f":"(Sammlungsverzeichnis!Y47)","v":0},null,{"$f":"(Sammlungsverzeichnis!M48)","v":0},null,{"$f":"(Sammlungsverzeichnis!Y48)","v":0},null,{"$f":"(Sammlungsverzeichnis!M49)","v":0},null,{"$f":"(Sammlungsverzeichnis!Y49)","v":0},null,{"$f":"(Sammlungsverzeichnis!M50)","v":0},null,{"$f":"(Sammlungsverzeichnis!Y50)","v":0}]
[null,{"$f":"(Sammlungsverzeichnis!N44)","v":0},null,null,null,{"$f":"(Sammlungsverzeichnis!N45)","v":0},null,null,null,{"$f":"(Sammlungsverzeichnis!N46)","v":0},null,null,null,{"$f":"(Sammlungsverzeichnis!N47)","v":0},null,null,null,{"$f":"(Sammlungsverzeichnis!N48)","v":0},null,null,null,{"$f":"(Sammlungsverzeichnis!N49)","v":0},null,null,null,{"$f":"(Sammlungsverzeichnis!N50)","v":0}]
[null,{"$f":"(Sammlungsverzeichnis!O44)","v":0},null,null,null,{"$f":"(Sammlungsverzeichnis!O45)","v":0},null,null,null,{"$f":"(Sammlungsverzeichnis!O46)","v":0},null,null,null,{"$f":"(Sammlungsverzeichnis!O47)","v":0},null,null,null,{"$f":"(Sammlungsverzeichnis!O48)","v":0},null,null,null,{"$f":"(Sammlungsverzeichnis!O49)","v":0},null,null,null,{"$f":"(Sammlungsverzeichnis!O50)","v":0}]
[null,{"$f":"(Sammlungsverzeichnis!P44)","v":0},null,null,null,{"$f":"(Sammlungsverzeichnis!P45)","v":0},null,null,null,{"$f":"(Sammlungsverzeichnis!P46)","v":0},null,null,null,{"$f":"(Sammlungsverzeichnis!P47)","v":0},null,null,null,{"$f":"(Sammlungsverzeichnis!P48)","v":0},null,null,null,{"$f":"(Sammlungsverzeichnis!P49)","v":0},null,null,null,{"$f":"(Sammlungsverzeichnis!P50)","v":0}]
[null,{"$f":"(Sammlungsverzeichnis!Q44)","v":0},{"$f":"(Sammlungsverzeichnis!W44)","v":0},null,null,{"$f":"(Sammlungsverzeichnis!Q45)","v":0},{"$f":"(Sammlungsverzeichnis!W45)","v":0},null,null,{"$f":"(Sammlungsverzeichnis!Q46)","v":0},{"$f":"(Sammlungsverzeichnis!W46)","v":0},null,null,{"$f":"(Sammlungsverzeichnis!Q47)","v":0},{"$f":"(Sammlungsverzeichnis!W47)","v":0},null,null,{"$f":"(Sammlungsverzeichnis!Q48)","v":0},{"$f":"(Sammlungsverzeichnis!W48)","v":0},null,null,{"$f":"(Sammlungsverzeichnis!Q49)","v":0},{"$f":"(Sammlungsverzeichnis!W49)","v":0},null,null,{"$f":"(Sammlungsverzeichnis!Q50)","v":0},{"$f":"(Sammlungsverzeichnis!W50)","v":0}]
[]
[null,{"$f":"(Sammlungsverzeichnis!S44)","v":0},null,null,null,{"$f":"(Sammlungsverzeichnis!S45)","v":0},null,null,null,{"$f":"(Sammlungsverzeichnis!S46)","v":0},null,null,null,{"$f":"(Sammlungsverzeichnis!S47)","v":0},null,null,null,{"$f":"(Sammlungsverzeichnis!S48)","v":0},null,null,null,{"$f":"(Sammlungsverzeichnis!S49)","v":0},null,null,null,{"$f":"(Sammlungsverzeichnis!S50)","v":0}]
[]
[null,"http://www.entopedia.info",null,null,null,null,null,null,null,null,null,null,null,null,null,null,null,"© Michael Frank | All rights reserved"]

{"sheet":"Etiketten - hellblau","index":4,"n_rows":89,"n_cols":28,"rows_kept":89,"cut":false,"hidden":false,"merged":[[74,27,78,27],[46,21,47,22],[46,23,50,23],[46,25,47,26],[46,27,50,27],[60,1,61,2],[60,3,64,3],[60,5,61,6],[60,7,64,7],[60,9,61,10],[60,11,64,11],[60,13,61,14],[60,15,64,15],[60,17,61,18],[60,19,64,19],[60,21,61,22],[60,23,64,23],[60,25,61,26],[60,27,64,27],[50,1,50,2],[48,13,48,14],[48,17,48,18],[48,21,48,22],[50,13,50,14],[18,21,19,22],[18,23,22,23],[18,25,19,26],[18,27,22,27],[32,1,33,2],[32,3,36,3],[32,5,33,6],[32,7,36,7],[32,9,33,10],[32,11,36,11],[32,13,33,14],[32,15,36,15],[32,17,33,18],[32,19,36,19],[32,21,33,22],[32,23,36,23],[32,25,33,26],[32,27,36,27],[22,1,22,2],[20,13,20,14],[20,17,20,18],[20,21,20,22],[22,13,22,14],[22,17,22,18],[0,1,0,14],[0,22,0,27],[7,25,7,26],[8,1,8,2],[8,5,8,6],[8,9,8,10],[8,13,8,14],[8,17,8,18],[8,21,8,22],[8,25,8,26],[4,13,5,14],[4,15,8,15],[4,17,5,18],[4,19,8,19],[4,21,5,22],[4,23,8,23],[4,25,5,26],[4,27,8,27],[1,1,1,14],[4,3,8,3],[4,1,5,2],[4,5,5,6],[4,7,8,7],[4,9,5,10],[10,27,14,27],[11,1,11,2],[11,5,11,6],[11,9,11,10],[11,13,11,14],[11,17,11,18],[11,21,11,22],[11,25,11,26],[12,1,12,2],[10,13,10,14],[10,15,14,15],[10,17,10,18],[10,19,14,19],[10,21,10,22],[10,23,14,23],[12,13,12,14],[12,17,12,18],[12,21,12,22],[10,1,10,2],[10,3,14,3],[10,5,10,6],[10,7,14,7],[10,9,10,10],[10,11,14,11],[12,25,12,26],[13,1,13,2],[13,5,13,6],[13,9,13,10],[13,13,13,14],[13,17,13,18],[13,21,13,22],[13,25,13,26],[10,25,10,26],[12,5,12,6],[12,9,12,10],[16,25,16,27],[16,1,16,3],[16,5,16,7],[16,9,16,11],[16,13,16,15],[16,17,16,19],[16,21,16,23],[18,1,19,2],[18,3,22,3],[18,5,19,6],[18,7,22,7],[18,9,19,10],[18,11,22,11],[18,13,19,14],[18,15,22,15],[18,17,19,18],[18,19,22,19],[21,1,21,2],[21,5,21,6],[21,9,21,10],[21,13,21,14],[21,17,21,18],[21,21,21,22],[21,25,21,26],[22,21,22,22],[20,1,20,2],[20,5,20,6],[20,9,20,10],[22,25,22,26],[20,25,20,26],[22,5,22,6],[22,9,22,10],[24,27,28,27],[25,1,25,2],[25,5,25,6],[25,9,25,10],[25,13,25,14],[25,17,25,18],[25,21,25,22],[25,25,25,26],[26,1,26,2],[24,13,24,14],[24,15,28,15],[24,17,24,18],[24,19,28,19],[24,21,24,22],[24,23,28,23],[26,13,26,14],[26,17,26,18],[26,21,26,22],[24,1,24,2],[24,3,28,3],[24,5,24,6],[24,7,28,7],[24,9,24,10],[24,11,28,11],[26,25,26,26],[27,1,27,2],[27,5,27,6],[27,9,27,10],[27,13,27,14],[27,17,27,18],[27,21,27,22],[27,25,27,26],[24,25,24,26],[26,5,26,6],[26,9,26,10],[30,25,30,27],[30,1,30,3],[30,5,30,7],[30,9,30,11],[30,13,30,15],[30,17,30,19],[30,21,30,23],[35,1,35,2],[35,5,35,6],[35,9,35,10],[35,13,35,14],[35,17,35,18],[35,21,35,22],[35,25,35,26],[36,1,36,2],[34,13,34,14],[34,17,34,18],[34,21,34,22],[36,13,36,14],[36,17,36,18],[36,21,36,22],[34,1,34,2],[34,5,34,6],[34,9,34,10],[36,25,36,26],[34,25,34,26],[36,5,36,6],[36,9,36,10],[38,27,42,27],[39,1,39,2],[39,5,39,6],[39,9,39,10],[39,13,39,14],[39,17,39,18],[39,21,39,22],[39,25,39,26],[40,1,40,2],[38,13,38,14],[38,15,42,15],[38,17,38,18],[38,19,42,19],[38,21,38,22],[38,23,42,23],[40,13,40,14],[40,17,40,18],[40,21,40,22],[38,1,38,2],[38,3,42,3],[38,5,38,6],[38,7,42,7],[38,9,38,10],[38,11,42,11],[40,25,40,26],[41,1,41,2],[41,5,41,6],[41,9,41,10],[41,13,41,14],[41,17,41,18],[41,21,41,22],[41,25,41,26],[38,25,38,26],[40,5,40,6],[40,9,40,10],[44,25,44,27],[44,1,44,3],[44,5,44,7],[44,9,44,11],[44,13,44,15],[44,17,44,19],[44,21,44,23],[46,1,47,2],[46,3,50,3],[46,5,47,6],[46,7,50,7],[46,9,47,10],[46,11,50,11],[46,13,47,14],[46,15,50,15],[46,17,47,18],[46,19,50,19],[49,1,49,2],[49,5,49,6],[49,9,49,10],[49,13,49,14],[49,17,49,18],[49,21,49,22],[49,25,49,26],[50,17,50,18],[50,21,50,22],[48,1,48,2],[48,5,48,6],[48,9,48,10],[50,25,50,26],[48,25,48,26],[50,5,50,6],[50,9,50,10],[52,27,56,27],[53,1,53,2],[53,5,53,6],[53,9,53,10],[53,13,53,14],[53,17,53,18],[53,21,53,22],[53,25,53,26],[54,1,54,2],[52,13,52,14],[52,15,56,15],[52,17,52,18],[52,19,56,19],[52,21,52,22],[52,23,56,23],[54,13,54,14],[54,17,54,18],[54,21,54,22],[52,1,52,2],[52,3,56,3],[52,5,52,6],[52,7,56,7],[52,9,52,10],[52,11,56,11],[54,25,54,26],[55,1,55,2],[55,5,55,6],[55,9,55,10],[55,13,55,14],[55,17,55,18],[55,21,55,22],[55,25,55,26],[52,25,52,26],[54,5,54,6],[54,9,54,10],[58,25,58,27],[58,1,58,3],[58,5,58,7],[58,9,58,11],[58,13,58,15],[58,17,58,19],[58,21,58,23],[63,1,63,2],[63,5,63,6],[63,9,63,10],[63,13,63,14],[63,17,63,18],[63,21,63,22],[63,25,63,26],[64,1,64,2],[62,13,62,14],[62,17,62,18],[62,21,62,22],[64,13,64,14],[64,17,64,18],[64,21,64,22],[62,1,62,2],[62,5,62,6],[62,9,62,10],[64,25,64,26],[62,25,62,26],[64,5,64,6],[64,9,64,10],[66,27,70,27],[67,1,67,2],[67,5,67,6],[67,9,67,10],[67,13,67,14],[67,17,67,18],[67,21,67,22],[67,25,67,26],[68,1,68,2],[66,13,66,14],[66,15,70,15],[66,17,66,18],[66,19,70,19],[66,21,66,22],[66,23,70,23],[68,13,68,14],[68,17,68,18],[68,21,68,22],[66,1,66,2],[66,3,70,3],[66,5,66,6],[66,7,70,7],[66,9,66,10],[66,11,70,11],[68,25,68,26],[69,1,69,2],[69,5,69,6],[69,9,69,10],[69,13,69,14],[69,17,69,18],[69,21,69,22],[69,25,69,26],[66,25,66,26],[68,5,68,6],[68,9,68,10],[72,25,72,27],[72,1,72,3],[72,5,72,7],[72,9,72,11],[72,13,72,15],[72,17,72,19],[72,21,72,23],[74,1,75,2],[74,3,78,3],[74,5,75,6],[74,7,78,7],[74,9,75,10],[74,11,78,11],[74,13,75,14],[74,15,78,15],[74,17,75,18],[74,19,78,19],[78,25,78,26],[78,5,78,6],[78,9,78,10],[76,1,76,2],[76,5,76,6],[76,9,76,10],[74,21,75,22],[76,25,76,26],[77,1,77,2],[77,5,77,6],[77,9,77,10],[77,13,77,14],[77,17,77,18],[77,21,77,22],[77,25,77,26],[78,1,78,2],[76,13,76,14],[76,17,76,18],[76,21,76,22],[78,13,78,14],[78,17,78,18],[78,21,78,22],[74,23,78,23],[74,25,75,26],[80,11,84,11],[82,5,82,6],[82,9,82,10],[80,1,80,2],[80,3,84,3],[83,13,83,14],[83,17,83,18],[82,25,82,26],[83,1,83,2],[83,5,83,6],[83,9,83,10],[86,25,86,27],[88,1,88,15],[88,17,88,27],[86,1,86,3],[86,5,86,7],[86,9,86,11],[86,13,86,15],[86,17,86,19],[86,21,86,23],[80,27,84,27],[81,1,81,2],[81,5,81,6],[81,9,81,10],[81,13,81,14],[81,17,81,18],[81,21,81,22],[81,25,81,26],[82,1,82,2],[80,13,80,14],[80,15,84,15],[80,17,80,18],[80,19,84,19],[80,21,80,22],[80,23,84,23],[82,13,82,14],[82,17,82,18],[82,21,82,22],[83,21,83,22],[83,25,83,26],[80,25,80,26],[80,5,80,6],[80,7,84,7],[80,9,80,10],[4,11,8,11],[6,25,6,26],[6,1,6,2],[6,5,6,6],[6,9,6,10],[6,13,6,14],[6,17,6,18],[6,21,6,22],[7,1,7,2],[7,13,7,14],[7,17,7,18],[7,21,7,22],[7,5,7,6],[7,9,7,10]]}
[null,"Sammlungs - Etiketten (hellblau)",null,null,null,null,null,null,null,null,null,null,null,null,null,null,null,null,null,null,null,null,{"$f":"TODAY()","v":"2016-10-12"}]
[null,"  Spezialetiketten in hellem blau, mit allen wichtigen Informationen, zu Sammlung und Exemplar (Art, Unterart, Geschlecht)"]
[]
[]
[null,{"$f":"(Sammlungsverzeichnis!C9&\" \"&Sammlungsverzeichnis!D9&\" \"&Sammlungsverzeichnis!E9)","v":"Thecla betulae  ♀"},null,{"$f":"(Sammlungsverzeichnis!E3&\" \"&Sammlungsverzeichnis!C2)","v":"col.  M. Mustermann"},null,{"$f":"(Sammlungsverzeichnis!C10&\" \"&Sammlungsverzeichnis!D10&\" \"&Sammlungsverzeichnis!E10)","v":"Smerinthus kindermanni ssp. kindermanni  ♂"},null,{"$f":"(Sammlungsverzeichnis!E3&\" \"&Sammlungsverzeichnis!C2)","v":"col.  M. Mustermann"},null,{"$f":"(Sammlungsverzeichnis!C11&\" \"&Sammlungsverzeichnis!D11&\" \"&Sammlungsverzeichnis!E11)","v":"Colias crocea  ♀"},null,{"$f":"(Sammlungsverzeichnis!E3&\" \"&Sammlungsverzeichnis!C2)","v":"col.  M. Mustermann"},null,{"$f":"(Sammlungsverzeichnis!C12&\" \"&Sammlungsverzeichnis!D12&\" \"&Sammlungsverzeichnis!E12)","v":"Inachis io  ♂"},null,{"$f":"(Sammlungsverzeichnis!E3&\" \"&Sammlungsverzeichnis!C2)","v":"col.  M. Mustermann"},null,{"$f":"(Sammlungsverzeichnis!C13&\" \"&Sammlungsverzeichnis!D13&\" \"&Sammlungsverzeichnis!E13)","v":"Colias crocea  ♀"},null,{"$f":"(Sammlungsverzeichnis!E3&\" \"&Sammlungsverzeichnis!C2)","v":"col.  M. Mustermann"},null,{"$f":"(Sammlungsverzeichnis!C14&\" \"&Sammlungsverzeichnis!D14&\" \"&Sammlungsverzeichnis!E14)","v":"Colias crocea  ♀"},null,{"$f":"(Sammlungsverzeichnis!E3&\" \"&Sammlungsverzeichnis!C2)","v":"col.  M. Mustermann"},null,{"$f":"(Sammlungsverzeichnis!C15&\" \"&Sammlungsverzeichnis!D15&\" \"&Sammlungsverzeichnis!E15)","v":"  "},null,{"$f":"(Sammlungsverzeichnis!E3&\" \"&Sammlungsverzeichnis!C2)","v":"col.  M. Mustermann"}]
[]
[null,{"$f":"(Sammlungsverzeichnis!V9)","v":"2016-09-25"},null,null,null,{"$f":"(Sammlungsverzeichnis!V10)","v":"2015-06-14"},null,null,null,{"$f":"(Sammlungsverzeichnis!V11)","v":"23. - 25.09.2016"},null,null,null,{"$f":"(Sammlungsverzeichnis!V12)","v":"23. - 25.09.2016"},null,null,null,{"$f":"(Sammlungsverzeichnis!V13)","v":"23. - 25.09.2016"},null,null,null,{"$f":"(Sammlungsverzeichnis!V14)","v":"2016-09-21"},null,null,null,{"$f":"(Sammlungsverzeichnis!V15)","v":"00:00:00"}]
[null,{"$f":"(Sammlungsverzeichnis!T9&\", \"&Sammlungsverzeichnis!U9)","v":"sonnig, ca. 24°C"},null,null,null,{"$f":"(Sammlungsverzeichnis!T10&\", \"&Sammlungsverzeichnis!U10)","v":"schwül, ca. 33°C"},null,null,null,{"$f":"(Sammlungsverzeichnis!T11&\", \"&Sammlungsverzeichnis!U11)","v":"sonnig, heiter, ca. 25°C"},null,null,null,{"$f":"(Sammlungsverzeichnis!T12&\", \"&Sammlungsverzeichnis!U12)","v":"sonnig, heiter, ca. 25°C"},null,null,null,{"$f":"(Sammlungsverzeichnis!T13&\", \"&Sammlungsverzeichnis!U13)","v":"sonnig, heiter, ca. 25°C"},null,null,null,{"$f":"(Sammlungsverzeichnis!T14&\", \"&Sammlungsverzeichnis!U14)","v":"wechselhaft, ca. 16°C"},null,null,null,{"$f":"(Sammlungsverzeichnis!T15&\", \"&Sammlungsverzeichnis!U15)","v":", "}]
[null,{"$f":"(Sammlungsverzeichnis!R9)","v":"Max Mustermann leg."},null,null,null,{"$f":"(Sammlungsverzeichnis!R10)","v":"Max Mustermann leg."},null,null,null,{"$f":"(Sammlungsverzeichnis!R11)","v":"Max Mustermann leg."},null,null,null,{"$f":"(Sammlungsverzeichnis!R12)","v":"Max Mustermann leg."},null,null,null,{"$f":"(Sammlungsverzeichnis!R13)","v":"Max Mustermann leg."},null,null,null,{"$f":"(Sammlungsverzeichnis!R14)","v":"Max Mustermann leg."},null,null,null,{"$f":"(Sammlungsverzeichnis!R15)","v":0}]
[]
[null,{"$f":"(Sammlungsverzeichnis!M9)","v":"Austria"},null,{"$f":"(Sammlungsverzeichnis!Y9)","v":"ENr.: 0000006"},null,{"$f":"(Sammlungsverzeichnis!M10)","v":"Türkei"},null,{"$f":"(Sammlungsverzeichnis!Y10)","v":"ENr.: 0000005"},null,{"$f":"(Sammlungsverzeichnis!M11)","v":"Austria"},null,{"$f":"(Sammlungsverzeichnis!Y11)","v":"ENr.: 0000004"},null,{"$f":"(Sammlungsverzeichnis!M12)","v":"Austria"},null,{"$f":"(Sammlungsverzeichnis!Y12)","v":"ENr.: 0000003"},null,{"$f":"(Sammlungsverzeichnis!M13)","v":"Austria"},null,{"$f":"(Sammlungsverzeichnis!Y13)","v":"ENr.: 0000002"},null,{"$f":"(Sammlungsverzeichnis!M14)","v":"Austria"},null,{"$f":"(Sammlungsverzeichnis!Y14)","v":"ENr.: 0000001"},null,{"$f":"(Sammlungsverzeichnis!M15)","v":0},null,{"$f":"(Sammlungsverzeichnis!Y15)","v":0}]
[null,{"$f":"(Sammlungsverzeichnis!N9)","v":"NÖ"},null,null,null,{"$f":"(Sammlungsverzeichnis!N10)","v":"Anatolien"},null,null,null,{"$f":"(Sammlungsverzeichnis!N11)","v":"NÖ"},null,null,null,{"$f":"(Sammlungsverzeichnis!N12)","v":"NÖ"},null,null,null,{"$f":"(Sammlungsverzeichnis!N13)","v":"NÖ"},null,null,null,{"$f":"(Sammlungsverzeichnis!N14)","v":"Stmk"},null,null,null,{"$f":"(Sammlungsverzeichnis!N15)","v":0}]
[null,{"$f":"(Sammlungsverzeichnis!O9)","v":"Musterstadt"},null,null,null,{"$f":"(Sammlungsverzeichnis!O10)","v":"Musterstadt"},null,null,null,{"$f":"(Sammlungsverzeichnis!O11)","v":"Musterstadt"},null,null,null,{"$f":"(Sammlungsverzeichnis!O12)","v":"Musterstadt"},null,null,null,{"$f":"(Sammlungsverzeichnis!O13)","v":"Musterstadt"},null,null,null,{"$f":"(Sammlungsverzeichnis!O14)","v":"Musterdorf"},null,null,null,{"$f":"(Sammlungsverzeichnis!O15)","v":0}]
[null,{"$f":"(Sammlungsverzeichnis!P9)","v":"48° 13' 17″ N, 14° 22' 41″ O"},null,null,null,{"$f":"(Sammlungsverzeichnis!P10)","v":"48° 13' 17″ N, 14° 22' 41″ O"},null,null,null,{"$f":"(Sammlungsverzeichnis!P11)","v":"48° 13' 17″ N, 14° 22' 41″ O"},null,null,null,{"$f":"(Sammlungsverzeichnis!P12)","v":"48° 13' 17″ N, 14° 22' 41″ O"},null,null,null,{"$f":"(Sammlungsverzeichnis!P13)","v":"48° 13' 17″ N, 14° 22' 41″ O"},null,null,null,{"$f":"(Sammlungsverzeichnis!P14)","v":"48° 13' 17″ N, 14° 22' 41″ O"},null,null,null,{"$f":"(Sammlungsverzeichnis!P15)","v":0}]
[null,{"$f":"(Sammlungsverzeichnis!Q9)","v":"472 Meter"},{"$f":"(Sammlungsverzeichnis!W9)","v":"15:00 Uhr"},null,null,{"$f":"(Sammlungsverzeichnis!Q10)","v":"472 Meter"},{"$f":"(Sammlungsverzeichnis!W10)","v":"22:58 Uhr"},null,null,{"$f":"(Sammlungsverzeichnis!Q11)","v":"472 Meter"},{"$f":"(Sammlungsverzeichnis!W11)","v":"Nachmittags"},null,null,{"$f":"(Sammlungsverzeichnis!Q12)","v":"472 Meter"},{"$f":"(Sammlungsverzeichnis!W12)","v":"Nachmittags"},null,null,{"$f":"(Sammlungsverzeichnis!Q13)","v":"472 Meter"},{"$f":"(Sammlungsverzeichnis!W13)","v":"Nachmittags"},null,null,{"$f":"(Sammlungsverzeichnis!Q14)","v":"203 Meter"},{"$f":"(Sammlungsverzeichnis!W14)","v":"14:30 Uhr"},null,null,{"$f":"(Sammlungsverzeichnis!Q15)","v":0},{"$f":"(Sammlungsverzeichnis!W15)","v":0}]
[]
[null,{"$f":"(Sammlungsverzeichnis!S9)","v":"an blühendem Efeustrauch"},null,null,null,{"$f":"(Sammlungsverzeichnis!S10)","v":"Lichtfang"},null,null,null,{"$f":"(Sammlungsverzeichnis!S11)","v":"bei Blütenbesuch gefangen"},null,null,null,{"$f":"(Sammlungsverzeichnis!S12)","v":"bei Blütenbesuch gefangen"},null,null,null,{"$f":"(Sammlungsverzeichnis!S13)","v":"bei Blütenbesuch gefangen"},null,null,null,{"$f":"(Sammlungsverzeichnis!S14)","v":"Auf Wiese (Paarungsflug)"},null,null,null,{"$f":"(Sammlungsverzeichnis!S15)","v":0}]
[]
[null,{"$f":"(Sammlungsverzeichnis!C16&\" \"&Sammlungsverzeichnis!D16&\" \"&Sammlungsverzeichnis!E16)","v":"  "},null,{"$f":"(Sammlungsverzeichnis!E3&\" \"&Sammlungsverzeichnis!C2)","v":"col.  M. Mustermann"},null,{"$f":"(Sammlungsverzeichnis!C17&\" \"&Sammlungsverzeichnis!D17&\" \"&Sammlungsverzeichnis!E17)","v":"  "},null,{"$f":"(Sammlungsverzeichnis!E3&\" \"&Sammlungsverzeichnis!C2)","v":"col.  M. Mustermann"},null,{"$f":"(Sammlungsverzeichnis!C18&\" \"&Sammlungsverzeichnis!D18&\" \"&Sammlungsverzeichnis!E18)","v":"  "},null,{"$f":"(Sammlungsverzeichnis!E3&\" \"&Sammlungsverzeichnis!C2)","v":"col.  M. Mustermann"},null,{"$f":"(Sammlungsverzeichnis!C19&\" \"&Sammlungsverzeichnis!D19&\" \"&Sammlungsverzeichnis!E19)","v":"  "},null,{"$f":"(Sammlungsverzeichnis!E3&\" \"&Sammlungsverzeichnis!C2)","v":"col.  M. Mustermann"},null,{"$f":"(Sammlungsverzeichnis!C20&\" \"&Sammlungsverzeichnis!D20&\" \"&Sammlungsverzeichnis!E20)","v":"  "},null,{"$f":"(Sammlungsverzeichnis!E3&\" \"&Sammlungsverzeichnis!C2)","v":"col.  M. Mustermann"},null,{"$f":"(Sammlungsverzeichnis!C21&\" \"&Sammlungsverzeichnis!D21&\" \"&Sammlungsverzeichnis!E21)","v":"  "},null,{"$f":"(Sammlungsverzeichnis!E3&\" \"&Sammlungsverzeichnis!C2)","v":"col.  M. Mustermann"},null,{"$f":"(Sammlungsverzeichnis!C22&\" \"&Sammlungsverzeichnis!D22&\" \"&Sammlungsverzeichnis!E22)","v":"  "},null,{"$f":"(Sammlungsverzeichnis!E3&\" \"&Sammlungsverzeichnis!C2)","v":"col.  M. Mustermann"}]
[]
[null,{"$f":"(Sammlungsverzeichnis!V16)","v":"00:00:00"},null,null,null,{"$f":"(Sammlungsverzeichnis!V17)","v":"00:00:00"},null,null,null,{"$f":"(Sammlungsverzeichnis!V18)","v":"00:00:00"},null,null,null,{"$f":"(Sammlungsverzeichnis!V19)","v":"00:00:00"},null,null,null,{"$f":"(Sammlungsverzeichnis!V20)","v":"00:00:00"},null,null,null,{"$f":"(Sammlungsverzeichnis!V21)","v":"00:00:00"},null,null,null,{"$f":"(Sammlungsverzeichnis!V22)","v":"00:00:00"}]
[null,{"$f":"(Sammlungsverzeichnis!T16&\", \"&Sammlungsverzeichnis!U16)","v":", "},null,null,null,{"$f":"(Sammlungsverzeichnis!T17&\", \"&Sammlungsverzeichnis!U17)","v":", "},null,null,null,{"$f":"(Sammlungsverzeichnis!T18&\", \"&Sammlungsverzeichnis!U18)","v":", "},null,null,null,{"$f":"(Sammlungsverzeichnis!T19&\", \"&Sammlungsverzeichnis!U19)","v":", "},null,null,null,{"$f":"(Sammlungsverzeichnis!T20&\", \"&Sammlungsverzeichnis!U20)","v":", "},null,null,null,{"$f":"(Sammlungsverzeichnis!T21&\", \"&Sammlungsverzeichnis!U21)","v":", "},null,null,null,{"$f":"(Sammlungsverzeichnis!T22&\", \"&Sammlungsverzeichnis!U22)","v":", "}]
[null,{"$f":"(Sammlungsverzeichnis!R16)","v":0},null,null,null,{"$f":"(Sammlungsverzeichnis!R17)","v":0},null,null,null,{"$f":"(Sammlungsverzeichnis!R18)","v":0},null,null,null,{"$f":"(Sammlungsverzeichnis!R19)","v":0},null,null,null,{"$f":"(Sammlungsverzeichnis!R20)","v":0},null,null,null,{"$f":"(Sammlungsverzeichnis!R21)","v":0},null,null,null,{"$f":"(Sammlungsverzeichnis!R22)","v":0}]
[]
[null,{"$f":"(Sammlungsverzeichnis!M16)","v":0},null,{"$f":"(Sammlungsverzeichnis!Y16)","v":0},null,{"$f":"(Sammlungsverzeichnis!M17)","v":0},null,{"$f":"(Sammlungsverzeichnis!Y17)","v":0},null,{"$f":"(Sammlungsverzeichnis!M18)","v":0},null,{"$f":"(Sammlungsverzeichnis!Y18)","v":0},null,{"$f":"(Sammlungsverzeichnis!M19)","v":0},null,{"$f":"(Sammlungsverzeichnis!Y19)","v":0},null,{"$f":"(Sammlungsverzeichnis!M20)","v":0},null,{"$f":"(Sammlungsverzeichnis!Y20)","v":0},null,{"$f":"(Sammlungsverzeichnis!M21)","v":0},null,{"$f":"(Sammlungsverzeichnis!Y21)","v":0},null,{"$f":"(Sammlungsverzeichnis!M22)","v":0},null,{"$f":"(Sammlungsverzeichnis!Y22)","v":0}]
[null,{"$f":"(Sammlungsverzeichnis!N16)","v":0},null,null,null,{"$f":"(Sammlungsverzeichnis!N17)","v":0},null,null,null,{"$f":"(Sammlungsverzeichnis!N18)","v":0},null,null,null,{"$f":"(Sammlungsverzeichnis!N19)","v":0},null,null,null,{"$f":"(Sammlungsverzeichnis!N20)","v":0},null,null,null,{"$f":"(Sammlungsverzeichnis!N21)","v":0},null,null,null,{"$f":"(Sammlungsverzeichnis!N22)","v":0}]
[null,{"$f":"(Sammlungsverzeichnis!O16)","v":0},null,null,null,{"$f":"(Sammlungsverzeichnis!O17)","v":0},null,null,null,{"$f":"(Sammlungsverzeichnis!O18)","v":0},null,null,null,{"$f":"(Sammlungsverzeichnis!O19)","v":0},null,null,null,{"$f":"(Sammlungsverzeichnis!O20)","v":0},null,null,null,{"$f":"(Sammlungsverzeichnis!O21)","v":0},null,null,null,{"$f":"(Sammlungsverzeichnis!O22)","v":0}]
[null,{"$f":"(Sammlungsverzeichnis!P16)","v":0},null,null,null,{"$f":"(Sammlungsverzeichnis!P17)","v":0},null,null,null,{"$f":"(Sammlungsverzeichnis!P18)","v":0},null,null,null,{"$f":"(Sammlungsverzeichnis!P19)","v":0},null,null,null,{"$f":"(Sammlungsverzeichnis!P20)","v":0},null,null,null,{"$f":"(Sammlungsverzeichnis!P21)","v":0},null,null,null,{"$f":"(Sammlungsverzeichnis!P22)","v":0}]
[null,{"$f":"(Sammlungsverzeichnis!Q16)","v":0},{"$f":"(Sammlungsverzeichnis!W16)","v":0},null,null,{"$f":"(Sammlungsverzeichnis!Q17)","v":0},{"$f":"(Sammlungsverzeichnis!W17)","v":0},null,null,{"$f":"(Sammlungsverzeichnis!Q18)","v":0},{"$f":"(Sammlungsverzeichnis!W18)","v":0},null,null,{"$f":"(Sammlungsverzeichnis!Q19)","v":0},{"$f":"(Sammlungsverzeichnis!W19)","v":0},null,null,{"$f":"(Sammlungsverzeichnis!Q20)","v":0},{"$f":"(Sammlungsverzeichnis!W20)","v":0},null,null,{"$f":"(Sammlungsverzeichnis!Q21)","v":0},{"$f":"(Sammlungsverzeichnis!W21)","v":0},null,null,{"$f":"(Sammlungsverzeichnis!Q22)","v":0},{"$f":"(Sammlungsverzeichnis!W22)","v":0}]
[]
[null,{"$f":"(Sammlungsverzeichnis!S16)","v":0},null,null,null,{"$f":"(Sammlungsverzeichnis!S17)","v":0},null,null,null,{"$f":"(Sammlungsverzeichnis!S18)","v":0},null,null,null,{"$f":"(Sammlungsverzeichnis!S19)","v":0},null,null,null,{"$f":"(Sammlungsverzeichnis!S20)","v":0},null,null,null,{"$f":"(Sammlungsverzeichnis!S21)","v":0},null,null,null,{"$f":"(Sammlungsverzeichnis!S22)","v":0}]
[]
[null,{"$f":"(Sammlungsverzeichnis!C23&\" \"&Sammlungsverzeichnis!D23&\" \"&Sammlungsverzeichnis!E23)","v":"  "},null,{"$f":"(Sammlungsverzeichnis!E3&\" \"&Sammlungsverzeichnis!C2)","v":"col.  M. Mustermann"},null,{"$f":"(Sammlungsverzeichnis!C24&\" \"&Sammlungsverzeichnis!D24&\" \"&Sammlungsverzeichnis!E24)","v":"  "},null,{"$f":"(Sammlungsverzeichnis!E3&\" \"&Sammlungsverzeichnis!C2)","v":"col.  M. Mustermann"},null,{"$f":"(Sammlungsverzeichnis!C25&\" \"&Sammlungsverzeichnis!D25&\" \"&Sammlungsverzeichnis!E25)","v":"  "},null,{"$f":"(Sammlungsverzeichnis!E3&\" \"&Sammlungsverzeichnis!C2)","v":"col.  M. Mustermann"},null,{"$f":"(Sammlungsverzeichnis!C26&\" \"&Sammlungsverzeichnis!D26&\" \"&Sammlungsverzeichnis!E26)","v":"  "},null,{"$f":"(Sammlungsverzeichnis!E3&\" \"&Sammlungsverzeichnis!C2)","v":"col.  M. Mustermann"},null,{"$f":"(Sammlungsverzeichnis!C27&\" \"&Sammlungsverzeichnis!D27&\" \"&Sammlungsverzeichnis!E27)","v":"  "},null,{"$f":"(Sammlungsverzeichnis!E3&\" \"&Sammlungsverzeichnis!C2)","v":"col.  M. Mustermann"},null,{"$f":"(Sammlungsverzeichnis!C28&\" \"&Sammlungsverzeichnis!D28&\" \"&Sammlungsverzeichnis!E28)","v":"  "},null,{"$f":"(Sammlungsverzeichnis!E3&\" \"&Sammlungsverzeichnis!C2)","v":"col.  M. Mustermann"},null,{"$f":"(Sammlungsverzeichnis!C29&\" \"&Sammlungsverzeichnis!D29&\" \"&Sammlungsverzeichnis!E29)","v":"  "},null,{"$f":"(Sammlungsverzeichnis!E3&\" \"&Sammlungsverzeichnis!C2)","v":"col.  M. Mustermann"}]
[]
[null,{"$f":"(Sammlungsverzeichnis!V23)","v":"00:00:00"},null,null,null,{"$f":"(Sammlungsverzeichnis!V24)","v":"00:00:00"},null,null,null,{"$f":"(Sammlungsverzeichnis!V25)","v":"00:00:00"},null,null,null,{"$f":"(Sammlungsverzeichnis!V26)","v":"00:00:00"},null,null,null,{"$f":"(Sammlungsverzeichnis!V27)","v":"00:00:00"},null,null,null,{"$f":"(Sammlungsverzeichnis!V28)","v":"00:00:00"},null,null,null,{"$f":"(Sammlungsverzeichnis!V29)","v":"00:00:00"}]
[null,{"$f":"(Sammlungsverzeichnis!T23&\", \"&Sammlungsverzeichnis!U23)","v":", "},null,null,null,{"$f":"(Sammlungsverzeichnis!T24&\", \"&Sammlungsverzeichnis!U24)","v":", "},null,null,null,{"$f":"(Sammlungsverzeichnis!T25&\", \"&Sammlungsverzeichnis!U25)","v":", "},null,null,null,{"$f":"(Sammlungsverzeichnis!T26&\", \"&Sammlungsverzeichnis!U26)","v":", "},null,null,null,{"$f":"(Sammlungsverzeichnis!T27&\", \"&Sammlungsverzeichnis!U27)","v":", "},null,null,null,{"$f":"(Sammlungsverzeichnis!T28&\", \"&Sammlungsverzeichnis!U28)","v":", "},null,null,null,{"$f":"(Sammlungsverzeichnis!T29&\", \"&Sammlungsverzeichnis!U29)","v":", "}]
[null,{"$f":"(Sammlungsverzeichnis!R23)","v":0},null,null,null,{"$f":"(Sammlungsverzeichnis!R24)","v":0},null,null,null,{"$f":"(Sammlungsverzeichnis!R25)","v":0},null,null,null,{"$f":"(Sammlungsverzeichnis!R26)","v":0},null,null,null,{"$f":"(Sammlungsverzeichnis!R27)","v":0},null,null,null,{"$f":"(Sammlungsverzeichnis!R28)","v":0},null,null,null,{"$f":"(Sammlungsverzeichnis!R29)","v":0}]
[]
[null,{"$f":"(Sammlungsverzeichnis!M23)","v":0},null,{"$f":"(Sammlungsverzeichnis!Y23)","v":0},null,{"$f":"(Sammlungsverzeichnis!M24)","v":0},null,{"$f":"(Sammlungsverzeichnis!Y24)","v":0},null,{"$f":"(Sammlungsverzeichnis!M25)","v":0},null,{"$f":"(Sammlungsverzeichnis!Y25)","v":0},null,{"$f":"(Sammlungsverzeichnis!M26)","v":0},null,{"$f":"(Sammlungsverzeichnis!Y26)","v":0},null,{"$f":"(Sammlungsverzeichnis!M27)","v":0},null,{"$f":"(Sammlungsverzeichnis!Y27)","v":0},null,{"$f":"(Sammlungsverzeichnis!M28)","v":0},null,{"$f":"(Sammlungsverzeichnis!Y28)","v":0},null,{"$f":"(Sammlungsverzeichnis!M29)","v":0},null,{"$f":"(Sammlungsverzeichnis!Y29)","v":0}]
[null,{"$f":"(Sammlungsverzeichnis!N23)","v":0},null,null,null,{"$f":"(Sammlungsverzeichnis!N24)","v":0},null,null,null,{"$f":"(Sammlungsverzeichnis!N25)","v":0},null,null,null,{"$f":"(Sammlungsverzeichnis!N26)","v":0},null,null,null,{"$f":"(Sammlungsverzeichnis!N27)","v":0},null,null,null,{"$f":"(Sammlungsverzeichnis!N28)","v":0},null,null,null,{"$f":"(Sammlungsverzeichnis!N29)","v":0}]
[null,{"$f":"(Sammlungsverzeichnis!O23)","v":0},null,null,null,{"$f":"(Sammlungsverzeichnis!O24)","v":0},null,null,null,{"$f":"(Sammlungsverzeichnis!O25)","v":0},null,null,null,{"$f":"(Sammlungsverzeichnis!O26)","v":0},null,null,null,{"$f":"(Sammlungsverzeichnis!O27)","v":0},null,null,null,{"$f":"(Sammlungsverzeichnis!O28)","v":0},null,null,null,{"$f":"(Sammlungsverzeichnis!O29)","v":0}]
[null,{"$f":"(Sammlungsverzeichnis!P23)","v":0},null,null,null,{"$f":"(Sammlungsverzeichnis!P24)","v":0},null,null,null,{"$f":"(Sammlungsverzeichnis!P25)","v":0},null,null,null,{"$f":"(Sammlungsverzeichnis!P26)","v":0},null,null,null,{"$f":"(Sammlungsverzeichnis!P27)","v":0},null,null,null,{"$f":"(Sammlungsverzeichnis!P28)","v":0},null,null,null,{"$f":"(Sammlungsverzeichnis!P29)","v":0}]
[null,{"$f":"(Sammlungsverzeichnis!Q23)","v":0},{"$f":"(Sammlungsverzeichnis!W23)","v":0},null,null,{"$f":"(Sammlungsverzeichnis!Q24)","v":0},{"$f":"(Sammlungsverzeichnis!W24)","v":0},null,null,{"$f":"(Sammlungsverzeichnis!Q25)","v":0},{"$f":"(Sammlungsverzeichnis!W25)","v":0},null,null,{"$f":"(Sammlungsverzeichnis!Q26)","v":0},{"$f":"(Sammlungsverzeichnis!W26)","v":0},null,null,{"$f":"(Sammlungsverzeichnis!Q27)","v":0},{"$f":"(Sammlungsverzeichnis!W27)","v":0},null,null,{"$f":"(Sammlungsverzeichnis!Q28)","v":0},{"$f":"(Sammlungsverzeichnis!W28)","v":0},null,null,{"$f":"(Sammlungsverzeichnis!Q29)","v":0},{"$f":"(Sammlungsverzeichnis!W29)","v":0}]
[]
[null,{"$f":"(Sammlungsverzeichnis!S23)","v":0},null,null,null,{"$f":"(Sammlungsverzeichnis!S24)","v":0},null,null,null,{"$f":"(Sammlungsverzeichnis!S25)","v":0},null,null,null,{"$f":"(Sammlungsverzeichnis!S26)","v":0},null,null,null,{"$f":"(Sammlungsverzeichnis!S27)","v":0},null,null,null,{"$f":"(Sammlungsverzeichnis!S28)","v":0},null,null,null,{"$f":"(Sammlungsverzeichnis!S29)","v":0}]
[]
[null,{"$f":"(Sammlungsverzeichnis!C30&\" \"&Sammlungsverzeichnis!D30&\" \"&Sammlungsverzeichnis!E30)","v":"  "},null,{"$f":"(Sammlungsverzeichnis!E3&\" \"&Sammlungsverzeichnis!C2)","v":"col.  M. Mustermann"},null,{"$f":"(Sammlungsverzeichnis!C31&\" \"&Sammlungsverzeichnis!D31&\" \"&Sammlungsverzeichnis!E31)","v":"  "},null,{"$f":"(Sammlungsverzeichnis!E3&\" \"&Sammlungsverzeichnis!C2)","v":"col.  M. Mustermann"},null,{"$f":"(Sammlungsverzeichnis!C32&\" \"&Sammlungsverzeichnis!D32&\" \"&Sammlungsverzeichnis!E32)","v":"  "},null,{"$f":"(Sammlungsverzeichnis!E3&\" \"&Sammlungsverzeichnis!C2)","v":"col.  M. Mustermann"},null,{"$f":"(Sammlungsverzeichnis!C33&\" \"&Sammlungsverzeichnis!D33&\" \"&Sammlungsverzeichnis!E33)","v":"  "},null,{"$f":"(Sammlungsverzeichnis!E3&\" \"&Sammlungsverzeichnis!C2)","v":"col.  M. Mustermann"},null,{"$f":"(Sammlungsverzeichnis!C34&\" \"&Sammlungsverzeichnis!D34&\" \"&Sammlungsverzeichnis!E34)","v":"  "},null,{"$f":"(Sammlungsverzeichnis!E3&\" \"&Sammlungsverzeichnis!C2)","v":"col.  M. Mustermann"},null,{"$f":"(Sammlungsverzeichnis!C35&\" \"&Sammlungsverzeichnis!D35&\" \"&Sammlungsverzeichnis!E35)","v":"  "},null,{"$f":"(Sammlungsverzeichnis!E3&\" \"&Sammlungsverzeichnis!C2)","v":"col.  M. Mustermann"},null,{"$f":"(Sammlungsverzeichnis!C36&\" \"&Sammlungsverzeichnis!D36&\" \"&Sammlungsverzeichnis!E36)","v":"  "},null,{"$f":"(Sammlungsverzeichnis!E3&\" \"&Sammlungsverzeichnis!C2)","v":"col.  M. Mustermann"}]
[]
[null,{"$f":"(Sammlungsverzeichnis!V30)","v":"00:00:00"},null,null,null,{"$f":"(Sammlungsverzeichnis!V31)","v":"00:00:00"},null,null,null,{"$f":"(Sammlungsverzeichnis!V32)","v":"00:00:00"},null,null,null,{"$f":"(Sammlungsverzeichnis!V33)","v":"00:00:00"},null,null,null,{"$f":"(Sammlungsverzeichnis!V34)","v":"00:00:00"},null,null,null,{"$f":"(Sammlungsverzeichnis!V35)","v":"00:00:00"},null,null,null,{"$f":"(Sammlungsverzeichnis!V36)","v":"00:00:00"}]
[null,{"$f":"(Sammlungsverzeichnis!T30&\", \"&Sammlungsverzeichnis!U30)","v":", "},null,null,null,{"$f":"(Sammlungsverzeichnis!T31&\", \"&Sammlungsverzeichnis!U31)","v":", "},null,null,null,{"$f":"(Sammlungsverzeichnis!T32&\", \"&Sammlungsverzeichnis!U32)","v":", "},null,null,null,{"$f":"(Sammlungsverzeichnis!T33&\", \"&Sammlungsverzeichnis!U33)","v":", "},null,null,null,{"$f":"(Sammlungsverzeichnis!T34&\", \"&Sammlungsverzeichnis!U34)","v":", "},null,null,null,{"$f":"(Sammlungsverzeichnis!T35&\", \"&Sammlungsverzeichnis!U35)","v":", "},null,null,null,{"$f":"(Sammlungsverzeichnis!T36&\", \"&Sammlungsverzeichnis!U36)","v":", "}]
[null,{"$f":"(Sammlungsverzeichnis!R30)","v":0},null,null,null,{"$f":"(Sammlungsverzeichnis!R31)","v":0},null,null,null,{"$f":"(Sammlungsverzeichnis!R32)","v":0},null,null,null,{"$f":"(Sammlungsverzeichnis!R33)","v":0},null,null,null,{"$f":"(Sammlungsverzeichnis!R34)","v":0},null,null,null,{"$f":"(Sammlungsverzeichnis!R35)","v":0},null,null,null,{"$f":"(Sammlungsverzeichnis!R36)","v":0}]
[]
[null,{"$f":"(Sammlungsverzeichnis!M30)","v":0},null,{"$f":"(Sammlungsverzeichnis!Y30)","v":0},null,{"$f":"(Sammlungsverzeichnis!M31)","v":0},null,{"$f":"(Sammlungsverzeichnis!Y31)","v":0},null,{"$f":"(Sammlungsverzeichnis!M32)","v":0},null,{"$f":"(Sammlungsverzeichnis!Y32)","v":0},null,{"$f":"(Sammlungsverzeichnis!M33)","v":0},null,{"$f":"(Sammlungsverzeichnis!Y33)","v":0},null,{"$f":"(Sammlungsverzeichnis!M34)","v":0},null,{"$f":"(Sammlungsverzeichnis!Y34)","v":0},null,{"$f":"(Sammlungsverzeichnis!M35)","v":0},null,{"$f":"(Sammlungsverzeichnis!Y35)","v":0},null,{"$f":"(Sammlungsverzeichnis!M36)","v":0},null,{"$f":"(Sammlungsverzeichnis!Y36)","v":0}]
[null,{"$f":"(Sammlungsverzeichnis!N30)","v":0},null,null,null,{"$f":"(Sammlungsverzeichnis!N31)","v":0},null,null,null,{"$f":"(Sammlungsverzeichnis!N32)","v":0},null,null,null,{"$f":"(Sammlungsverzeichnis!N33)","v":0},null,null,null,{"$f":"(Sammlungsverzeichnis!N34)","v":0},null,null,null,{"$f":"(Sammlungsverzeichnis!N35)","v":0},null,null,null,{"$f":"(Sammlungsverzeichnis!N36)","v":0}]
[null,{"$f":"(Sammlungsverzeichnis!O30)","v":0},null,null,null,{"$f":"(Sammlungsverzeichnis!O31)","v":0},null,null,null,{"$f":"(Sammlungsverzeichnis!O32)","v":0},null,null,null,{"$f":"(Sammlungsverzeichnis!O33)","v":0},null,null,null,{"$f":"(Sammlungsverzeichnis!O34)","v":0},null,null,null,{"$f":"(Sammlungsverzeichnis!O35)","v":0},null,null,null,{"$f":"(Sammlungsverzeichnis!O36)","v":0}]
[null,{"$f":"(Sammlungsverzeichnis!P30)","v":0},null,null,null,{"$f":"(Sammlungsverzeichnis!P31)","v":0},null,null,null,{"$f":"(Sammlungsverzeichnis!P32)","v":0},null,null,null,{"$f":"(Sammlungsverzeichnis!P33)","v":0},null,null,null,{"$f":"(Sammlungsverzeichnis!P34)","v":0},null,null,null,{"$f":"(Sammlungsverzeichnis!P35)","v":0},null,null,null,{"$f":"(Sammlungsverzeichnis!P36)","v":0}]
[null,{"$f":"(Sammlungsverzeichnis!Q30)","v":0},{"$f":"(Sammlungsverzeichnis!W30)","v":0},null,null,{"$f":"(Sammlungsverzeichnis!Q31)","v":0},{"$f":"(Sammlungsverzeichnis!W31)","v":0},null,null,{"$f":"(Sammlungsverzeichnis!Q32)","v":0},{"$f":"(Sammlungsverzeichnis!W32)","v":0},null,null,{"$f":"(Sammlungsverzeichnis!Q33)","v":0},{"$f":"(Sammlungsverzeichnis!W33)","v":0},null,null,{"$f":"(Sammlungsverzeichnis!Q34)","v":0},{"$f":"(Sammlungsverzeichnis!W34)","v":0},null,null,{"$f":"(Sammlungsverzeichnis!Q35)","v":0},{"$f":"(Sammlungsverzeichnis!W35)","v":0},null,null,{"$f":"(Sammlungsverzeichnis!Q36)","v":0},{"$f":"(Sammlungsverzeichnis!W36)","v":0}]
[]
[null,{"$f":"(Sammlungsverzeichnis!S30)","v":0},null,null,null,{"$f":"(Sammlungsverzeichnis!S31)","v":0},null,null,null,{"$f":"(Sammlungsverzeichnis!S32)","v":0},null,null,null,{"$f":"(Sammlungsverzeichnis!S33)","v":0},null,null,null,{"$f":"(Sammlungsverzeichnis!S34)","v":0},null,null,null,{"$f":"(Sammlungsverzeichnis!S35)","v":0},null,null,null,{"$f":"(Sammlungsverzeichnis!S36)","v":0}]
[]
[null,{"$f":"(Sammlungsverzeichnis!C37&\" \"&Sammlungsverzeichnis!D37&\" \"&Sammlungsverzeichnis!E37)","v":"  "},null,{"$f":"(Sammlungsverzeichnis!E3&\" \"&Sammlungsverzeichnis!C2)","v":"col.  M. Mustermann"},null,{"$f":"(Sammlungsverzeichnis!C38&\" \"&Sammlungsverzeichnis!D38&\" \"&Sammlungsverzeichnis!E38)","v":"  "},null,{"$f":"(Sammlungsverzeichnis!E3&\" \"&Sammlungsverzeichnis!C2)","v":"col.  M. Mustermann"},null,{"$f":"(Sammlungsverzeichnis!C39&\" \"&Sammlungsverzeichnis!D39&\" \"&Sammlungsverzeichnis!E39)","v":"  "},null,{"$f":"(Sammlungsverzeichnis!E3&\" \"&Sammlungsverzeichnis!C2)","v":"col.  M. Mustermann"},null,{"$f":"(Sammlungsverzeichnis!C40&\" \"&Sammlungsverzeichnis!D40&\" \"&Sammlungsverzeichnis!E40)","v":"  "},null,{"$f":"(Sammlungsverzeichnis!E3&\" \"&Sammlungsverzeichnis!C2)","v":"col.  M. Mustermann"},null,{"$f":"(Sammlungsverzeichnis!C41&\" \"&Sammlungsverzeichnis!D41&\" \"&Sammlungsverzeichnis!E41)","v":"  "},null,{"$f":"(Sammlungsverzeichnis!E3&\" \"&Sammlungsverzeichnis!C2)","v":"col.  M. Mustermann"},null,{"$f":"(Sammlungsverzeichnis!C42&\" \"&Sammlungsverzeichnis!D42&\" \"&Sammlungsverzeichnis!E42)","v":"  "},null,{"$f":"(Sammlungsverzeichnis!E3&\" \"&Sammlungsverzeichnis!C2)","v":"col.  M. Mustermann"},null,{"$f":"(Sammlungsverzeichnis!C43&\" \"&Sammlungsverzeichnis!D43&\" \"&Sammlungsverzeichnis!E43)","v":"  "},null,{"$f":"(Sammlungsverzeichnis!E3&\" \"&Sammlungsverzeichnis!C2)","v":"col.  M. Mustermann"}]
[]
[null,{"$f":"(Sammlungsverzeichnis!V37)","v":"00:00:00"},null,null,null,{"$f":"(Sammlungsverzeichnis!V38)","v":"00:00:00"},null,null,null,{"$f":"(Sammlungsverzeichnis!V39)","v":"00:00:00"},null,null,null,{"$f":"(Sammlungsverzeichnis!V40)","v":"00:00:00"},null,null,null,{"$f":"(Sammlungsverzeichnis!V41)","v":"00:00:00"},null,null,null,{"$f":"(Sammlungsverzeichnis!V42)","v":"00:00:00"},null,null,null,{"$f":"(Sammlungsverzeichnis!V43)","v":"00:00:00"}]
[null,{"$f":"(Sammlungsverzeichnis!T37&\", \"&Sammlungsverzeichnis!U37)","v":", "},null,null,null,{"$f":"(Sammlungsverzeichnis!T38&\", \"&Sammlungsverzeichnis!U38)","v":", "},null,null,null,{"$f":"(Sammlungsverzeichnis!T39&\", \"&Sammlungsverzeichnis!U39)","v":", "},null,null,null,{"$f":"(Sammlungsverzeichnis!T40&\", \"&Sammlungsverzeichnis!U40)","v":", "},null,null,null,{"$f":"(Sammlungsverzeichnis!T41&\", \"&Sammlungsverzeichnis!U41)","v":", "},null,null,null,{"$f":"(Sammlungsverzeichnis!T42&\", \"&Sammlungsverzeichnis!U42)","v":", "},null,null,null,{"$f":"(Sammlungsverzeichnis!T43&\", \"&Sammlungsverzeichnis!U43)","v":", "}]
[null,{"$f":"(Sammlungsverzeichnis!R37)","v":0},null,null,null,{"$f":"(Sammlungsverzeichnis!R38)","v":0},null,null,null,{"$f":"(Sammlungsverzeichnis!R39)","v":0},null,null,null,{"$f":"(Sammlungsverzeichnis!R40)","v":0},null,null,null,{"$f":"(Sammlungsverzeichnis!R41)","v":0},null,null,null,{"$f":"(Sammlungsverzeichnis!R42)","v":0},null,null,null,{"$f":"(Sammlungsverzeichnis!R43)","v":0}]
[]
[null,{"$f":"(Sammlungsverzeichnis!M37)","v":0},null,{"$f":"(Sammlungsverzeichnis!Y37)","v":0},null,{"$f":"(Sammlungsverzeichnis!M38)","v":0},null,{"$f":"(Sammlungsverzeichnis!Y38)","v":0},null,{"$f":"(Sammlungsverzeichnis!M39)","v":0},null,{"$f":"(Sammlungsverzeichnis!Y39)","v":0},null,{"$f":"(Sammlungsverzeichnis!M40)","v":0},null,{"$f":"(Sammlungsverzeichnis!Y40)","v":0},null,{"$f":"(Sammlungsverzeichnis!M41)","v":0},null,{"$f":"(Sammlungsverzeichnis!Y41)","v":0},null,{"$f":"(Sammlungsverzeichnis!M42)","v":0},null,{"$f":"(Sammlungsverzeichnis!Y42)","v":0},null,{"$f":"(Sammlungsverzeichnis!M43)","v":0},null,{"$f":"(Sammlungsverzeichnis!Y43)","v":0}]
[null,{"$f":"(Sammlungsverzeichnis!N37)","v":0},null,null,null,{"$f":"(Sammlungsverzeichnis!N38)","v":0},null,null,null,{"$f":"(Sammlungsverzeichnis!N39)","v":0},null,null,null,{"$f":"(Sammlungsverzeichnis!N40)","v":0},null,null,null,{"$f":"(Sammlungsverzeichnis!N41)","v":0},null,null,null,{"$f":"(Sammlungsverzeichnis!N42)","v":0},null,null,null,{"$f":"(Sammlungsverzeichnis!N43)","v":0}]
[null,{"$f":"(Sammlungsverzeichnis!O37)","v":0},null,null,null,{"$f":"(Sammlungsverzeichnis!O38)","v":0},null,null,null,{"$f":"(Sammlungsverzeichnis!O39)","v":0},null,null,null,{"$f":"(Sammlungsverzeichnis!O40)","v":0},null,null,null,{"$f":"(Sammlungsverzeichnis!O41)","v":0},null,null,null,{"$f":"(Sammlungsverzeichnis!O42)","v":0},null,null,null,{"$f":"(Sammlungsverzeichnis!O43)","v":0}]
[null,{"$f":"(Sammlungsverzeichnis!P37)","v":0},null,null,null,{"$f":"(Sammlungsverzeichnis!P38)","v":0},null,null,null,{"$f":"(Sammlungsverzeichnis!P39)","v":0},null,null,null,{"$f":"(Sammlungsverzeichnis!P40)","v":0},null,null,null,{"$f":"(Sammlungsverzeichnis!P41)","v":0},null,null,null,{"$f":"(Sammlungsverzeichnis!P42)","v":0},null,null,null,{"$f":"(Sammlungsverzeichnis!P43)","v":0}]
[null,{"$f":"(Sammlungsverzeichnis!Q37)","v":0},{"$f":"(Sammlungsverzeichnis!W37)","v":0},null,null,{"$f":"(Sammlungsverzeichnis!Q38)","v":0},{"$f":"(Sammlungsverzeichnis!W38)","v":0},null,null,{"$f":"(Sammlungsverzeichnis!Q39)","v":0},{"$f":"(Sammlungsverzeichnis!W39)","v":0},null,null,{"$f":"(Sammlungsverzeichnis!Q40)","v":0},{"$f":"(Sammlungsverzeichnis!W40)","v":0},null,null,{"$f":"(Sammlungsverzeichnis!Q41)","v":0},{"$f":"(Sammlungsverzeichnis!W41)","v":0},null,null,{"$f":"(Sammlungsverzeichnis!Q42)","v":0},{"$f":"(Sammlungsverzeichnis!W42)","v":0},null,null,{"$f":"(Sammlungsverzeichnis!Q43)","v":0},{"$f":"(Sammlungsverzeichnis!W43)","v":0}]
[]
[null,{"$f":"(Sammlungsverzeichnis!S37)","v":0},null,null,null,{"$f":"(Sammlungsverzeichnis!S38)","v":0},null,null,null,{"$f":"(Sammlungsverzeichnis!S39)","v":0},null,null,null,{"$f":"(Sammlungsverzeichnis!S40)","v":0},null,null,null,{"$f":"(Sammlungsverzeichnis!S41)","v":0},null,null,null,{"$f":"(Sammlungsverzeichnis!S42)","v":0},null,null,null,{"$f":"(Sammlungsverzeichnis!S43)","v":0}]
[]
[null,{"$f":"(Sammlungsverzeichnis!C44&\" \"&Sammlungsverzeichnis!D44&\" \"&Sammlungsverzeichnis!E44)","v":"  "},null,{"$f":"(Sammlungsverzeichnis!E3&\" \"&Sammlungsverzeichnis!C2)","v":"col.  M. Mustermann"},null,{"$f":"(Sammlungsverzeichnis!C45&\" \"&Sammlungsverzeichnis!D45&\" \"&Sammlungsverzeichnis!E45)","v":"  "},null,{"$f":"(Sammlungsverzeichnis!E3&\" \"&Sammlungsverzeichnis!C2)","v":"col.  M. Mustermann"},null,{"$f":"(Sammlungsverzeichnis!C46&\" \"&Sammlungsverzeichnis!D46&\" \"&Sammlungsverzeichnis!E46)","v":"  "},null,{"$f":"(Sammlungsverzeichnis!E3&\" \"&Sammlungsverzeichnis!C2)","v":"col.  M. Mustermann"},null,{"$f":"(Sammlungsverzeichnis!C47&\" \"&Sammlungsverzeichnis!D47&\" \"&Sammlungsverzeichnis!E47)","v":"  "},null,{"$f":"(Sammlungsverzeichnis!E3&\" \"&Sammlungsverzeichnis!C2)","v":"col.  M. Mustermann"},null,{"$f":"(Sammlungsverzeichnis!C48&\" \"&Sammlungsverzeichnis!D48&\" \"&Sammlungsverzeichnis!E48)","v":"  "},null,{"$f":"(Sammlungsverzeichnis!E3&\" \"&Sammlungsverzeichnis!C2)","v":"col.  M. Mustermann"},null,{"$f":"(Sammlungsverzeichnis!C49&\" \"&Sammlungsverzeichnis!D49&\" \"&Sammlungsverzeichnis!E49)","v":"  "},null,{"$f":"(Sammlungsverzeichnis!E3&\" \"&Sammlungsverzeichnis!C2)","v":"col.  M. Mustermann"},null,{"$f":"(Sammlungsverzeichnis!C50&\" \"&Sammlungsverzeichnis!D50&\" \"&Sammlungsverzeichnis!E50)","v":"  "},null,{"$f":"(Sammlungsverzeichnis!E3&\" \"&Sammlungsverzeichnis!C2)","v":"col.  M. Mustermann"}]
[]
[null,{"$f":"(Sammlungsverzeichnis!V44)","v":"00:00:00"},null,null,null,{"$f":"(Sammlungsverzeichnis!V45)","v":"00:00:00"},null,null,null,{"$f":"(Sammlungsverzeichnis!V46)","v":"00:00:00"},null,null,null,{"$f":"(Sammlungsverzeichnis!V47)","v":"00:00:00"},null,null,null,{"$f":"(Sammlungsverzeichnis!V48)","v":"00:00:00"},null,null,null,{"$f":"(Sammlungsverzeichnis!V49)","v":"00:00:00"},null,null,null,{"$f":"(Sammlungsverzeichnis!V50)","v":"00:00:00"}]
[null,{"$f":"(Sammlungsverzeichnis!T44&\", \"&Sammlungsverzeichnis!U44)","v":", "},null,null,null,{"$f":"(Sammlungsverzeichnis!T45&\", \"&Sammlungsverzeichnis!U45)","v":", "},null,null,null,{"$f":"(Sammlungsverzeichnis!T46&\", \"&Sammlungsverzeichnis!U46)","v":", "},null,null,null,{"$f":"(Sammlungsverzeichnis!T47&\", \"&Sammlungsverzeichnis!U47)","v":", "},null,null,null,{"$f":"(Sammlungsverzeichnis!T48&\", \"&Sammlungsverzeichnis!U48)","v":", "},null,null,null,{"$f":"(Sammlungsverzeichnis!T49&\", \"&Sammlungsverzeichnis!U49)","v":", "},null,null,null,{"$f":"(Sammlungsverzeichnis!T50&\", \"&Sammlungsverzeichnis!U50)","v":", "}]
[null,{"$f":"(Sammlungsverzeichnis!R44)","v":0},null,null,null,{"$f":"(Sammlungsverzeichnis!R45)","v":0},null,null,null,{"$f":"(Sammlungsverzeichnis!R46)","v":0},null,null,null,{"$f":"(Sammlungsverzeichnis!R47)","v":0},null,null,null,{"$f":"(Sammlungsverzeichnis!R48)","v":0},null,null,null,{"$f":"(Sammlungsverzeichnis!R49)","v":0},null,null,null,{"$f":"(Sammlungsverzeichnis!R50)","v":0}]
[]
[null,{"$f":"(Sammlungsverzeichnis!M44)","v":0},null,{"$f":"(Sammlungsverzeichnis!Y44)","v":0},null,{"$f":"(Sammlungsverzeichnis!M45)","v":0},null,{"$f":"(Sammlungsverzeichnis!Y45)","v":0},null,{"$f":"(Sammlungsverzeichnis!M46)","v":0},null,{"$f":"(Sammlungsverzeichnis!Y46)","v":0},null,{"$f":"(Sammlungsverzeichnis!M47)","v":0},null,{"$f":"(Sammlungsverzeichnis!Y47)","v":0},null,{"$f":"(Sammlungsverzeichnis!M48)","v":0},null,{"$f":"(Sammlungsverzeichnis!Y48)","v":0},null,{"$f":"(Sammlungsverzeichnis!M49)","v":0},null,{"$f":"(Sammlungsverzeichnis!Y49)","v":0},null,{"$f":"(Sammlungsverzeichnis!M50)","v":0},null,{"$f":"(Sammlungsverzeichnis!Y50)","v":0}]
[null,{"$f":"(Sammlungsverzeichnis!N44)","v":0},null,null,null,{"$f":"(Sammlungsverzeichnis!N45)","v":0},null,null,null,{"$f":"(Sammlungsverzeichnis!N46)","v":0},null,null,null,{"$f":"(Sammlungsverzeichnis!N47)","v":0},null,null,null,{"$f":"(Sammlungsverzeichnis!N48)","v":0},null,null,null,{"$f":"(Sammlungsverzeichnis!N49)","v":0},null,null,null,{"$f":"(Sammlungsverzeichnis!N50)","v":0}]
[null,{"$f":"(Sammlungsverzeichnis!O44)","v":0},null,null,null,{"$f":"(Sammlungsverzeichnis!O45)","v":0},null,null,null,{"$f":"(Sammlungsverzeichnis!O46)","v":0},null,null,null,{"$f":"(Sammlungsverzeichnis!O47)","v":0},null,null,null,{"$f":"(Sammlungsverzeichnis!O48)","v":0},null,null,null,{"$f":"(Sammlungsverzeichnis!O49)","v":0},null,null,null,{"$f":"(Sammlungsverzeichnis!O50)","v":0}]
[null,{"$f":"(Sammlungsverzeichnis!P44)","v":0},null,null,null,{"$f":"(Sammlungsverzeichnis!P45)","v":0},null,null,null,{"$f":"(Sammlungsverzeichnis!P46)","v":0},null,null,null,{"$f":"(Sammlungsverzeichnis!P47)","v":0},null,null,null,{"$f":"(Sammlungsverzeichnis!P48)","v":0},null,null,null,{"$f":"(Sammlungsverzeichnis!P49)","v":0},null,null,null,{"$f":"(Sammlungsverzeichnis!P50)","v":0}]
[null,{"$f":"(Sammlungsverzeichnis!Q44)","v":0},{"$f":"(Sammlungsverzeichnis!W44)","v":0},null,null,{"$f":"(Sammlungsverzeichnis!Q45)","v":0},{"$f":"(Sammlungsverzeichnis!W45)","v":0},null,null,{"$f":"(Sammlungsverzeichnis!Q46)","v":0},{"$f":"(Sammlungsverzeichnis!W46)","v":0},null,null,{"$f":"(Sammlungsverzeichnis!Q47)","v":0},{"$f":"(Sammlungsverzeichnis!W47)","v":0},null,null,{"$f":"(Sammlungsverzeichnis!Q48)","v":0},{"$f":"(Sammlungsverzeichnis!W48)","v":0},null,null,{"$f":"(Sammlungsverzeichnis!Q49)","v":0},{"$f":"(Sammlungsverzeichnis!W49)","v":0},null,null,{"$f":"(Sammlungsverzeichnis!Q50)","v":0},{"$f":"(Sammlungsverzeichnis!W50)","v":0}]
[]
[null,{"$f":"(Sammlungsverzeichnis!S44)","v":0},null,null,null,{"$f":"(Sammlungsverzeichnis!S45)","v":0},null,null,null,{"$f":"(Sammlungsverzeichnis!S46)","v":0},null,null,null,{"$f":"(Sammlungsverzeichnis!S47)","v":0},null,null,null,{"$f":"(Sammlungsverzeichnis!S48)","v":0},null,null,null,{"$f":"(Sammlungsverzeichnis!S49)","v":0},null,null,null,{"$f":"(Sammlungsverzeichnis!S50)","v":0}]
[]
[null,"http://www.entopedia.info",null,null,null,null,null,null,null,null,null,null,null,null,null,null,null,"© Michael Frank | All rights reserved"]